BODY NAME,,SERVICE AREA,EXPENSES TYPE,EXPENSE CODE,DATE,TRANSACTION NO.,AMOUNT, SUPPLIER NAME,SUPPLIER ID,
EFDC,PH100,PRIVATE SECTOR HOUSING,GRANTS GENERAL,3720,04-Apr-17,23657,"5,970.00",S J BLACKBOURN,BLA001,
EFDC,GD100,VOLUNTARY SECTOR SUPPORT,GRANTS TO VOLUNTARY ORGS,3710,04-Apr-17,23601,"1,300.00",EPPING FOREST CITIZENS ADVICE BUREAU,205P,
EFDC,GD100,VOLUNTARY SECTOR SUPPORT,GRANTS TO VOLUNTARY ORGS,3710,04-Apr-17,23618,750.00,NORTH WEALD AIRFIELD MUSEUM ASSOCIATION,706P,
EFDC,GD100,VOLUNTARY SECTOR SUPPORT,GRANTS TO VOLUNTARY ORGS,3710,04-Apr-17,23602,"2,000.00",EPPING FOREST COMMUNITY TRANSPORT,2107P,
EFDC,GD100,VOLUNTARY SECTOR SUPPORT,GRANTS TO VOLUNTARY ORGS,3710,04-Apr-17,23622,"1,573.00",ROYDON PLAYING FIELDS MANAGEMENT COMM.,1895P,
EFDC,GD100,VOLUNTARY SECTOR SUPPORT,GRANTS TO VOLUNTARY ORGS,3710,04-Apr-17,23616,790.00,LAMBOURNE END LTD,1242P,
EFDC,BAL01,EFDC BALANCE SHEET,NDR REFUNDS,Z623,04-Apr-17,23637,963.21,M25 BUSINESS CENTRES LTD,2891P,
EFDC,BAL01,EFDC BALANCE SHEET,NDR REFUNDS,Z623,04-Apr-17,23638,"1,216.57",M25 BUSINESS CENTRES LTD,2891P,
EFDC,BAL01,EFDC BALANCE SHEET,NDR REFUNDS,Z623,04-Apr-17,23648,"6,249.15",M25 BUSINESS CENTRES LTD,2891P,
EFDC,BAL01,EFDC BALANCE SHEET,NDR REFUNDS,Z623,04-Apr-17,23649,"5,009.36",M25 BUSINESS CENTRES LTD,2891P,
EFDC,BAL01,EFDC BALANCE SHEET,NDR REFUNDS,Z623,04-Apr-17,23650,"1,850.94",M25 BUSINESS CENTRES LTD,2891P,
EFDC,BAL01,EFDC BALANCE SHEET,NDR REFUNDS,Z623,04-Apr-17,23631,"1,920.83",M25 BUSINESS CENTRES LTD,2891P,
EFDC,BAL01,EFDC BALANCE SHEET,NDR REFUNDS,Z623,04-Apr-17,23632,"1,738.37",M25 BUSINESS CENTRES LTD,2891P,
EFDC,BAL01,EFDC BALANCE SHEET,NDR REFUNDS,Z623,04-Apr-17,23634,627.70,M25 BUSINESS CENTRES LTD,2891P,
EFDC,BAL01,EFDC BALANCE SHEET,NDR REFUNDS,Z623,04-Apr-17,23647,"15,987.55",M25 BUSINESS CENTRES LTD,2891P,
EFDC,BAL01,EFDC BALANCE SHEET,NDR REFUNDS,Z623,04-Apr-17,23633,"1,371.37",M25 BUSINESS CENTRES LTD,2891P,
EFDC,BAL01,EFDC BALANCE SHEET,NDR REFUNDS,Z623,04-Apr-17,23645,"6,838.73",M25 BUSINESS CENTRES LTD,2891P,
EFDC,BAL01,EFDC BALANCE SHEET,NDR REFUNDS,Z623,04-Apr-17,23639,"23,443.10",M25 BUSINESS CENTRES LTD,2891P,
EFDC,BAL01,EFDC BALANCE SHEET,NDR REFUNDS,Z623,04-Apr-17,23644,"2,984.54",M25 BUSINESS CENTRES LTD,2891P,
EFDC,BAL01,EFDC BALANCE SHEET,NDR REFUNDS,Z623,04-Apr-17,23643,"2,698.96",M25 BUSINESS CENTRES LTD,2891P,
EFDC,BAL01,EFDC BALANCE SHEET,NDR REFUNDS,Z623,04-Apr-17,23642,"2,532.67",M25 BUSINESS CENTRES LTD,2891P,
EFDC,BAL01,EFDC BALANCE SHEET,NDR REFUNDS,Z623,04-Apr-17,23641,"2,344.43",M25 BUSINESS CENTRES LTD,2891P,
EFDC,BAL01,EFDC BALANCE SHEET,NDR REFUNDS,Z623,04-Apr-17,23646,"7,734.43",M25 BUSINESS CENTRES LTD,2891P,
EFDC,GD100,VOLUNTARY SECTOR SUPPORT,GRANTS TO VOLUNTARY ORGS,3710,04-Apr-17,23598,530.00,1ST NAZEING SCOUT GROUP,3276P,
EFDC,GD100,VOLUNTARY SECTOR SUPPORT,GRANTS TO VOLUNTARY ORGS,3710,04-Apr-17,23620,"2,250.00",QUEENS HALL CHARITY,3901P,
EFDC,PH100,PRIVATE SECTOR HOUSING,GRANTS GENERAL,3720,04-Apr-17,23662,"7,260.88",EDON 2000 LTD,EDO001,
EFDC,GD100,VOLUNTARY SECTOR SUPPORT,GRANTS TO VOLUNTARY ORGS,3710,04-Apr-17,23599,"1,982.00",ABOVE & BEYOND,6702P,
EFDC,GD100,VOLUNTARY SECTOR SUPPORT,GRANTS TO VOLUNTARY ORGS,3710,04-Apr-17,23603,"2,212.00",EPPING FOREST CENTENARY TRUST,6703P,
EFDC,GD100,VOLUNTARY SECTOR SUPPORT,GRANTS TO VOLUNTARY ORGS,3710,04-Apr-17,23604,"1,994.00",EPPING IN BLOOM,6704P,
EFDC,GD100,VOLUNTARY SECTOR SUPPORT,GRANTS TO VOLUNTARY ORGS,3710,04-Apr-17,23621,"2,995.00",REINDEER EXPLORER SCOUTS,6716P,
EFDC,BAL01,EFDC BALANCE SHEET,NDR REFUNDS,Z623,04-Apr-17,23651,536.43,TARIK SALIH,6719P,
EFDC,YB200,SUPERVISION/MANAGEMENT SPECIAL,REMOVAL EXPENSES,3830,04-Apr-17,23669,500.00,MRS L NEVILL,6730P,
EFDC,YB200,SUPERVISION/MANAGEMENT SPECIAL,CONTRIBUTIONS,3740,04-Apr-17,23669,500.00,MRS L NEVILL,6730P,
EFDC,YB200,SUPERVISION/MANAGEMENT SPECIAL,COMPENSATION PAYMENTS,3880,04-Apr-17,23669,"1,000.00",MRS L NEVILL,6730P,
EFDC,BAL01,EFDC BALANCE SHEET,HOUSING RENT REFUNDS,Z613,04-Apr-17,23661,601.92,MISS A CARTER,6725P,
EFDC,BAL01,EFDC BALANCE SHEET,HOUSING RENT REFUNDS,Z613,04-Apr-17,23682,533.30,MISS TAYLOR,6742P,
EFDC,BAL01,EFDC BALANCE SHEET,HOUSING RENT REFUNDS,Z613,04-Apr-17,23685,980.24,MRS E M YEO,6745P,
EFDC,DR150,MEMBER ACTIVITIES,MEMBERS COURSES & CONFERENCES,3632,05-Apr-17,104012,640.00,CMS TRAINING LTD,CMS001,
EFDC,EH160,OTHER ACTIVITIES,CLEANING,1630,05-Apr-17,104576,795.00,CORDELL SERVICES,COR002,
EFDC,YB500,SUPERVISION/MANAGEMENT SPECIAL,GAS,1110,05-Apr-17,103697,925.70,CORONA ENERGY RETAIL 4 LTD,COR015,
EFDC,YB500,SUPERVISION/MANAGEMENT SPECIAL,GAS,1110,05-Apr-17,103701,"1,269.30",CORONA ENERGY RETAIL 4 LTD,COR015,
EFDC,YB500,SUPERVISION/MANAGEMENT SPECIAL,GAS,1110,05-Apr-17,103694,"1,161.31",CORONA ENERGY RETAIL 4 LTD,COR015,
EFDC,YB500,SUPERVISION/MANAGEMENT SPECIAL,GAS,1110,05-Apr-17,103707,808.21,CORONA ENERGY RETAIL 4 LTD,COR015,
EFDC,YB500,SUPERVISION/MANAGEMENT SPECIAL,GAS,1110,05-Apr-17,103700,"1,061.53",CORONA ENERGY RETAIL 4 LTD,COR015,
EFDC,YB500,SUPERVISION/MANAGEMENT SPECIAL,GAS,1110,05-Apr-17,103704,"1,117.61",CORONA ENERGY RETAIL 4 LTD,COR015,
EFDC,YB500,SUPERVISION/MANAGEMENT SPECIAL,GAS,1110,05-Apr-17,103702,"1,387.43",CORONA ENERGY RETAIL 4 LTD,COR015,
EFDC,YB350,SUPERVISION/MANAGEMENT SPECIAL,GAS,1110,05-Apr-17,103715,526.98,CORONA ENERGY RETAIL 4 LTD,COR015,
EFDC,27050,ACCOMMODATION,GAS,1110,05-Apr-17,103690,"2,021.08",CORONA ENERGY RETAIL 4 LTD,COR015,
EFDC,35300,ENVIRONMENTAL OTHER,GAS,1110,05-Apr-17,103709,843.05,CORONA ENERGY RETAIL 4 LTD,COR015,
EFDC,YB620,SUPERVISION/MANAGEMENT SPECIAL,GAS,1110,05-Apr-17,103695,"1,381.68",CORONA ENERGY RETAIL 4 LTD,COR015,
EFDC,35300,ENVIRONMENTAL OTHER,FUEL,2330,05-Apr-17,103570,"2,382.00",CPL PETROLEUM,CPL001,
EFDC,EH150,REGULATORY SERVICES,CRB POLICE CHECK COSTS,0381,05-Apr-17,102737,"1,056.00",DISCLOSURE & BARRING SERVICE,CRB002,
EFDC,CH100,"MUSEUM, HERITAGE & CULTURE",CRB POLICE CHECK COSTS,0381,05-Apr-17,102737,44.00,DISCLOSURE & BARRING SERVICE,CRB002,
EFDC,33080,OTHER ACTIVITIES,LICENCES,3870,05-Apr-17,103144,540.00,FULL CONTROL NETWORKS DISTRIBUTION LTD,FUL002,
EFDC,33080,OTHER ACTIVITIES,LICENCES,3870,05-Apr-17,103144,"3,603.00",FULL CONTROL NETWORKS DISTRIBUTION LTD,FUL002,
EFDC,33080,OTHER ACTIVITIES,EQUIPMENT - MAINTENANCE,3030,05-Apr-17,103144,"5,176.00",FULL CONTROL NETWORKS DISTRIBUTION LTD,FUL002,
EFDC,26200,OTHER SUPPORT SERVICES (HR),BUILDING MAINTENANCE,1010,05-Apr-17,103679,780.00,B B & C FENCING,FEN003,
EFDC,RM100,RESPONSIVE & VOID REPAIRS,BUILDING MAINTENANCE,1010,05-Apr-17,103746,535.00,FIELDWHITE SERVICES LTD,FIE003,
EFDC,RM300,PLANNED & CYCLICAL MAINTENANCE,BUILDING MAINTENANCE,1010,05-Apr-17,104729,"42,100.19",FLOWLINE (BUILDERS) LTD,FLO003,
EFDC,RM100,RESPONSIVE & VOID REPAIRS,BUILDING MAINTENANCE,1010,05-Apr-17,100089,"1,038.26",FLOWLINE (BUILDERS) LTD,FLO003,
EFDC,RM300,PLANNED & CYCLICAL MAINTENANCE,BUILDING MAINTENANCE,1010,05-Apr-17,104730,"20,000.00",FLOWLINE (BUILDERS) LTD,FLO003,
EFDC,78001,OTHER ACTIVITIES,REFUSE REMOVAL,1640,05-Apr-17,103230,555.10,GBN SERVICES LTD,GBN002,
EFDC,35300,ENVIRONMENTAL OTHER,VEHICLE HIRE,2620,05-Apr-17,103198,572.82,GEORGE BROWNS LTD,GEO005,
EFDC,RS301,NORTH WEALD CENTRE,FIXED PLANT MAINTENANCE,1020,05-Apr-17,103536,"2,999.00",S H GOSS & CO LTD,GOS001,
EFDC,HI122,HIGHWAYS,TREE  MAINTENANCE,1070,05-Apr-17,103572,"8,957.12",GRISTWOOD & TOMS LTD,GRI001,
EFDC,OS101,PARKS & GROUNDS,TREE  MAINTENANCE,1070,05-Apr-17,103572,"8,226.32",GRISTWOOD & TOMS LTD,GRI001,
EFDC,YB400,SUPERVISION/MANAGEMENT SPECIAL,TREE  MAINTENANCE,1070,05-Apr-17,103572,"9,462.67",GRISTWOOD & TOMS LTD,GRI001,
EFDC,32220,OTHER SUPPORT SERVICES (HR),AGENCY STAFF,0120,05-Apr-17,103527,"1,304.76",HAYS SPECIALIST RECRUITMENT LTD,HAY011,
EFDC,32220,OTHER SUPPORT SERVICES (HR),AGENCY STAFF,0120,05-Apr-17,103250,"1,106.01",HAYS SPECIALIST RECRUITMENT LTD,HAY011,
EFDC,32220,OTHER SUPPORT SERVICES (HR),AGENCY STAFF,0120,05-Apr-17,103246,"1,106.01",HAYS SPECIALIST RECRUITMENT LTD,HAY011,
EFDC,32220,OTHER SUPPORT SERVICES (HR),AGENCY STAFF,0120,05-Apr-17,103251,504.00,HAYS SPECIALIST RECRUITMENT LTD,HAY011,
EFDC,32220,OTHER SUPPORT SERVICES (HR),AGENCY STAFF,0120,05-Apr-17,103249,504.00,HAYS SPECIALIST RECRUITMENT LTD,HAY011,
EFDC,32220,OTHER SUPPORT SERVICES (HR),AGENCY STAFF,0120,05-Apr-17,103359,"1,090.00",HAYS SPECIALIST RECRUITMENT LTD,HAY011,
EFDC,43310,ENVIRONMENTAL OTHER,RECRUITMENT EXPENSES,0320,05-Apr-17,102727,"2,502.00",HAYMARKET MEDIA GROUP LTD,HAY012,
EFDC,26200,OTHER SUPPORT SERVICES (HR),BUILDING MAINTENANCE,1010,05-Apr-17,104073,650.00,HIGHLINE ROADMARKINGS LTD,HIG006,
EFDC,CAPCM,COMMUNITIES CAPITAL,EQUIPMENT ACQUISITION,C330,05-Apr-17,100496,"3,762.00",JACKSON LIFT SERVICES LIMITED,JAC001,
EFDC,RS301,NORTH WEALD CENTRE,EQUIPMENT - MAINTENANCE,3030,05-Apr-17,103203,"2,025.00",MET ENGINEERING LTD,MET006,
EFDC,36650,OTHER ACTIVITIES,AGENCY STAFF,0120,05-Apr-17,103384,735.28,ADECCO UK LTD,ADE002,
EFDC,32060,OTHER SUPPORT SERVICES (HR),BOOKS & PUBLICATIONS,3350,05-Apr-17,104058,"11,444.76",LEXISNEXIS,LEX003,
EFDC,32115,OTHER SUPPORT SERVICES (HR),CONSULTANTS FEES,3490,05-Apr-17,103293,"1,087.70",LG FUTURES LTD,LGF001,
EFDC,78001,OTHER ACTIVITIES,CONSULTANTS FEES,3490,05-Apr-17,103743,"9,198.51",MEARS LTD,MEA002,
EFDC,32191,OTHER SUPPORT SERVICES (HR),PROFESSIONAL FEES,3420,05-Apr-17,103744,"2,986.35",MEARS LTD,MEA002,
EFDC,33080,OTHER ACTIVITIES,ANNUAL SUPPORT /  LICENSES,3872,05-Apr-17,104077,"10,721.67",ORACLE CORPORATION UK LTD,ORA002,
EFDC,32200,OTHER SUPPORT SERVICES (HR),STOCK ISSUES,3070,05-Apr-17,104075,652.00,CORBEAU PROCUREMENT SUPPLIES LTD,PAP002,
EFDC,YB400,SUPERVISION/MANAGEMENT SPECIAL,OTHER MISCELLANEOUS EXPENSES,3850,05-Apr-17,103269,143.00,G A & D PERRY BUILDING CONTRACTORS,PER005,
EFDC,YB400,SUPERVISION/MANAGEMENT SPECIAL,OTHER MISCELLANEOUS EXPENSES,3850,05-Apr-17,103269,772.00,G A & D PERRY BUILDING CONTRACTORS,PER005,
EFDC,33080,OTHER ACTIVITIES,ANNUAL SUPPORT /  LICENSES,3872,05-Apr-17,103174,"1,010.25",PHOENIX SOFTWARE LTD,PHO002,
EFDC,33080,OTHER ACTIVITIES,ANNUAL SUPPORT /  LICENSES,3872,05-Apr-17,103219,867.80,PHOENIX SOFTWARE LTD,PHO002,
EFDC,33080,OTHER ACTIVITIES,ANNUAL SUPPORT /  LICENSES,3872,05-Apr-17,103588,"11,622.95",PITNEY BOWES SOFTWARE EUROPE LTD,PIT003,
EFDC,26200,OTHER SUPPORT SERVICES (HR),BUILDING MAINTENANCE,1010,05-Apr-17,103955,520.00,PTC SYSTEMS LTD,PTC003,
EFDC,RM300,PLANNED & CYCLICAL MAINTENANCE,BUILDING MAINTENANCE,1010,05-Apr-17,103670,"1,843.80",SCCI ALPHATRACK LTD,SCC003,
EFDC,35009,ENVIRONMENTAL OTHER,EQUIPMENT - MAINTENANCE,3030,05-Apr-17,103194,"3,087.38",P & L SIGNS LTD T/A SIGNS EXPRESS (HARLOW),SIG002,
EFDC,37100,PLANNING OTHER,POSTAGE,3510,05-Apr-17,103597,232.20,ROYAL MAIL GROUP PLC,ROY015,
EFDC,37100,PLANNING OTHER,POSTAGE,3510,05-Apr-17,103201,161.70,ROYAL MAIL GROUP PLC,ROY015,
EFDC,37100,PLANNING OTHER,POSTAGE,3510,05-Apr-17,104074,131.40,ROYAL MAIL GROUP PLC,ROY015,
EFDC,36200,OTHER ACTIVITIES,POSTAGE,3510,05-Apr-17,103597,162.00,ROYAL MAIL GROUP PLC,ROY015,
EFDC,36200,OTHER ACTIVITIES,POSTAGE,3510,05-Apr-17,103201,641.80,ROYAL MAIL GROUP PLC,ROY015,
EFDC,36200,OTHER ACTIVITIES,POSTAGE,3510,05-Apr-17,104074,96.30,ROYAL MAIL GROUP PLC,ROY015,
EFDC,35900,ENVIRONMENTAL OTHER,POSTAGE,3510,05-Apr-17,103597,296.17,ROYAL MAIL GROUP PLC,ROY015,
EFDC,CH110,"MUSEUM, HERITAGE & CULTURE",POSTAGE,3510,05-Apr-17,103597,0.30,ROYAL MAIL GROUP PLC,ROY015,
EFDC,CH110,"MUSEUM, HERITAGE & CULTURE",POSTAGE,3510,05-Apr-17,104074,3.00,ROYAL MAIL GROUP PLC,ROY015,
EFDC,34110,COMMUNITIES SUPPORT SERVICES,POSTAGE,3510,05-Apr-17,103597,7.80,ROYAL MAIL GROUP PLC,ROY015,
EFDC,34110,COMMUNITIES SUPPORT SERVICES,POSTAGE,3510,05-Apr-17,103201,81.90,ROYAL MAIL GROUP PLC,ROY015,
EFDC,34110,COMMUNITIES SUPPORT SERVICES,POSTAGE,3510,05-Apr-17,104074,2.10,ROYAL MAIL GROUP PLC,ROY015,
EFDC,EL100,ELECTIONS,OTHER MISCELLANEOUS EXPENSES,3850,05-Apr-17,103201,33.00,ROYAL MAIL GROUP PLC,ROY015,
EFDC,35900,ENVIRONMENTAL OTHER,POSTAGE,3510,05-Apr-17,104074,719.43,ROYAL MAIL GROUP PLC,ROY015,
EFDC,35900,ENVIRONMENTAL OTHER,POSTAGE,3510,05-Apr-17,103201,267.10,ROYAL MAIL GROUP PLC,ROY015,
EFDC,33055,OTHER ACTIVITIES,POSTAGE,3510,05-Apr-17,103201,242.09,ROYAL MAIL GROUP PLC,ROY015,
EFDC,33055,OTHER ACTIVITIES,POSTAGE,3510,05-Apr-17,103201,"2,606.64",ROYAL MAIL GROUP PLC,ROY015,
EFDC,33055,OTHER ACTIVITIES,POSTAGE,3510,05-Apr-17,103597,296.40,ROYAL MAIL GROUP PLC,ROY015,
EFDC,32030,OTHER SUPPORT SERVICES (HR),POSTAGE,3510,05-Apr-17,103201,72.30,ROYAL MAIL GROUP PLC,ROY015,
EFDC,32030,OTHER SUPPORT SERVICES (HR),POSTAGE,3510,05-Apr-17,103597,39.60,ROYAL MAIL GROUP PLC,ROY015,
EFDC,33075,OTHER ACTIVITIES,POSTAGE,3510,05-Apr-17,103597,905.26,ROYAL MAIL GROUP PLC,ROY015,
EFDC,33075,OTHER ACTIVITIES,POSTAGE,3510,05-Apr-17,103597,"15,532.29",ROYAL MAIL GROUP PLC,ROY015,
EFDC,33075,OTHER ACTIVITIES,POSTAGE,3510,05-Apr-17,103597,450.80,ROYAL MAIL GROUP PLC,ROY015,
EFDC,33075,OTHER ACTIVITIES,POSTAGE,3510,05-Apr-17,103201,114.70,ROYAL MAIL GROUP PLC,ROY015,
EFDC,33075,OTHER ACTIVITIES,POSTAGE,3510,05-Apr-17,104074,"1,303.64",ROYAL MAIL GROUP PLC,ROY015,
EFDC,33055,OTHER ACTIVITIES,POSTAGE,3510,05-Apr-17,104074,234.90,ROYAL MAIL GROUP PLC,ROY015,
EFDC,RE100,ELECTIONS,POSTAGE,3510,05-Apr-17,103597,42.00,ROYAL MAIL GROUP PLC,ROY015,
EFDC,RE100,ELECTIONS,POSTAGE,3510,05-Apr-17,103201,98.40,ROYAL MAIL GROUP PLC,ROY015,
EFDC,32030,OTHER SUPPORT SERVICES (HR),POSTAGE,3510,05-Apr-17,104074,48.90,ROYAL MAIL GROUP PLC,ROY015,
EFDC,RE100,ELECTIONS,POSTAGE,3510,05-Apr-17,104074,95.40,ROYAL MAIL GROUP PLC,ROY015,
EFDC,CAPCM,COMMUNITIES CAPITAL,EQUIPMENT ACQUISITION,C330,05-Apr-17,104081,"6,347.50",RVTV SECURITY LTD,RVT001,
EFDC,CAPCM,COMMUNITIES CAPITAL,WORKS- COUNCIL DWELLINGS,A040,05-Apr-17,104644,"3,494.00",STANNAH LIFT SERVICES LTD,STA019,
EFDC,26200,OTHER SUPPORT SERVICES (HR),BUILDING MAINTENANCE,1010,05-Apr-17,104441,"1,340.00",TANKER AND DRAIN SOLUTIONS LTD,TAN004,
EFDC,26200,OTHER SUPPORT SERVICES (HR),BUILDING MAINTENANCE,1010,05-Apr-17,104442,500.00,TANKER AND DRAIN SOLUTIONS LTD,TAN004,
EFDC,26200,OTHER SUPPORT SERVICES (HR),BUILDING MAINTENANCE,1010,05-Apr-17,104443,800.00,TANKER AND DRAIN SOLUTIONS LTD,TAN004,
EFDC,26200,OTHER SUPPORT SERVICES (HR),BUILDING MAINTENANCE,1010,05-Apr-17,104443,410.00,TANKER AND DRAIN SOLUTIONS LTD,TAN004,
EFDC,26200,OTHER SUPPORT SERVICES (HR),BUILDING MAINTENANCE,1010,05-Apr-17,104440,720.00,TANKER AND DRAIN SOLUTIONS LTD,TAN004,
EFDC,26200,OTHER SUPPORT SERVICES (HR),BUILDING MAINTENANCE,1010,05-Apr-17,104442,"1,480.00",TANKER AND DRAIN SOLUTIONS LTD,TAN004,
EFDC,YB500,SUPERVISION/MANAGEMENT SPECIAL,WATER CHARGES,1410,05-Apr-17,104724,879.50,THAMES WATER UTILITIES LTD,THA001,
EFDC,33080,OTHER ACTIVITIES,STATIONERY,3320,05-Apr-17,103200,577.42,XMA LIMITED,XMA001,
EFDC,78001,OTHER ACTIVITIES,MATERIALS,3080,05-Apr-17,103057,538.70,UNITED TRADING CO LTD,UNI002,
EFDC,CAPCM,COMMUNITIES CAPITAL,WORKS- COUNCIL DWELLINGS,A040,05-Apr-17,104731,"70,283.80",GRACELANDS COMPLETE MAINTENANCE SERVICES LTD,GRA007,
EFDC,CAPCM,COMMUNITIES CAPITAL,VOIDS WORKS,A045,05-Apr-17,103013,259.26,GRACELANDS COMPLETE MAINTENANCE SERVICES LTD,GRA007,
EFDC,CAPCM,COMMUNITIES CAPITAL,WORKS- COUNCIL DWELLINGS,A040,05-Apr-17,104605,"40,023.44",GRACELANDS COMPLETE MAINTENANCE SERVICES LTD,GRA007,
EFDC,CAPCM,COMMUNITIES CAPITAL,WORKS- COUNCIL DWELLINGS,A040,05-Apr-17,104606,"16,485.95",GRACELANDS COMPLETE MAINTENANCE SERVICES LTD,GRA007,
EFDC,RM200,RESPONSIVE & VOID REPAIRS,BUILDING MAINTENANCE,1010,05-Apr-17,103013,981.41,GRACELANDS COMPLETE MAINTENANCE SERVICES LTD,GRA007,
EFDC,CAPCM,COMMUNITIES CAPITAL,WORKS- COUNCIL DWELLINGS,A040,05-Apr-17,104732,"6,419.05",GRACELANDS COMPLETE MAINTENANCE SERVICES LTD,GRA007,
EFDC,CAPCM,COMMUNITIES CAPITAL,WORKS- COUNCIL DWELLINGS,A040,05-Apr-17,104731,"3,240.00",GRACELANDS COMPLETE MAINTENANCE SERVICES LTD,GRA007,
EFDC,CAPCM,COMMUNITIES CAPITAL,WORKS- COUNCIL DWELLINGS,A040,05-Apr-17,104731,"2,264.83",GRACELANDS COMPLETE MAINTENANCE SERVICES LTD,GRA007,
EFDC,RM100,RESPONSIVE & VOID REPAIRS,BUILDING MAINTENANCE,1010,05-Apr-17,104010,787.85,GRACELANDS COMPLETE MAINTENANCE SERVICES LTD,GRA007,
EFDC,RM100,RESPONSIVE & VOID REPAIRS,BUILDING MAINTENANCE,1010,05-Apr-17,104011,688.83,GRACELANDS COMPLETE MAINTENANCE SERVICES LTD,GRA007,
EFDC,CAPCM,COMMUNITIES CAPITAL,WORKS- COUNCIL DWELLINGS,A040,05-Apr-17,104733,"90,256.62",GRACELANDS COMPLETE MAINTENANCE SERVICES LTD,GRA007,
EFDC,CAPCM,COMMUNITIES CAPITAL,WORKS- COUNCIL DWELLINGS,A040,05-Apr-17,104735,"4,274.00",GRACELANDS COMPLETE MAINTENANCE SERVICES LTD,GRA007,
EFDC,CAPCM,COMMUNITIES CAPITAL,WORKS- COUNCIL DWELLINGS,A040,05-Apr-17,104734,"27,917.17",GRACELANDS COMPLETE MAINTENANCE SERVICES LTD,GRA007,
EFDC,RM100,RESPONSIVE & VOID REPAIRS,BUILDING MAINTENANCE,1010,05-Apr-17,104032,560.00,GRACELANDS COMPLETE MAINTENANCE SERVICES LTD,GRA007,
EFDC,RM100,RESPONSIVE & VOID REPAIRS,BUILDING MAINTENANCE,1010,05-Apr-17,104026,720.00,GRACELANDS COMPLETE MAINTENANCE SERVICES LTD,GRA007,
EFDC,RM100,RESPONSIVE & VOID REPAIRS,BUILDING MAINTENANCE,1010,05-Apr-17,103548,"3,016.88",GRACELANDS COMPLETE MAINTENANCE SERVICES LTD,GRA007,
EFDC,RM400,PLANNED & CYCLICAL MAINTENANCE,BUILDING MAINTENANCE,1010,05-Apr-17,104631,"8,278.35",PURDY CONTRACTS LTD,PUR002,
EFDC,GD100,VOLUNTARY SECTOR SUPPORT,GRANTS TO VOLUNTARY ORGS,3710,05-Apr-17,104600,"2,500.00",ESSEX ARROWS BASEBALL CLUB,ESS002,
EFDC,33075,OTHER ACTIVITIES,AGENCY STAFF,0120,05-Apr-17,104003,784.75,MORGAN HUNT UK LTD,MOR001,
EFDC,36500,OTHER ACTIVITIES,AGENCY STAFF,0120,05-Apr-17,104399,900.00,BADENOCH & CLARK,BAD001,
EFDC,RM100,RESPONSIVE & VOID REPAIRS,BUILDING MAINTENANCE,1010,05-Apr-17,103338,896.55,TOWER ASPHALT LTD,TOW001,
EFDC,35300,ENVIRONMENTAL OTHER,AGENCY STAFF,0120,05-Apr-17,103580,"1,016.40",SEWELL STAFFING LTD,SEW001,
EFDC,35300,ENVIRONMENTAL OTHER,AGENCY STAFF,0120,05-Apr-17,104016,"1,121.97",SEWELL STAFFING LTD,SEW001,
EFDC,CH117,HERITAGE LOTTERY FUND,REMOVAL EXPENSES,3830,05-Apr-17,104636,682.00,R & D SCHOFIELD LTD,R&D001,
EFDC,CH117,HERITAGE LOTTERY FUND,REMOVAL EXPENSES,3830,05-Apr-17,104636,"6,200.00",R & D SCHOFIELD LTD,R&D001,
EFDC,GD100,VOLUNTARY SECTOR SUPPORT,GRANTS TO VOLUNTARY ORGS,3710,05-Apr-17,104671,626.00,EPPING UPPER CLAPTON RUGBY FOOTBALL CLUB,UPP001,
EFDC,CAPCM,COMMUNITIES CAPITAL,WORKS- COUNCIL DWELLINGS,A040,05-Apr-17,104725,"1,076.89",ARAN SERVICES LTD,ARA001,
EFDC,CAPCM,COMMUNITIES CAPITAL,VOIDS WORKS,A045,05-Apr-17,103083,850.00,WOODS BUILDING SERVICES LTD,WOO001,
EFDC,32220,OTHER SUPPORT SERVICES (HR),AGENCY STAFF,0120,05-Apr-17,103956,"1,425.85",MACDONALD & COMPANY FREELANCE LTD,MAC003,
EFDC,32220,OTHER SUPPORT SERVICES (HR),AGENCY STAFF,0120,05-Apr-17,104090,"1,422.25",MACDONALD & COMPANY FREELANCE LTD,MAC003,
EFDC,35900,ENVIRONMENTAL OTHER,TRAINING EXPENSES,0310,05-Apr-17,103122,775.00,ALL ROAD LTD,ALL005,
EFDC,RS301,NORTH WEALD CENTRE,OTHER MAINTENANCE,1050,05-Apr-17,103272,844.00,HAWKESFIRE,HAW001,
EFDC,YB200,SUPERVISION/MANAGEMENT SPECIAL,ELECTRICITY,1120,05-Apr-17,103322,16.61,EDF ENERGY,EDF001,
EFDC,PS100,CAR PARKING,ELECTRICITY,1120,05-Apr-17,103322,182.34,EDF ENERGY,EDF001,
EFDC,PS100,CAR PARKING,ELECTRICITY,1120,05-Apr-17,103322,5.93,EDF ENERGY,EDF001,
EFDC,PS100,CAR PARKING,ELECTRICITY,1120,05-Apr-17,103322,183.35,EDF ENERGY,EDF001,
EFDC,PS100,CAR PARKING,ELECTRICITY,1120,05-Apr-17,103322,-5.93,EDF ENERGY,EDF001,
EFDC,YB200,SUPERVISION/MANAGEMENT SPECIAL,ELECTRICITY,1120,05-Apr-17,103322,8.33,EDF ENERGY,EDF001,
EFDC,PS100,CAR PARKING,ELECTRICITY,1120,05-Apr-17,103322,-183.35,EDF ENERGY,EDF001,
EFDC,YB200,SUPERVISION/MANAGEMENT SPECIAL,ELECTRICITY,1120,05-Apr-17,103322,29.86,EDF ENERGY,EDF001,
EFDC,YB110,SUPERVISION/MANAGEMENT SPECIAL,ELECTRICITY,1120,05-Apr-17,103322,12.43,EDF ENERGY,EDF001,
EFDC,PS100,CAR PARKING,ELECTRICITY,1120,05-Apr-17,103322,4.25,EDF ENERGY,EDF001,
EFDC,35009,ENVIRONMENTAL OTHER,ELECTRICITY,1120,05-Apr-17,103322,11.22,EDF ENERGY,EDF001,
EFDC,YB500,SUPERVISION/MANAGEMENT SPECIAL,ELECTRICITY,1120,05-Apr-17,103322,20.37,EDF ENERGY,EDF001,
EFDC,PS100,CAR PARKING,ELECTRICITY,1120,05-Apr-17,103322,6.54,EDF ENERGY,EDF001,
EFDC,YB500,SUPERVISION/MANAGEMENT SPECIAL,ELECTRICITY,1120,05-Apr-17,103322,29.72,EDF ENERGY,EDF001,
EFDC,35009,ENVIRONMENTAL OTHER,ELECTRICITY,1120,05-Apr-17,103322,11.43,EDF ENERGY,EDF001,
EFDC,PS100,CAR PARKING,ELECTRICITY,1120,05-Apr-17,103322,160.83,EDF ENERGY,EDF001,
EFDC,PS100,CAR PARKING,ELECTRICITY,1120,05-Apr-17,103322,121.56,EDF ENERGY,EDF001,
EFDC,PS100,CAR PARKING,ELECTRICITY,1120,05-Apr-17,103322,91.53,EDF ENERGY,EDF001,
EFDC,PS100,CAR PARKING,ELECTRICITY,1120,05-Apr-17,103322,58.47,EDF ENERGY,EDF001,
EFDC,YB110,SUPERVISION/MANAGEMENT SPECIAL,ELECTRICITY,1120,05-Apr-17,103322,5.72,EDF ENERGY,EDF001,
EFDC,PS100,CAR PARKING,ELECTRICITY,1120,05-Apr-17,103322,3.94,EDF ENERGY,EDF001,
EFDC,PS100,CAR PARKING,ELECTRICITY,1120,05-Apr-17,103322,60.77,EDF ENERGY,EDF001,
EFDC,PS100,CAR PARKING,ELECTRICITY,1120,05-Apr-17,103322,5.93,EDF ENERGY,EDF001,
EFDC,PS100,CAR PARKING,ELECTRICITY,1120,05-Apr-17,103322,109.95,EDF ENERGY,EDF001,
EFDC,PS100,CAR PARKING,ELECTRICITY,1120,05-Apr-17,103322,1.95,EDF ENERGY,EDF001,
EFDC,UO120,LAND & PROPERTY,CONSULTANTS FEES,3490,05-Apr-17,104598,"7,800.00",CROSBY LAND LTD,CRO003,
EFDC,32220,OTHER SUPPORT SERVICES (HR),AGENCY STAFF,0120,05-Apr-17,104400,"4,619.00",CAPSTONE PROPERTY RECRUITMENT LTD,CAP001,
EFDC,CAPCM,COMMUNITIES CAPITAL,WORKS,E040,05-Apr-17,104728,"58,145.38",P A FINLAY & COMPANY LTD,FIN003,
EFDC,CAPCM,COMMUNITIES CAPITAL,WORKS,E040,05-Apr-17,104728,"6,514.85",P A FINLAY & COMPANY LTD,FIN003,
EFDC,CAPCM,COMMUNITIES CAPITAL,WORKS,E040,05-Apr-17,104728,"53,801.68",P A FINLAY & COMPANY LTD,FIN003,
EFDC,CAPCM,COMMUNITIES CAPITAL,WORKS,E040,05-Apr-17,104728,"70,821.76",P A FINLAY & COMPANY LTD,FIN003,
EFDC,RM500,OTHER ITEMS,CONSULTANTS FEES,3490,05-Apr-17,103601,927.50,ZENERGI LTD,ZEN001,
EFDC,RM500,OTHER ITEMS,CONSULTANTS FEES,3490,05-Apr-17,103559,"1,212.50",ZENERGI LTD,ZEN001,
EFDC,GD100,VOLUNTARY SECTOR SUPPORT,GRANTS TO VOLUNTARY ORGS,3710,05-Apr-17,104623,"2,176.00",NAZEING COMMON CRICKET CLUB,NAZ002,
EFDC,43310,ENVIRONMENTAL OTHER,AGENCY STAFF,0120,05-Apr-17,103604,"13,049.00",OVE ARUP & PARTNERS LTD,OVE002,
EFDC,RM200,RESPONSIVE & VOID REPAIRS,BUILDING MAINTENANCE,1010,05-Apr-17,103676,"5,922.00",WICKES BUILDING SUPPLIES LTD,WIC004,
EFDC,78001,OTHER ACTIVITIES,MATERIALS,3080,05-Apr-17,103220,"2,272.52",M E DUFFELL LTD,DUF001,
EFDC,DR150,MEMBER ACTIVITIES,MEMBERS COURSES & CONFERENCES,3632,05-Apr-17,103019,656.84,MOSAIC PUBLICITY LTD,MOS001,
EFDC,RS400,"COMMUNITY, HEALTH & WELLBEING",PRINTING - EXTERNAL,3390,05-Apr-17,103336,725.00,GREEN TORNADO,GRE006,
EFDC,CM102,CORPORATE ACTIVITIES,CONSULTANTS FEES,3490,05-Apr-17,103970,"6,025.00",THE CAMPAIGN COMPANY,CAM012,
EFDC,BAL01,EFDC BALANCE SHEET,PLACES FOR PEOPLE LOAN,Z058,05-Apr-17,104531,"600,460.00",PLACES FOR PEOPLE LEISURE MANAGEMENT LTD,PLA005,
EFDC,CAPCM,COMMUNITIES CAPITAL,WORKS- COUNCIL DWELLINGS,A040,05-Apr-17,104595,"5,440.00",W H CONSTRUCTION LTD,CON014,
EFDC,CAPCM,COMMUNITIES CAPITAL,WORKS- COUNCIL DWELLINGS,A040,05-Apr-17,104596,"6,715.00",W H CONSTRUCTION LTD,CON014,
EFDC,33080,OTHER ACTIVITIES,LICENCES,3870,05-Apr-17,104019,"14,630.00",VALUE LICENSING,VAL004,
EFDC,CAPCM,COMMUNITIES CAPITAL,WORKS- COUNCIL DWELLINGS,A040,05-Apr-17,104590,"19,625.87",ANGLIAN BUILDING PRODUCTS,ANG002,
EFDC,CAPNB,NEIGHBOURHOODS CAPITAL,EQUIPMENT ACQUISITION,C330,05-Apr-17,103599,"4,866.80",HARDING BROS ELECTRICAL LTD,HAR045,
EFDC,RM100,RESPONSIVE & VOID REPAIRS,BUILDING MAINTENANCE,1010,05-Apr-17,100429,"1,375.00",JPS TOOL AND ACCESS HIRE LTD,JPS001,
EFDC,PP111,FORWARD PLANNING & ECONOMIC,CONSULTANTS FEES,3490,05-Apr-17,103207,"13,268.00",4 GLOBAL CONSULTING LTD,GLO005,
EFDC,ED100,FORWARD PLANNING & ECONOMIC,PREMISES,1030,05-Apr-17,103555,"3,500.00",MODEL SIGNAGE LTD,MOD003,
EFDC,RM100,RESPONSIVE & VOID REPAIRS,BUILDING MAINTENANCE,1010,05-Apr-17,103565,525.00,DAYSTONE SERVICES LTD,DAY003,
EFDC,YB400,SUPERVISION/MANAGEMENT SPECIAL,TREE  MAINTENANCE,1070,05-Apr-17,103773,300.00,KENDAL TREE SURGERY LTD,KEN004,
EFDC,HI122,HIGHWAYS,TREE  MAINTENANCE,1070,05-Apr-17,103773,825.00,KENDAL TREE SURGERY LTD,KEN004,
EFDC,42310,GOVERNANCE SUPPORT SERVICES,OTHER TRAVEL EXPENSES,2850,11-Apr-17,23760,17.70,EPPING FOREST DISTRICT COUNCIL,EPP002,
EFDC,CY100,SAFER COMMUNITIES,EQUIPMENT - NEW,3010,11-Apr-17,23760,8.28,EPPING FOREST DISTRICT COUNCIL,EPP002,
EFDC,31140,CORPORATE SUPPORT SERVICES,OTHER TRAVEL EXPENSES,2850,11-Apr-17,23760,10.20,EPPING FOREST DISTRICT COUNCIL,EPP002,
EFDC,36650,OTHER ACTIVITIES,OTHER TRAVEL EXPENSES,2850,11-Apr-17,23760,15.90,EPPING FOREST DISTRICT COUNCIL,EPP002,
EFDC,34160,COMMUNITIES SUPPORT SERVICES,OTHER TRAVEL EXPENSES,2850,11-Apr-17,23760,6.58,EPPING FOREST DISTRICT COUNCIL,EPP002,
EFDC,34160,COMMUNITIES SUPPORT SERVICES,OTHER TRAVEL EXPENSES,2850,11-Apr-17,23760,23.10,EPPING FOREST DISTRICT COUNCIL,EPP002,
EFDC,34110,COMMUNITIES SUPPORT SERVICES,OTHER TRAVEL EXPENSES,2850,11-Apr-17,23760,5.60,EPPING FOREST DISTRICT COUNCIL,EPP002,
EFDC,33030,OTHER ACTIVITIES,EQUIPMENT - NEW,3010,11-Apr-17,23760,8.33,EPPING FOREST DISTRICT COUNCIL,EPP002,
EFDC,LT120,LOCAL TAXATION,EQUIPMENT - NEW,3010,11-Apr-17,23760,3.33,EPPING FOREST DISTRICT COUNCIL,EPP002,
EFDC,32030,OTHER SUPPORT SERVICES (HR),TRAINING EXPENSES,0310,11-Apr-17,23760,8.20,EPPING FOREST DISTRICT COUNCIL,EPP002,
EFDC,31140,CORPORATE SUPPORT SERVICES,OTHER TRAVEL EXPENSES,2850,11-Apr-17,23760,6.67,EPPING FOREST DISTRICT COUNCIL,EPP002,
EFDC,32030,OTHER SUPPORT SERVICES (HR),VEHICLE WASHING,2390,11-Apr-17,23760,6.00,EPPING FOREST DISTRICT COUNCIL,EPP002,
EFDC,CY100,SAFER COMMUNITIES,EQUIPMENT - NEW,3010,11-Apr-17,23760,14.99,EPPING FOREST DISTRICT COUNCIL,EPP002,
EFDC,CY100,SAFER COMMUNITIES,EQUIPMENT - NEW,3010,11-Apr-17,23760,9.91,EPPING FOREST DISTRICT COUNCIL,EPP002,
EFDC,35009,ENVIRONMENTAL OTHER,EQUIPMENT - MAINTENANCE,3030,11-Apr-17,23760,13.75,EPPING FOREST DISTRICT COUNCIL,EPP002,
EFDC,33080,OTHER ACTIVITIES,MATERIALS,3080,11-Apr-17,23760,10.83,EPPING FOREST DISTRICT COUNCIL,EPP002,
EFDC,33080,OTHER ACTIVITIES,MATERIALS,3080,11-Apr-17,23760,26.99,EPPING FOREST DISTRICT COUNCIL,EPP002,
EFDC,33080,OTHER ACTIVITIES,SUBSISTENCE EXPENSES,3610,11-Apr-17,23760,13.90,EPPING FOREST DISTRICT COUNCIL,EPP002,
EFDC,32030,OTHER SUPPORT SERVICES (HR),OTHER MISCELLANEOUS EXPENSES,3850,11-Apr-17,23760,2.92,EPPING FOREST DISTRICT COUNCIL,EPP002,
EFDC,DR140,MEMBER ACTIVITIES,OTHER MISCELLANEOUS EXPENSES,3850,11-Apr-17,23760,45.00,EPPING FOREST DISTRICT COUNCIL,EPP002,
EFDC,LA100,LAA POOLED FUNDS,LAA EXPENDITURE,Y100,11-Apr-17,23760,11.61,EPPING FOREST DISTRICT COUNCIL,EPP002,
EFDC,CY100,SAFER COMMUNITIES,EQUIPMENT - NEW,3010,11-Apr-17,23760,3.79,EPPING FOREST DISTRICT COUNCIL,EPP002,
EFDC,36200,OTHER ACTIVITIES,TRAINING EXPENSES,0310,11-Apr-17,23760,8.20,EPPING FOREST DISTRICT COUNCIL,EPP002,
EFDC,32030,OTHER SUPPORT SERVICES (HR),TRAINING EXPENSES,0310,11-Apr-17,23760,8.20,EPPING FOREST DISTRICT COUNCIL,EPP002,
EFDC,32030,OTHER SUPPORT SERVICES (HR),TRAINING EXPENSES,0310,11-Apr-17,23760,10.90,EPPING FOREST DISTRICT COUNCIL,EPP002,
EFDC,32030,OTHER SUPPORT SERVICES (HR),TRAINING EXPENSES,0310,11-Apr-17,23760,29.00,EPPING FOREST DISTRICT COUNCIL,EPP002,
EFDC,CY100,SAFER COMMUNITIES,EQUIPMENT - NEW,3010,11-Apr-17,23760,7.00,EPPING FOREST DISTRICT COUNCIL,EPP002,
EFDC,32030,OTHER SUPPORT SERVICES (HR),TRAINING EXPENSES,0310,11-Apr-17,23760,16.40,EPPING FOREST DISTRICT COUNCIL,EPP002,
EFDC,31140,CORPORATE SUPPORT SERVICES,OTHER TRAVEL EXPENSES,2850,11-Apr-17,23760,16.70,EPPING FOREST DISTRICT COUNCIL,EPP002,
EFDC,UO130,LAND & PROPERTY,PREMISES,1030,11-Apr-17,23760,8.25,EPPING FOREST DISTRICT COUNCIL,EPP002,
EFDC,32030,OTHER SUPPORT SERVICES (HR),VEHICLE WASHING,2390,11-Apr-17,23760,12.00,EPPING FOREST DISTRICT COUNCIL,EPP002,
EFDC,44100,FINANCE SUPPORT SERVICES,OTHER TRAVEL EXPENSES,2850,11-Apr-17,23760,12.00,EPPING FOREST DISTRICT COUNCIL,EPP002,
EFDC,44100,FINANCE SUPPORT SERVICES,OTHER TRAVEL EXPENSES,2850,11-Apr-17,23760,12.00,EPPING FOREST DISTRICT COUNCIL,EPP002,
EFDC,33060,OTHER ACTIVITIES,OTHER TRAVEL EXPENSES,2850,11-Apr-17,23760,6.58,EPPING FOREST DISTRICT COUNCIL,EPP002,
EFDC,33010,OTHER ACTIVITIES,OTHER TRAVEL EXPENSES,2850,11-Apr-17,23760,39.80,EPPING FOREST DISTRICT COUNCIL,EPP002,
EFDC,41100,OTHER ACTIVITIES,OTHER TRAVEL EXPENSES,2850,11-Apr-17,23760,18.75,EPPING FOREST DISTRICT COUNCIL,EPP002,
EFDC,32060,OTHER SUPPORT SERVICES (HR),OTHER TRAVEL EXPENSES,2850,11-Apr-17,23760,10.20,EPPING FOREST DISTRICT COUNCIL,EPP002,
EFDC,33010,OTHER ACTIVITIES,OTHER TRAVEL EXPENSES,2850,11-Apr-17,23760,30.10,EPPING FOREST DISTRICT COUNCIL,EPP002,
EFDC,33060,OTHER ACTIVITIES,OTHER TRAVEL EXPENSES,2850,11-Apr-17,23760,6.09,EPPING FOREST DISTRICT COUNCIL,EPP002,
EFDC,33060,OTHER ACTIVITIES,OTHER TRAVEL EXPENSES,2850,11-Apr-17,23760,20.20,EPPING FOREST DISTRICT COUNCIL,EPP002,
EFDC,33075,OTHER ACTIVITIES,OTHER TRAVEL EXPENSES,2850,11-Apr-17,23760,7.80,EPPING FOREST DISTRICT COUNCIL,EPP002,
EFDC,33080,OTHER ACTIVITIES,OTHER TRAVEL EXPENSES,2850,11-Apr-17,23760,2.34,EPPING FOREST DISTRICT COUNCIL,EPP002,
EFDC,33080,OTHER ACTIVITIES,OTHER TRAVEL EXPENSES,2850,11-Apr-17,23760,12.30,EPPING FOREST DISTRICT COUNCIL,EPP002,
EFDC,33060,OTHER ACTIVITIES,OTHER TRAVEL EXPENSES,2850,11-Apr-17,23760,20.40,EPPING FOREST DISTRICT COUNCIL,EPP002,
EFDC,BAL01,EFDC BALANCE SHEET,HOME ASST GRANT CHARGE ON PROP,Z055,11-Apr-17,23790,"2,060.42",GRACELANDS COMPLETE MAINTENANCE SERVICES LTD,GRA015,
EFDC,BAL01,EFDC BALANCE SHEET,NDR REFUNDS,Z623,11-Apr-17,23780,"1,254.96",CHURCHILL RETIREMENT LIVING LTD,1540P,
EFDC,BAL01,EFDC BALANCE SHEET,HOME ASST GRANT CHARGE ON PROP,Z055,11-Apr-17,23796,"2,195.00",HAINAULT HOME IMPROVEMENTS LTD,HAI002,
EFDC,YB200,SUPERVISION/MANAGEMENT SPECIAL,REMOVAL EXPENSES,3830,11-Apr-17,23770,500.00,MRS P ARIENZO,6751P,
EFDC,YB200,SUPERVISION/MANAGEMENT SPECIAL,CONTRIBUTIONS,3740,11-Apr-17,23770,500.00,MRS P ARIENZO,6751P,
EFDC,YB200,SUPERVISION/MANAGEMENT SPECIAL,COMPENSATION PAYMENTS,3880,11-Apr-17,23770,"1,769.20",MRS P ARIENZO,6751P,
EFDC,BAL01,EFDC BALANCE SHEET,NDR REFUNDS,Z623,11-Apr-17,23803,"2,186.80",LEE VALLEY DEVELOPMENT LTD,6772P,
EFDC,BAL01,EFDC BALANCE SHEET,PROVISION FOR APPEALS EFDC,Z633,11-Apr-17,23776,"8,036.50",MR B MURPHY,6756P,
EFDC,BAL01,EFDC BALANCE SHEET,AIMS,Z211,11-Apr-17,23781,687.50,MR PRATHAPAN RAGHAVAN,6758P,
EFDC,EL100,ELECTIONS,SALARIES,0100,11-Apr-17,23785,"1,100.38",MARK SIMMANCE,6760P,
EFDC,BAL01,EFDC BALANCE SHEET,NDR REFUNDS,Z623,11-Apr-17,23784,"2,740.65",SANTANDER UK PLC,6272P,
EFDC,LT120,LOCAL TAXATION,CONSULTANTS FEES,3490,12-Apr-17,103977,750.00,CAPITA BUSINESS SERVICES LTD,CAP004,
EFDC,LT120,LOCAL TAXATION,CONSULTANTS FEES,3490,12-Apr-17,103977,750.00,CAPITA BUSINESS SERVICES LTD,CAP004,
EFDC,BA100,HOUSING BENEFITS,COMPUTER - OTHER,3570,12-Apr-17,103977,750.00,CAPITA BUSINESS SERVICES LTD,CAP004,
EFDC,DC110,PLANNING REGULATORY SERVICES,PROFESSIONAL FEES,3420,12-Apr-17,105030,"2,362.50",MR R BANWELL,BAN001,
EFDC,32120,OTHER SUPPORT SERVICES (HR),EMPLOYEES - OTHER PAYMENTS,0191,12-Apr-17,105229,206.02,COMPUTERSHARE VOUCHER SERVICES,BUS009,
EFDC,BAL01,EFDC BALANCE SHEET,BUSY BEES,Z606,12-Apr-17,105229,"3,169.47",COMPUTERSHARE VOUCHER SERVICES,BUS009,
EFDC,33080,OTHER ACTIVITIES,ANNUAL SUPPORT /  LICENSES,3872,12-Apr-17,104456,"31,438.88",BYTES SOFTWARE SERVICES LTD,BYT001,
EFDC,33080,OTHER ACTIVITIES,LICENCES,3870,12-Apr-17,104549,574.00,BYTES SOFTWARE SERVICES LTD,BYT001,
EFDC,33080,OTHER ACTIVITIES,EQUIPMENT - MAINTENANCE,3030,12-Apr-17,104953,"3,054.66",BYTES SOFTWARE SERVICES LTD,BYT001,
EFDC,33080,OTHER ACTIVITIES,ANNUAL SUPPORT /  LICENSES,3872,12-Apr-17,104456,"1,889.25",BYTES SOFTWARE SERVICES LTD,BYT001,
EFDC,OS101,PARKS & GROUNDS,TREE  MAINTENANCE,1070,12-Apr-17,104097,"5,750.00",J. CURRY & CO LTD,CUR001,
EFDC,EI131,FORWARD PLANNING & ECONOMIC,CONTRIBUTIONS,3740,12-Apr-17,104100,"3,000.00",J. CURRY & CO LTD,CUR001,
EFDC,EL100,ELECTIONS,OTHER MISCELLANEOUS EXPENSES,3850,12-Apr-17,105233,"70,000.00",DISTRICT RETURNING OFFICERS ACCOUNT,DIS001,
EFDC,RM400,PLANNED & CYCLICAL MAINTENANCE,BUILDING MAINTENANCE,1010,12-Apr-17,105301,447.00,ESSEX LIFT SERVICES LTD,ESS032,
EFDC,RM400,PLANNED & CYCLICAL MAINTENANCE,BUILDING MAINTENANCE,1010,12-Apr-17,105301,447.00,ESSEX LIFT SERVICES LTD,ESS032,
EFDC,26200,OTHER SUPPORT SERVICES (HR),BUILDING MAINTENANCE,1010,12-Apr-17,104171,"4,051.00",B B & C FENCING,FEN003,
EFDC,GD190,VOLUNTARY SECTOR SUPPORT,GROUNDS MAINTENANCE,1040,12-Apr-17,103942,420.00,FIRST DEFENCE PEST CONTROL,FIR010,
EFDC,OS110,PARKS & GROUNDS,GROUNDS MAINTENANCE,1040,12-Apr-17,103942,420.00,FIRST DEFENCE PEST CONTROL,FIR010,
EFDC,RM100,RESPONSIVE & VOID REPAIRS,BUILDING MAINTENANCE,1010,12-Apr-17,104528,"2,019.18",FLOWLINE (BUILDERS) LTD,FLO003,
EFDC,RM100,RESPONSIVE & VOID REPAIRS,BUILDING MAINTENANCE,1010,12-Apr-17,104529,932.79,FLOWLINE (BUILDERS) LTD,FLO003,
EFDC,RM100,RESPONSIVE & VOID REPAIRS,BUILDING MAINTENANCE,1010,12-Apr-17,104517,"4,180.81",FLOWLINE (BUILDERS) LTD,FLO003,
EFDC,CAPCM,COMMUNITIES CAPITAL,WORKS- COUNCIL DWELLINGS,A040,12-Apr-17,105249,"2,055.68",FLOWLINE (BUILDERS) LTD,FLO003,
EFDC,CAPCM,COMMUNITIES CAPITAL,WORKS- COUNCIL DWELLINGS,A040,12-Apr-17,105250,"1,107.16",FLOWLINE (BUILDERS) LTD,FLO003,
EFDC,CAPCM,COMMUNITIES CAPITAL,WORKS- COUNCIL DWELLINGS,A040,12-Apr-17,105251,554.83,FLOWLINE (BUILDERS) LTD,FLO003,
EFDC,RM300,PLANNED & CYCLICAL MAINTENANCE,BUILDING MAINTENANCE,1010,12-Apr-17,105315,"69,221.48",FLOWLINE (BUILDERS) LTD,FLO003,
EFDC,RM100,RESPONSIVE & VOID REPAIRS,BUILDING MAINTENANCE,1010,12-Apr-17,104524,"1,238.28",FLOWLINE (BUILDERS) LTD,FLO003,
EFDC,RM100,RESPONSIVE & VOID REPAIRS,BUILDING MAINTENANCE,1010,12-Apr-17,104530,"1,239.71",FLOWLINE (BUILDERS) LTD,FLO003,
EFDC,RM100,RESPONSIVE & VOID REPAIRS,BUILDING MAINTENANCE,1010,12-Apr-17,104511,800.00,FLOWLINE (BUILDERS) LTD,FLO003,
EFDC,RM100,RESPONSIVE & VOID REPAIRS,BUILDING MAINTENANCE,1010,12-Apr-17,104516,"2,309.75",FLOWLINE (BUILDERS) LTD,FLO003,
EFDC,RM400,PLANNED & CYCLICAL MAINTENANCE,BUILDING MAINTENANCE,1010,12-Apr-17,105259,"6,560.16",HYDRO-X WATER TREATMENT LIMITED,HYD002,
EFDC,27050,ACCOMMODATION,FIXED PLANT MAINTENANCE,1020,12-Apr-17,105256,285.00,HYDRO-X WATER TREATMENT LIMITED,HYD002,
EFDC,RM400,PLANNED & CYCLICAL MAINTENANCE,BUILDING MAINTENANCE,1010,12-Apr-17,105258,"4,164.16",HYDRO-X WATER TREATMENT LIMITED,HYD002,
EFDC,26200,OTHER SUPPORT SERVICES (HR),BUILDING MAINTENANCE,1010,12-Apr-17,105259,357.75,HYDRO-X WATER TREATMENT LIMITED,HYD002,
EFDC,26200,OTHER SUPPORT SERVICES (HR),BUILDING MAINTENANCE,1010,12-Apr-17,105259,238.50,HYDRO-X WATER TREATMENT LIMITED,HYD002,
EFDC,26200,OTHER SUPPORT SERVICES (HR),BUILDING MAINTENANCE,1010,12-Apr-17,105259,238.50,HYDRO-X WATER TREATMENT LIMITED,HYD002,
EFDC,26200,OTHER SUPPORT SERVICES (HR),BUILDING MAINTENANCE,1010,12-Apr-17,105258,69.75,HYDRO-X WATER TREATMENT LIMITED,HYD002,
EFDC,26200,OTHER SUPPORT SERVICES (HR),BUILDING MAINTENANCE,1010,12-Apr-17,105258,46.50,HYDRO-X WATER TREATMENT LIMITED,HYD002,
EFDC,26200,OTHER SUPPORT SERVICES (HR),BUILDING MAINTENANCE,1010,12-Apr-17,105257,69.75,HYDRO-X WATER TREATMENT LIMITED,HYD002,
EFDC,RM400,PLANNED & CYCLICAL MAINTENANCE,BUILDING MAINTENANCE,1010,12-Apr-17,105257,"4,164.16",HYDRO-X WATER TREATMENT LIMITED,HYD002,
EFDC,27050,ACCOMMODATION,FIXED PLANT MAINTENANCE,1020,12-Apr-17,105257,491.50,HYDRO-X WATER TREATMENT LIMITED,HYD002,
EFDC,26200,OTHER SUPPORT SERVICES (HR),BUILDING MAINTENANCE,1010,12-Apr-17,105258,46.50,HYDRO-X WATER TREATMENT LIMITED,HYD002,
EFDC,26200,OTHER SUPPORT SERVICES (HR),BUILDING MAINTENANCE,1010,12-Apr-17,105257,46.50,HYDRO-X WATER TREATMENT LIMITED,HYD002,
EFDC,26200,OTHER SUPPORT SERVICES (HR),BUILDING MAINTENANCE,1010,12-Apr-17,105257,46.50,HYDRO-X WATER TREATMENT LIMITED,HYD002,
EFDC,26200,OTHER SUPPORT SERVICES (HR),BUILDING MAINTENANCE,1010,12-Apr-17,105256,357.75,HYDRO-X WATER TREATMENT LIMITED,HYD002,
EFDC,26200,OTHER SUPPORT SERVICES (HR),BUILDING MAINTENANCE,1010,12-Apr-17,105256,285.00,HYDRO-X WATER TREATMENT LIMITED,HYD002,
EFDC,27050,ACCOMMODATION,FIXED PLANT MAINTENANCE,1020,12-Apr-17,105259,238.50,HYDRO-X WATER TREATMENT LIMITED,HYD002,
EFDC,27050,ACCOMMODATION,FIXED PLANT MAINTENANCE,1020,12-Apr-17,105258,46.50,HYDRO-X WATER TREATMENT LIMITED,HYD002,
EFDC,RM400,PLANNED & CYCLICAL MAINTENANCE,BUILDING MAINTENANCE,1010,12-Apr-17,105256,"2,373.00",HYDRO-X WATER TREATMENT LIMITED,HYD002,
EFDC,78001,OTHER ACTIVITIES,REFUSE REMOVAL,1640,12-Apr-17,103753,752.70,GBN SERVICES LTD,GBN002,
EFDC,32220,OTHER SUPPORT SERVICES (HR),AGENCY STAFF,0120,12-Apr-17,104038,"1,106.00",HAYS SPECIALIST RECRUITMENT LTD,HAY011,
EFDC,32220,OTHER SUPPORT SERVICES (HR),AGENCY STAFF,0120,12-Apr-17,103771,"1,530.77",HAYS SPECIALIST RECRUITMENT LTD,HAY011,
EFDC,32220,OTHER SUPPORT SERVICES (HR),AGENCY STAFF,0120,12-Apr-17,103657,504.00,HAYS SPECIALIST RECRUITMENT LTD,HAY011,
EFDC,32220,OTHER SUPPORT SERVICES (HR),AGENCY STAFF,0120,12-Apr-17,103687,"1,317.36",HAYS SPECIALIST RECRUITMENT LTD,HAY011,
EFDC,CH101,"MUSEUM, HERITAGE & CULTURE",PROFESSIONAL FEES,3420,12-Apr-17,104384,"2,461.87",ACE SECURITY & ELECTRICAL LTD,ACE001,
EFDC,36650,OTHER ACTIVITIES,AGENCY STAFF,0120,12-Apr-17,103988,722.15,ADECCO UK LTD,ADE002,
EFDC,CD110,"COMMUNITY, HEALTH & WELLBEING",ACTIVITIES,3372,12-Apr-17,103947,800.00,ALCOHELP,ALC002,
EFDC,YA300,SUPERVISION/MANAGEMENT GENERAL,BANKING AND CASH COLLECTION,3440,12-Apr-17,104926,"1,733.47",ALLPAY.NET.LIMITED,ALL010,
EFDC,YA300,SUPERVISION/MANAGEMENT GENERAL,BANKING AND CASH COLLECTION,3440,12-Apr-17,104925,"3,268.01",ALLPAY.NET.LIMITED,ALL010,
EFDC,35300,ENVIRONMENTAL OTHER,EQUIPMENT - MAINTENANCE,3030,12-Apr-17,103681,632.00,NOMIX-ENVIRO LTD,NOM001,
EFDC,33080,OTHER ACTIVITIES,ANNUAL SUPPORT /  LICENSES,3872,12-Apr-17,103603,"7,500.00",NORTHGATE PUBLIC SERVICES (UK) LTD,NOR018,
EFDC,33080,OTHER ACTIVITIES,ANNUAL SUPPORT /  LICENSES,3872,12-Apr-17,103568,"4,509.02",NORTHGATE PUBLIC SERVICES (UK) LTD,NOR018,
EFDC,33080,OTHER ACTIVITIES,ANNUAL SUPPORT /  LICENSES,3872,12-Apr-17,103741,"1,000.00",NORTHGATE PUBLIC SERVICES (UK) LTD,NOR018,
EFDC,33080,OTHER ACTIVITIES,ANNUAL SUPPORT /  LICENSES,3872,12-Apr-17,103741,"19,932.49",NORTHGATE PUBLIC SERVICES (UK) LTD,NOR018,
EFDC,33080,OTHER ACTIVITIES,MOBILE PHONE LINE COSTS,3580,12-Apr-17,105264,"4,135.54",O2 (UK) LTD,OTW002,
EFDC,DC110,PLANNING REGULATORY SERVICES,PROFESSIONAL FEES,3420,12-Apr-17,104951,"2,500.00",PHD CHARTERED TOWN PLANNERS,PHD001,
EFDC,OS101,PARKS & GROUNDS,TREE  MAINTENANCE,1070,12-Apr-17,103544,780.00,PRINCIPAL TREES LTD,PRI017,
EFDC,33010,OTHER ACTIVITIES,SUBSCRIPTIONS,3730,12-Apr-17,103377,"3,009.60",SPIKES CAVELL & CO,SPI001,
EFDC,37100,PLANNING OTHER,POSTAGE,3510,12-Apr-17,105110,119.10,ROYAL MAIL GROUP PLC,ROY015,
EFDC,37100,PLANNING OTHER,POSTAGE,3510,12-Apr-17,104614,206.70,ROYAL MAIL GROUP PLC,ROY015,
EFDC,CH110,"MUSEUM, HERITAGE & CULTURE",POSTAGE,3510,12-Apr-17,104614,0.30,ROYAL MAIL GROUP PLC,ROY015,
EFDC,CH110,"MUSEUM, HERITAGE & CULTURE",POSTAGE,3510,12-Apr-17,105110,1.00,ROYAL MAIL GROUP PLC,ROY015,
EFDC,34110,COMMUNITIES SUPPORT SERVICES,POSTAGE,3510,12-Apr-17,105110,2.70,ROYAL MAIL GROUP PLC,ROY015,
EFDC,34110,COMMUNITIES SUPPORT SERVICES,POSTAGE,3510,12-Apr-17,104614,2.70,ROYAL MAIL GROUP PLC,ROY015,
EFDC,EL100,ELECTIONS,OTHER MISCELLANEOUS EXPENSES,3850,12-Apr-17,105110,90.30,ROYAL MAIL GROUP PLC,ROY015,
EFDC,EL100,ELECTIONS,OTHER MISCELLANEOUS EXPENSES,3850,12-Apr-17,105110,"2,828.51",ROYAL MAIL GROUP PLC,ROY015,
EFDC,EL100,ELECTIONS,OTHER MISCELLANEOUS EXPENSES,3850,12-Apr-17,104614,4.50,ROYAL MAIL GROUP PLC,ROY015,
EFDC,33055,OTHER ACTIVITIES,POSTAGE,3510,12-Apr-17,104614,242.10,ROYAL MAIL GROUP PLC,ROY015,
EFDC,36200,OTHER ACTIVITIES,POSTAGE,3510,12-Apr-17,105110,154.50,ROYAL MAIL GROUP PLC,ROY015,
EFDC,36200,OTHER ACTIVITIES,POSTAGE,3510,12-Apr-17,104614,338.10,ROYAL MAIL GROUP PLC,ROY015,
EFDC,35900,ENVIRONMENTAL OTHER,POSTAGE,3510,12-Apr-17,105110,107.40,ROYAL MAIL GROUP PLC,ROY015,
EFDC,35900,ENVIRONMENTAL OTHER,POSTAGE,3510,12-Apr-17,105110,19.72,ROYAL MAIL GROUP PLC,ROY015,
EFDC,35900,ENVIRONMENTAL OTHER,POSTAGE,3510,12-Apr-17,104614,-94.77,ROYAL MAIL GROUP PLC,ROY015,
EFDC,35900,ENVIRONMENTAL OTHER,POSTAGE,3510,12-Apr-17,104614,35.10,ROYAL MAIL GROUP PLC,ROY015,
EFDC,33075,OTHER ACTIVITIES,POSTAGE,3510,12-Apr-17,104614,502.94,ROYAL MAIL GROUP PLC,ROY015,
EFDC,33075,OTHER ACTIVITIES,POSTAGE,3510,12-Apr-17,105110,428.10,ROYAL MAIL GROUP PLC,ROY015,
EFDC,33075,OTHER ACTIVITIES,POSTAGE,3510,12-Apr-17,104614,829.51,ROYAL MAIL GROUP PLC,ROY015,
EFDC,33055,OTHER ACTIVITIES,POSTAGE,3510,12-Apr-17,105110,228.00,ROYAL MAIL GROUP PLC,ROY015,
EFDC,32030,OTHER SUPPORT SERVICES (HR),POSTAGE,3510,12-Apr-17,104614,48.90,ROYAL MAIL GROUP PLC,ROY015,
EFDC,32030,OTHER SUPPORT SERVICES (HR),POSTAGE,3510,12-Apr-17,105110,104.70,ROYAL MAIL GROUP PLC,ROY015,
EFDC,RE100,ELECTIONS,POSTAGE,3510,12-Apr-17,105110,64.20,ROYAL MAIL GROUP PLC,ROY015,
EFDC,RE100,ELECTIONS,POSTAGE,3510,12-Apr-17,104614,55.20,ROYAL MAIL GROUP PLC,ROY015,
EFDC,CAPCM,COMMUNITIES CAPITAL,EQUIPMENT ACQUISITION,C330,12-Apr-17,104603,"1,395.00",RVTV SECURITY LTD,RVT001,
EFDC,CAPCM,COMMUNITIES CAPITAL,CAPITAL SOFTWARE,K340,12-Apr-17,103985,"13,429.60",TUNSTALL HEALTHCARE (UK) LTD,TUN001,
EFDC,CAPCM,COMMUNITIES CAPITAL,EQUIPMENT ACQUISITION,C330,12-Apr-17,103985,"16,413.95",TUNSTALL HEALTHCARE (UK) LTD,TUN001,
EFDC,CAPCM,COMMUNITIES CAPITAL,WORKS- COUNCIL DWELLINGS,A040,12-Apr-17,104651,"1,734.00",STANNAH LIFT SERVICES LTD,STA019,
EFDC,RM100,RESPONSIVE & VOID REPAIRS,BUILDING MAINTENANCE,1010,12-Apr-17,104668,996.00,STANNAH LIFT SERVICES LTD,STA019,
EFDC,33080,OTHER ACTIVITIES,TRAINING EXPENSES,0310,12-Apr-17,103581,"5,850.00",SWITCHSHOP LIMITED,SWI007,
EFDC,PT110,OTHER ACTIVITIES,OTHER MISCELLANEOUS EXPENSES,3850,12-Apr-17,105239,"4,476.00",TRANSPORT TRADING LTD,TRA012,
EFDC,33080,OTHER ACTIVITIES,ANNUAL SUPPORT /  LICENSES,3872,12-Apr-17,103204,"11,181.53",TRICOSTAR SOFTWARE LTD,TRI003,
EFDC,26200,OTHER SUPPORT SERVICES (HR),FIXED PLANT MAINTENANCE,1020,12-Apr-17,103725,"1,006.60",ALLIED MECHANICAL SERVICES LTD,ALL002,
EFDC,26200,OTHER SUPPORT SERVICES (HR),BUILDING MAINTENANCE,1010,12-Apr-17,103725,751.00,ALLIED MECHANICAL SERVICES LTD,ALL002,
EFDC,CAPCM,COMMUNITIES CAPITAL,WORKS- COUNCIL DWELLINGS,A040,12-Apr-17,105316,"13,421.51",GRACELANDS COMPLETE MAINTENANCE SERVICES LTD,GRA007,
EFDC,CAPCM,COMMUNITIES CAPITAL,WORKS- COUNCIL DWELLINGS,A040,12-Apr-17,105317,"74,668.10",GRACELANDS COMPLETE MAINTENANCE SERVICES LTD,GRA007,
EFDC,FD100,LAND DRAINAGE/SEWERAGE,OTHER MAINTENANCE,1050,12-Apr-17,104147,658.88,HUGH PEARL (LAND DRAINAGE) LTD,HUG001,
EFDC,FD100,LAND DRAINAGE/SEWERAGE,OTHER MAINTENANCE,1050,12-Apr-17,104145,"5,430.00",HUGH PEARL (LAND DRAINAGE) LTD,HUG001,
EFDC,RM400,PLANNED & CYCLICAL MAINTENANCE,BUILDING MAINTENANCE,1010,12-Apr-17,105318,"6,792.27",PURDY CONTRACTS LTD,PUR002,
EFDC,RM100,RESPONSIVE & VOID REPAIRS,BUILDING MAINTENANCE,1010,12-Apr-17,105267,"4,043.62",PURDY CONTRACTS LTD,PUR002,
EFDC,26200,OTHER SUPPORT SERVICES (HR),BUILDING MAINTENANCE,1010,12-Apr-17,105306,600.40,PURDY CONTRACTS LTD,PUR002,
EFDC,CAPCM,COMMUNITIES CAPITAL,WORKS- COUNCIL DWELLINGS,A040,12-Apr-17,105319,"48,574.99",M & J SERVICES LTD,SER009,
EFDC,33075,OTHER ACTIVITIES,AGENCY STAFF,0120,12-Apr-17,104418,784.75,MORGAN HUNT UK LTD,MOR001,
EFDC,33075,OTHER ACTIVITIES,AGENCY STAFF,0120,12-Apr-17,105098,790.13,MORGAN HUNT UK LTD,MOR001,
EFDC,36500,OTHER ACTIVITIES,AGENCY STAFF,0120,12-Apr-17,104741,775.00,BADENOCH & CLARK,BAD001,
EFDC,33080,OTHER ACTIVITIES,FIXED NETWORK LINE COSTS,3520,12-Apr-17,103974,"2,952.81",SOLAR COMMUNICATION LIMITED,SOL002,
EFDC,26200,OTHER SUPPORT SERVICES (HR),BUILDING MAINTENANCE,1010,12-Apr-17,104186,915.00,PRMIER TECHNICAL SERVICES GROUP,PRE005,
EFDC,33065,OTHER ACTIVITIES,PROFESSIONAL FEES,3420,12-Apr-17,104458,"16,168.00",BDO LLP,BDO001,
EFDC,RS400,"COMMUNITY, HEALTH & WELLBEING",PRINTING - EXTERNAL,3390,12-Apr-17,104157,538.00,MFP,MFP001,
EFDC,CAPNB,NEIGHBOURHOODS CAPITAL,LEGAL FEES,E140,12-Apr-17,105242,12.00,DAC BEACHCROFT LLP,DAC001,
EFDC,CAPNB,NEIGHBOURHOODS CAPITAL,LEGAL FEES,E140,12-Apr-17,105242,"9,952.22",DAC BEACHCROFT LLP,DAC001,
EFDC,CAPNB,NEIGHBOURHOODS CAPITAL,LEGAL FEES,E140,12-Apr-17,105241,"3,000.00",DAC BEACHCROFT LLP,DAC001,
EFDC,CAPNB,NEIGHBOURHOODS CAPITAL,LEGAL FEES,E140,12-Apr-17,105240,"4,300.00",DAC BEACHCROFT LLP,DAC001,
EFDC,CAPNB,NEIGHBOURHOODS CAPITAL,LEGAL FEES,E140,12-Apr-17,105237,"5,147.06",DAC BEACHCROFT LLP,DAC001,
EFDC,CAPNB,NEIGHBOURHOODS CAPITAL,LEGAL FEES,E140,12-Apr-17,105238,"5,143.45",DAC BEACHCROFT LLP,DAC001,
EFDC,CAPNB,NEIGHBOURHOODS CAPITAL,LEGAL FEES,E140,12-Apr-17,105243,"2,670.00",DAC BEACHCROFT LLP,DAC001,
EFDC,33080,OTHER ACTIVITIES,EQUIPMENT - MAINTENANCE,3030,12-Apr-17,103393,900.00,HAGUE COMPUTER SUPPLIES LIMITED,HAG001,
EFDC,33080,OTHER ACTIVITIES,ANNUAL SUPPORT /  LICENSES,3872,12-Apr-17,103395,715.00,HAGUE COMPUTER SUPPLIES LIMITED,HAG001,
EFDC,CAPCM,COMMUNITIES CAPITAL,WORKS- COUNCIL DWELLINGS,A040,12-Apr-17,105310,"1,082.60",ARAN SERVICES LTD,ARA001,
EFDC,23130,ACCOMMODATION,SECURITY,1650,12-Apr-17,98784,600.00,T.S.S. (TOTAL SECURITY SERVICES) LTD,TSS001,
EFDC,27050,ACCOMMODATION,SECURITY,1650,12-Apr-17,101661,"5,414.04",T.S.S. (TOTAL SECURITY SERVICES) LTD,TSS001,
EFDC,23110,ACCOMMODATION,SECURITY,1650,12-Apr-17,101660,"6,634.54",T.S.S. (TOTAL SECURITY SERVICES) LTD,TSS001,
EFDC,34160,COMMUNITIES SUPPORT SERVICES,PUBLICITY,3360,12-Apr-17,104104,"1,000.00",LINK SUPPORT SERVICES (UK) LTD,LIN001,
EFDC,PP111,FORWARD PLANNING & ECONOMIC,PROFESSIONAL FEES,3420,12-Apr-17,104535,"2,162.50",AECOM,AEC002,
EFDC,35900,ENVIRONMENTAL OTHER,TRAINING EXPENSES,0310,12-Apr-17,104610,580.00,ABC FOOD LAW LTD,ABC001,
EFDC,CAPCM,COMMUNITIES CAPITAL,WORKS,E040,12-Apr-17,105236,"45,410.00",CONISTON LTD,CON004,
EFDC,UO120,LAND & PROPERTY,AGENCY STAFF,0120,12-Apr-17,104747,"2,091.32",CAPSTONE PROPERTY RECRUITMENT LTD,CAP001,
EFDC,CAPNB,NEIGHBOURHOODS CAPITAL,QUANTITY SURVEYORS FEES,E170,12-Apr-17,104989,"1,500.00",RIDGE AND PARTNERS LLP,RID002,
EFDC,CAPNB,NEIGHBOURHOODS CAPITAL,QUANTITY SURVEYORS FEES,E170,12-Apr-17,104988,"1,265.00",RIDGE AND PARTNERS LLP,RID002,
EFDC,CAPNB,NEIGHBOURHOODS CAPITAL,QUANTITY SURVEYORS FEES,E170,12-Apr-17,104987,"2,000.00",RIDGE AND PARTNERS LLP,RID002,
EFDC,RS410,"COMMUNITY, HEALTH & WELLBEING",ACTIVITIES,3372,12-Apr-17,103949,"1,365.00",HIGH BEECH RIDING SCHOOL,HIG002,
EFDC,43310,ENVIRONMENTAL OTHER,LEGAL EXPENSES,3680,12-Apr-17,104704,"1,211.00",BEVAN BRITTAN LLP CLIENT A/C,BEV002,
EFDC,RS301,NORTH WEALD CENTRE,OTHER MAINTENANCE,1050,12-Apr-17,104647,958.00,EAGLE AUTOMATION SYSTEMS LTD,EAG001,
EFDC,CAPCM,COMMUNITIES CAPITAL,WORKS,E040,12-Apr-17,105262,"204,158.86",MULALLEY & CO LTD,MUL003,
EFDC,32180,OTHER SUPPORT SERVICES (HR),AGENCY STAFF,0120,12-Apr-17,104601,"1,067.50",COMMUNITY RESOURCING LTD,COM011,
EFDC,26200,OTHER SUPPORT SERVICES (HR),BUILDING MAINTENANCE,1010,12-Apr-17,105074,"1,484.00",AMTECH GROUP LTD,AMT001,
EFDC,23110,ACCOMMODATION,CLEANING,1630,12-Apr-17,103552,"1,251.51",ATLAS CONTRACTORS LTD,ATL001,
EFDC,CH110,"MUSEUM, HERITAGE & CULTURE",CLEANING,1630,12-Apr-17,103552,488.28,ATLAS CONTRACTORS LTD,ATL001,
EFDC,CH110,"MUSEUM, HERITAGE & CULTURE",CLEANING,1630,12-Apr-17,100035,488.28,ATLAS CONTRACTORS LTD,ATL001,
EFDC,23140,ACCOMMODATION,CLEANING,1630,12-Apr-17,103552,424.67,ATLAS CONTRACTORS LTD,ATL001,
EFDC,23140,ACCOMMODATION,CLEANING,1630,12-Apr-17,100035,424.67,ATLAS CONTRACTORS LTD,ATL001,
EFDC,27050,ACCOMMODATION,CLEANING,1630,12-Apr-17,103552,"7,425.37",ATLAS CONTRACTORS LTD,ATL001,
EFDC,27050,ACCOMMODATION,CLEANING,1630,12-Apr-17,100035,"7,425.37",ATLAS CONTRACTORS LTD,ATL001,
EFDC,23110,ACCOMMODATION,CLEANING,1630,12-Apr-17,100035,"1,251.51",ATLAS CONTRACTORS LTD,ATL001,
EFDC,27060,ACCOMMODATION,CLEANING,1630,12-Apr-17,100035,390.96,ATLAS CONTRACTORS LTD,ATL001,
EFDC,23110,ACCOMMODATION,CLEANING,1630,12-Apr-17,103552,58.57,ATLAS CONTRACTORS LTD,ATL001,
EFDC,23110,ACCOMMODATION,CLEANING,1630,12-Apr-17,100035,58.57,ATLAS CONTRACTORS LTD,ATL001,
EFDC,23130,ACCOMMODATION,CLEANING,1630,12-Apr-17,100035,214.85,ATLAS CONTRACTORS LTD,ATL001,
EFDC,23130,ACCOMMODATION,CLEANING,1630,12-Apr-17,103552,214.85,ATLAS CONTRACTORS LTD,ATL001,
EFDC,27060,ACCOMMODATION,CLEANING,1630,12-Apr-17,103552,390.96,ATLAS CONTRACTORS LTD,ATL001,
EFDC,YA180,SUPERVISION/MANAGEMENT GENERAL,LEGAL EXPENSES,3680,12-Apr-17,105092,"14,962.90",TROWERS & HAMLINS LLP,TRO002,
EFDC,CM102,CORPORATE ACTIVITIES,CONSULTANTS FEES,3490,12-Apr-17,104707,"6,475.00",THE CAMPAIGN COMPANY,CAM012,
EFDC,RS403,"COMMUNITY, HEALTH & WELLBEING",MARKETING & EVENTS,3370,12-Apr-17,103971,"1,235.00",MOJO PROMOTIONS LTD,MOJ001,
EFDC,34110,COMMUNITIES SUPPORT SERVICES,PRINTING - EXTERNAL,3390,12-Apr-17,103971,"1,340.00",MOJO PROMOTIONS LTD,MOJ001,
EFDC,33075,OTHER ACTIVITIES,AGENCY STAFF,0120,12-Apr-17,105230,910.00,BROOKSON (5503A) LTD,BRO020,
EFDC,BA100,HOUSING BENEFITS,COMPUTER - OTHER,3570,12-Apr-17,104213,"21,890.00",VICTORIA SOLUTIONS LTD,VIC002,
EFDC,LT120,LOCAL TAXATION,CONSULTANTS FEES,3490,12-Apr-17,104213,"2,000.00",VICTORIA SOLUTIONS LTD,VIC002,
EFDC,CAPCM,COMMUNITIES CAPITAL,WORKS- COUNCIL DWELLINGS,A040,12-Apr-17,105228,"24,042.78",ANGLIAN BUILDING PRODUCTS,ANG002,
EFDC,CAPNB,NEIGHBOURHOODS CAPITAL,EQUIPMENT ACQUISITION,C330,12-Apr-17,103673,"3,165.94",HARDING BROS ELECTRICAL LTD,HAR045,
EFDC,CAPNB,NEIGHBOURHOODS CAPITAL,WORKS,E040,12-Apr-17,105261,"1,447,780.18",MCLAUGHLIN & HARVEY CONSTRUCTION LTD,MCL003,
EFDC,YD100,"RENTS, RATES TAXES & INSURANCE",WATER CHARGES,1410,12-Apr-17,105231,"1,670.44",CASTLE WATER LTD,CAS001,
EFDC,CAPCM,COMMUNITIES CAPITAL,WORKS- COUNCIL DWELLINGS,A040,13-Apr-17,105314,"1,993.06",EXTERIOR PLAS,EXT001,
EFDC,CAPCM,COMMUNITIES CAPITAL,WORKS- COUNCIL DWELLINGS,A040,13-Apr-17,105314,"31,859.72",EXTERIOR PLAS,EXT001,
EFDC,CAPCM,COMMUNITIES CAPITAL,WORKS- COUNCIL DWELLINGS,A040,13-Apr-17,105314,"18,212.93",EXTERIOR PLAS,EXT001,
EFDC,BAL01,EFDC BALANCE SHEET,SALARIES - UNIONS,Z605,18-Apr-17,23879,"1,536.40",UNISON,UNI001,
EFDC,32140,OTHER SUPPORT SERVICES (HR),COMMISSION,9320,18-Apr-17,23879,-38.41,UNISON,UNI001,
EFDC,RS301,NORTH WEALD CENTRE,FEES & CHARGES,9210,18-Apr-17,23883,750.00,MAITLAND RACING,653P,
EFDC,PH100,PRIVATE SECTOR HOUSING,GRANTS GENERAL,3720,18-Apr-17,23885,"4,990.00",K.J.BATCHELOR,BAT001,
EFDC,BAL01,EFDC BALANCE SHEET,HOME ASST GRANT CHARGE ON PROP,Z055,18-Apr-17,23880,792.00,K.J.BATCHELOR,BAT001,
EFDC,YB200,SUPERVISION/MANAGEMENT SPECIAL,COMPENSATION PAYMENTS,3880,18-Apr-17,23872,"1,000.00",MR A G & MRS S POTTLE,6780P,
EFDC,YB200,SUPERVISION/MANAGEMENT SPECIAL,REMOVAL EXPENSES,3830,18-Apr-17,23872,500.00,MR A G & MRS S POTTLE,6780P,
EFDC,YB200,SUPERVISION/MANAGEMENT SPECIAL,CONTRIBUTIONS,3740,18-Apr-17,23872,500.00,MR A G & MRS S POTTLE,6780P,
EFDC,33080,OTHER ACTIVITIES,EQUIPMENT - MAINTENANCE,3030,19-Apr-17,104008,"9,529.42",AVR INTERNATIONAL LIMITED,AVR001,
EFDC,78001,OTHER ACTIVITIES,MATERIALS,3080,19-Apr-17,102237,637.56,THE BECK COMPANY LTD,BEC001,
EFDC,78001,OTHER ACTIVITIES,MATERIALS,3080,19-Apr-17,104388,550.27,THE BECK COMPANY LTD,BEC001,
EFDC,EI131,FORWARD PLANNING & ECONOMIC,TRAINING EXPENSES,0310,19-Apr-17,105535,800.00,CHELMSFORD & WEST ESSEX TRAINING GROUP,CHE015,
EFDC,TI190,LAND & PROPERTY,LEGAL EXPENSES,3680,19-Apr-17,105102,900.00,DANIEL DOVAR,DOV001,
EFDC,GD190,VOLUNTARY SECTOR SUPPORT,MATERIALS,3080,19-Apr-17,104015,531.00,EARTH ANCHORS LTD,EAR001,
EFDC,35300,ENVIRONMENTAL OTHER,VEHICLE HIRE,2620,19-Apr-17,104931,"4,157.81",ERNEST DOE & SONS LTD,ERN001,
EFDC,35300,ENVIRONMENTAL OTHER,EQUIPMENT - NEW,3010,19-Apr-17,105154,787.24,ERNEST DOE & SONS LTD,ERN001,
EFDC,35300,ENVIRONMENTAL OTHER,VEHICLE HIRE,2620,19-Apr-17,104932,"2,200.00",ERNEST DOE & SONS LTD,ERN001,
EFDC,33010,OTHER ACTIVITIES,SUBSCRIPTIONS,3730,19-Apr-17,103997,"1,450.00",EXPERIAN LTD,EXP002,
EFDC,RM100,RESPONSIVE & VOID REPAIRS,BUILDING MAINTENANCE,1010,19-Apr-17,101196,"1,998.11",EXTERIOR PLAS,EXT001,
EFDC,RM100,RESPONSIVE & VOID REPAIRS,BUILDING MAINTENANCE,1010,19-Apr-17,101197,"1,871.78",EXTERIOR PLAS,EXT001,
EFDC,RM100,RESPONSIVE & VOID REPAIRS,BUILDING MAINTENANCE,1010,19-Apr-17,101198,"2,301.84",EXTERIOR PLAS,EXT001,
EFDC,RM100,RESPONSIVE & VOID REPAIRS,BUILDING MAINTENANCE,1010,19-Apr-17,101199,"2,341.46",EXTERIOR PLAS,EXT001,
EFDC,RM100,RESPONSIVE & VOID REPAIRS,BUILDING MAINTENANCE,1010,19-Apr-17,101200,"1,737.73",EXTERIOR PLAS,EXT001,
EFDC,RM100,RESPONSIVE & VOID REPAIRS,BUILDING MAINTENANCE,1010,19-Apr-17,102229,"2,237.23",EXTERIOR PLAS,EXT001,
EFDC,RM100,RESPONSIVE & VOID REPAIRS,BUILDING MAINTENANCE,1010,19-Apr-17,102232,"1,628.26",EXTERIOR PLAS,EXT001,
EFDC,CAPCM,COMMUNITIES CAPITAL,WORKS- COUNCIL DWELLINGS,A040,19-Apr-17,105541,"31,859.72",EXTERIOR PLAS,EXT001,
EFDC,CAPCM,COMMUNITIES CAPITAL,WORKS- COUNCIL DWELLINGS,A040,19-Apr-17,105541,"18,212.93",EXTERIOR PLAS,EXT001,
EFDC,CAPCM,COMMUNITIES CAPITAL,WORKS- COUNCIL DWELLINGS,A040,19-Apr-17,105541,"1,993.06",EXTERIOR PLAS,EXT001,
EFDC,RM100,RESPONSIVE & VOID REPAIRS,BUILDING MAINTENANCE,1010,19-Apr-17,104523,"1,830.58",FLOWLINE (BUILDERS) LTD,FLO003,
EFDC,CAPCM,COMMUNITIES CAPITAL,WORKS- COUNCIL DWELLINGS,A040,19-Apr-17,105543,850.87,FLOWLINE (BUILDERS) LTD,FLO003,
EFDC,CAPCM,COMMUNITIES CAPITAL,WORKS- COUNCIL DWELLINGS,A040,19-Apr-17,105544,892.16,FLOWLINE (BUILDERS) LTD,FLO003,
EFDC,35008,ENVIRONMENTAL OTHER,FURNITURE - NEW,3040,19-Apr-17,104427,634.00,EMERALD OFFICE SOLUTIONS LTD,EME003,
EFDC,GT100,FORWARD PLANNING & ECONOMIC,ADVERTISING,3820,19-Apr-17,104470,"9,980.00",GATENBY SANDERSON LTD,GAT003,
EFDC,32220,OTHER SUPPORT SERVICES (HR),AGENCY STAFF,0120,19-Apr-17,104098,"1,066.50",HAYS SPECIALIST RECRUITMENT LTD,HAY011,
EFDC,32220,OTHER SUPPORT SERVICES (HR),AGENCY STAFF,0120,19-Apr-17,104099,504.00,HAYS SPECIALIST RECRUITMENT LTD,HAY011,
EFDC,32220,OTHER SUPPORT SERVICES (HR),AGENCY STAFF,0120,19-Apr-17,104101,"1,293.60",HAYS SPECIALIST RECRUITMENT LTD,HAY011,
EFDC,32220,OTHER SUPPORT SERVICES (HR),AGENCY STAFF,0120,19-Apr-17,104113,"1,526.00",HAYS SPECIALIST RECRUITMENT LTD,HAY011,
EFDC,RM400,PLANNED & CYCLICAL MAINTENANCE,BUILDING MAINTENANCE,1010,19-Apr-17,105579,695.00,JACKSON LIFT SERVICES LIMITED,JAC001,
EFDC,RM400,PLANNED & CYCLICAL MAINTENANCE,BUILDING MAINTENANCE,1010,19-Apr-17,105580,695.00,JACKSON LIFT SERVICES LIMITED,JAC001,
EFDC,RM400,PLANNED & CYCLICAL MAINTENANCE,BUILDING MAINTENANCE,1010,19-Apr-17,105302,695.00,JACKSON LIFT SERVICES LIMITED,JAC001,
EFDC,RM400,PLANNED & CYCLICAL MAINTENANCE,BUILDING MAINTENANCE,1010,19-Apr-17,105303,695.00,JACKSON LIFT SERVICES LIMITED,JAC001,
EFDC,RM100,RESPONSIVE & VOID REPAIRS,BUILDING MAINTENANCE,1010,19-Apr-17,104494,"1,548.00",ABBEY MAINTENANCE LTD,ABB009,
EFDC,CAPCM,COMMUNITIES CAPITAL,WORKS- COUNCIL DWELLINGS,A040,19-Apr-17,104739,"2,770.00",ABBEY MAINTENANCE LTD,ABB009,
EFDC,36650,OTHER ACTIVITIES,AGENCY STAFF,0120,19-Apr-17,104382,919.10,ADECCO UK LTD,ADE002,
EFDC,35900,ENVIRONMENTAL OTHER,TRAINING EXPENSES,0310,19-Apr-17,104021,"1,161.00",RICARDO - AEA LTD,AEA001,
EFDC,05245,LEASEHOLDERS ADMIN,BANKING AND CASH COLLECTION,3440,19-Apr-17,104927,657.01,ALLPAY.NET.LIMITED,ALL010,
EFDC,UO120,LAND & PROPERTY,SECURITY,1650,19-Apr-17,104170,"1,863.60",MITIE SECURITY LTD,MIT004,
EFDC,26200,OTHER SUPPORT SERVICES (HR),BUILDING MAINTENANCE,1010,19-Apr-17,103980,646.00,MITIE SECURITY LTD,MIT004,
EFDC,32060,OTHER SUPPORT SERVICES (HR),BOOKS & PUBLICATIONS,3350,19-Apr-17,105081,257.56,LEXISNEXIS,LEX003,
EFDC,32060,OTHER SUPPORT SERVICES (HR),BOOKS & PUBLICATIONS,3350,19-Apr-17,105081,273.49,LEXISNEXIS,LEX003,
EFDC,32060,OTHER SUPPORT SERVICES (HR),BOOKS & PUBLICATIONS,3350,19-Apr-17,105081,7.00,LEXISNEXIS,LEX003,
EFDC,RS301,NORTH WEALD CENTRE,OTHER MAINTENANCE,1050,19-Apr-17,105260,"2,587.50",MCKENZIE ARNOLD GROUP LTD,MCK002,
EFDC,RM200,RESPONSIVE & VOID REPAIRS,BUILDING MAINTENANCE,1010,19-Apr-17,104414,782.16,MEARS LTD,MEA002,
EFDC,RM200,RESPONSIVE & VOID REPAIRS,BUILDING MAINTENANCE,1010,19-Apr-17,104179,"4,321.59",MEARS LTD,MEA002,
EFDC,RM200,RESPONSIVE & VOID REPAIRS,BUILDING MAINTENANCE,1010,19-Apr-17,104413,"9,145.84",MEARS LTD,MEA002,
EFDC,RM200,RESPONSIVE & VOID REPAIRS,BUILDING MAINTENANCE,1010,19-Apr-17,104178,"1,143.12",MEARS LTD,MEA002,
EFDC,RM200,RESPONSIVE & VOID REPAIRS,BUILDING MAINTENANCE,1010,19-Apr-17,104180,"19,427.82",MEARS LTD,MEA002,
EFDC,RM200,RESPONSIVE & VOID REPAIRS,BUILDING MAINTENANCE,1010,19-Apr-17,104181,"5,626.57",MEARS LTD,MEA002,
EFDC,RM200,RESPONSIVE & VOID REPAIRS,BUILDING MAINTENANCE,1010,19-Apr-17,104405,"3,779.45",MEARS LTD,MEA002,
EFDC,RM200,RESPONSIVE & VOID REPAIRS,BUILDING MAINTENANCE,1010,19-Apr-17,104182,"7,784.39",MEARS LTD,MEA002,
EFDC,CAPCM,COMMUNITIES CAPITAL,VOIDS WORKS,A045,19-Apr-17,104180,"2,643.00",MEARS LTD,MEA002,
EFDC,CAPCM,COMMUNITIES CAPITAL,VOIDS WORKS,A045,19-Apr-17,104181,"3,287.87",MEARS LTD,MEA002,
EFDC,CAPCM,COMMUNITIES CAPITAL,VOIDS WORKS,A045,19-Apr-17,104181,"2,046.24",MEARS LTD,MEA002,
EFDC,CAPCM,COMMUNITIES CAPITAL,VOIDS WORKS,A045,19-Apr-17,104180,"4,285.14",MEARS LTD,MEA002,
EFDC,CAPCM,COMMUNITIES CAPITAL,VOIDS WORKS,A045,19-Apr-17,104182,"2,172.92",MEARS LTD,MEA002,
EFDC,CAPCM,COMMUNITIES CAPITAL,VOIDS WORKS,A045,19-Apr-17,104179,"2,035.41",MEARS LTD,MEA002,
EFDC,CAPCM,COMMUNITIES CAPITAL,VOIDS WORKS,A045,19-Apr-17,104405,"2,634.24",MEARS LTD,MEA002,
EFDC,CAPCM,COMMUNITIES CAPITAL,VOIDS WORKS,A045,19-Apr-17,104413,"1,767.54",MEARS LTD,MEA002,
EFDC,CAPCM,COMMUNITIES CAPITAL,VOIDS WORKS,A045,19-Apr-17,104178,199.21,MEARS LTD,MEA002,
EFDC,CAPCM,COMMUNITIES CAPITAL,VOIDS WORKS,A045,19-Apr-17,104405,"4,521.03",MEARS LTD,MEA002,
EFDC,CAPCM,COMMUNITIES CAPITAL,VOIDS WORKS,A045,19-Apr-17,104180,"1,884.70",MEARS LTD,MEA002,
EFDC,CAPCM,COMMUNITIES CAPITAL,VOIDS WORKS,A045,19-Apr-17,104181,"1,899.64",MEARS LTD,MEA002,
EFDC,OS110,PARKS & GROUNDS,GROUNDS MAINTENANCE,1040,19-Apr-17,104102,694.80,NOMIX-ENVIRO LTD,NOM001,
EFDC,LT120,LOCAL TAXATION,CONSULTANTS FEES,3490,19-Apr-17,104187,"3,600.00",NORTHGATE PUBLIC SERVICES (UK) LTD,NOR018,
EFDC,33080,OTHER ACTIVITIES,ANNUAL SUPPORT /  LICENSES,3872,19-Apr-17,104189,"29,358.04",NORTHGATE PUBLIC SERVICES (UK) LTD,NOR018,
EFDC,33080,OTHER ACTIVITIES,ANNUAL SUPPORT /  LICENSES,3872,19-Apr-17,104188,"20,838.63",NORTHGATE PUBLIC SERVICES (UK) LTD,NOR018,
EFDC,34160,COMMUNITIES SUPPORT SERVICES,PUBLICITY,3360,19-Apr-17,104710,687.50,MELISSA V PAGE,PAG004,
EFDC,26200,OTHER SUPPORT SERVICES (HR),BUILDING MAINTENANCE,1010,19-Apr-17,104532,515.60,PARAGON OFFICE SUPPLIES LTD,PAR002,
EFDC,26200,OTHER SUPPORT SERVICES (HR),BUILDING MAINTENANCE,1010,19-Apr-17,104423,306.00,G A & D PERRY BUILDING CONTRACTORS,PER005,
EFDC,26200,OTHER SUPPORT SERVICES (HR),BUILDING MAINTENANCE,1010,19-Apr-17,104423,275.00,G A & D PERRY BUILDING CONTRACTORS,PER005,
EFDC,26200,OTHER SUPPORT SERVICES (HR),BUILDING MAINTENANCE,1010,19-Apr-17,104425,500.00,G A & D PERRY BUILDING CONTRACTORS,PER005,
EFDC,26200,OTHER SUPPORT SERVICES (HR),BUILDING MAINTENANCE,1010,19-Apr-17,104751,50.00,G A & D PERRY BUILDING CONTRACTORS,PER005,
EFDC,26200,OTHER SUPPORT SERVICES (HR),BUILDING MAINTENANCE,1010,19-Apr-17,104425,33.00,G A & D PERRY BUILDING CONTRACTORS,PER005,
EFDC,26200,OTHER SUPPORT SERVICES (HR),BUILDING MAINTENANCE,1010,19-Apr-17,104751,600.00,G A & D PERRY BUILDING CONTRACTORS,PER005,
EFDC,OS101,PARKS & GROUNDS,TREE  MAINTENANCE,1070,19-Apr-17,103721,795.00,PRINCIPAL TREES LTD,PRI017,
EFDC,OS101,PARKS & GROUNDS,TREE  MAINTENANCE,1070,19-Apr-17,103722,"1,455.00",PRINCIPAL TREES LTD,PRI017,
EFDC,CH110,"MUSEUM, HERITAGE & CULTURE",EQUIPMENT - NEW,3010,19-Apr-17,104210,"2,659.00",SECOL LIMITED,SEC006,
EFDC,35300,ENVIRONMENTAL OTHER,FUEL,2330,19-Apr-17,105059,"2,211.27",SHELL U.K. OIL PRODUCTS LIMITED,SHE007,
EFDC,RS301,NORTH WEALD CENTRE,FUEL,2330,19-Apr-17,104975,543.55,SHELL U.K. OIL PRODUCTS LIMITED,SHE007,
EFDC,26200,OTHER SUPPORT SERVICES (HR),BUILDING MAINTENANCE,1010,19-Apr-17,104585,"1,440.00",ROGER AYERS T/A R J SPECIALIST COATINGS,SPE005,
EFDC,26200,OTHER SUPPORT SERVICES (HR),BUILDING MAINTENANCE,1010,19-Apr-17,104584,275.00,ROGER AYERS T/A R J SPECIALIST COATINGS,SPE005,
EFDC,26200,OTHER SUPPORT SERVICES (HR),BUILDING MAINTENANCE,1010,19-Apr-17,104584,300.00,ROGER AYERS T/A R J SPECIALIST COATINGS,SPE005,
EFDC,26200,OTHER SUPPORT SERVICES (HR),BUILDING MAINTENANCE,1010,19-Apr-17,104585,678.40,ROGER AYERS T/A R J SPECIALIST COATINGS,SPE005,
EFDC,32120,OTHER SUPPORT SERVICES (HR),EMPLOYEES - OTHER PAYMENTS,0191,19-Apr-17,103775,510.00,SPECSAVERS OPTICAL SUPERSTORES,SPE016,
EFDC,34160,COMMUNITIES SUPPORT SERVICES,PUBLICITY,3360,19-Apr-17,104185,630.00,P & L SIGNS LTD T/A SIGNS EXPRESS (HARLOW),SIG002,
EFDC,LC100,OTHER ACTIVITIES,DOCUMENT ARCHIVING,3340,19-Apr-17,104641,"1,142.73",RPJ DOCUMENT MANAGEMENT LTD,RPJ001,
EFDC,35009,ENVIRONMENTAL OTHER,EQUIPMENT - MAINTENANCE,3030,19-Apr-17,105069,"3,212.50",RVTV SECURITY LTD,RVT001,
EFDC,CAPRS,RESOURCES CAPITAL,QUANTITY SURVEYORS FEES,B170,19-Apr-17,105082,"7,675.00",STACE LLP,STA012,
EFDC,36850,OTHER ACTIVITIES,RECRUITMENT EXPENSES,0320,19-Apr-17,104489,"1,611.00",TMP WORLDWIDE LTD,TMP001,
EFDC,36500,OTHER ACTIVITIES,RECRUITMENT EXPENSES,0320,19-Apr-17,104488,"1,661.89",TMP WORLDWIDE LTD,TMP001,
EFDC,36900,OTHER ACTIVITIES,RECRUITMENT EXPENSES,0320,19-Apr-17,101839,682.88,TMP WORLDWIDE LTD,TMP001,
EFDC,CAPCM,COMMUNITIES CAPITAL,WORKS- COUNCIL DWELLINGS,A040,19-Apr-17,105601,200.00,VSN ENTERPRISES LTD,VSN001,
EFDC,CAPCM,COMMUNITIES CAPITAL,WORKS- COUNCIL DWELLINGS,A040,19-Apr-17,105601,679.00,VSN ENTERPRISES LTD,VSN001,
EFDC,PH100,PRIVATE SECTOR HOUSING,GRANTS GENERAL,3720,19-Apr-17,105590,598.80,STEVE WOTTON,WOT001,
EFDC,CAPCM,COMMUNITIES CAPITAL,VOIDS WORKS,A045,19-Apr-17,104522,98.44,GRACELANDS COMPLETE MAINTENANCE SERVICES LTD,GRA007,
EFDC,CAPCM,COMMUNITIES CAPITAL,WORKS- COUNCIL DWELLINGS,A040,19-Apr-17,105546,516.79,GRACELANDS COMPLETE MAINTENANCE SERVICES LTD,GRA007,
EFDC,CAPCM,COMMUNITIES CAPITAL,VOIDS WORKS,A045,19-Apr-17,104027,"3,646.48",GRACELANDS COMPLETE MAINTENANCE SERVICES LTD,GRA007,
EFDC,CAPCM,COMMUNITIES CAPITAL,VOIDS WORKS,A045,19-Apr-17,104521,"2,538.59",GRACELANDS COMPLETE MAINTENANCE SERVICES LTD,GRA007,
EFDC,CAPCM,COMMUNITIES CAPITAL,VOIDS WORKS,A045,19-Apr-17,104029,229.29,GRACELANDS COMPLETE MAINTENANCE SERVICES LTD,GRA007,
EFDC,RM200,RESPONSIVE & VOID REPAIRS,BUILDING MAINTENANCE,1010,19-Apr-17,104522,917.77,GRACELANDS COMPLETE MAINTENANCE SERVICES LTD,GRA007,
EFDC,RM200,RESPONSIVE & VOID REPAIRS,BUILDING MAINTENANCE,1010,19-Apr-17,104521,"1,681.33",GRACELANDS COMPLETE MAINTENANCE SERVICES LTD,GRA007,
EFDC,RM200,RESPONSIVE & VOID REPAIRS,BUILDING MAINTENANCE,1010,19-Apr-17,104520,"1,004.30",GRACELANDS COMPLETE MAINTENANCE SERVICES LTD,GRA007,
EFDC,RM200,RESPONSIVE & VOID REPAIRS,BUILDING MAINTENANCE,1010,19-Apr-17,104519,"1,074.18",GRACELANDS COMPLETE MAINTENANCE SERVICES LTD,GRA007,
EFDC,RM200,RESPONSIVE & VOID REPAIRS,BUILDING MAINTENANCE,1010,19-Apr-17,104518,"1,537.00",GRACELANDS COMPLETE MAINTENANCE SERVICES LTD,GRA007,
EFDC,RM200,RESPONSIVE & VOID REPAIRS,BUILDING MAINTENANCE,1010,19-Apr-17,104512,943.78,GRACELANDS COMPLETE MAINTENANCE SERVICES LTD,GRA007,
EFDC,RM200,RESPONSIVE & VOID REPAIRS,BUILDING MAINTENANCE,1010,19-Apr-17,104031,"1,939.20",GRACELANDS COMPLETE MAINTENANCE SERVICES LTD,GRA007,
EFDC,RM200,RESPONSIVE & VOID REPAIRS,BUILDING MAINTENANCE,1010,19-Apr-17,104029,777.04,GRACELANDS COMPLETE MAINTENANCE SERVICES LTD,GRA007,
EFDC,RM200,RESPONSIVE & VOID REPAIRS,BUILDING MAINTENANCE,1010,19-Apr-17,104028,"2,072.90",GRACELANDS COMPLETE MAINTENANCE SERVICES LTD,GRA007,
EFDC,RM200,RESPONSIVE & VOID REPAIRS,BUILDING MAINTENANCE,1010,19-Apr-17,104027,"5,796.91",GRACELANDS COMPLETE MAINTENANCE SERVICES LTD,GRA007,
EFDC,CAPCM,COMMUNITIES CAPITAL,VOIDS WORKS,A045,19-Apr-17,104512,"3,182.25",GRACELANDS COMPLETE MAINTENANCE SERVICES LTD,GRA007,
EFDC,CAPCM,COMMUNITIES CAPITAL,VOIDS WORKS,A045,19-Apr-17,104521,"5,146.36",GRACELANDS COMPLETE MAINTENANCE SERVICES LTD,GRA007,
EFDC,RM200,RESPONSIVE & VOID REPAIRS,BUILDING MAINTENANCE,1010,19-Apr-17,104513,"3,701.06",GRACELANDS COMPLETE MAINTENANCE SERVICES LTD,GRA007,
EFDC,RM200,RESPONSIVE & VOID REPAIRS,BUILDING MAINTENANCE,1010,19-Apr-17,104415,"1,304.00",GRACELANDS COMPLETE MAINTENANCE SERVICES LTD,GRA007,
EFDC,CAPCM,COMMUNITIES CAPITAL,VOIDS WORKS,A045,19-Apr-17,104027,"2,583.14",GRACELANDS COMPLETE MAINTENANCE SERVICES LTD,GRA007,
EFDC,CAPCM,COMMUNITIES CAPITAL,VOIDS WORKS,A045,19-Apr-17,104027,"4,713.85",GRACELANDS COMPLETE MAINTENANCE SERVICES LTD,GRA007,
EFDC,CAPCM,COMMUNITIES CAPITAL,VOIDS WORKS,A045,19-Apr-17,104028,"1,215.90",GRACELANDS COMPLETE MAINTENANCE SERVICES LTD,GRA007,
EFDC,CAPCM,COMMUNITIES CAPITAL,VOIDS WORKS,A045,19-Apr-17,104028,"2,240.79",GRACELANDS COMPLETE MAINTENANCE SERVICES LTD,GRA007,
EFDC,CAPCM,COMMUNITIES CAPITAL,VOIDS WORKS,A045,19-Apr-17,104512,"1,336.96",GRACELANDS COMPLETE MAINTENANCE SERVICES LTD,GRA007,
EFDC,CAPCM,COMMUNITIES CAPITAL,VOIDS WORKS,A045,19-Apr-17,104513,"1,275.48",GRACELANDS COMPLETE MAINTENANCE SERVICES LTD,GRA007,
EFDC,CAPCM,COMMUNITIES CAPITAL,VOIDS WORKS,A045,19-Apr-17,104513,"3,477.19",GRACELANDS COMPLETE MAINTENANCE SERVICES LTD,GRA007,
EFDC,CAPCM,COMMUNITIES CAPITAL,VOIDS WORKS,A045,19-Apr-17,104518,379.05,GRACELANDS COMPLETE MAINTENANCE SERVICES LTD,GRA007,
EFDC,CAPCM,COMMUNITIES CAPITAL,VOIDS WORKS,A045,19-Apr-17,104519,299.90,GRACELANDS COMPLETE MAINTENANCE SERVICES LTD,GRA007,
EFDC,CAPCM,COMMUNITIES CAPITAL,VOIDS WORKS,A045,19-Apr-17,104520,"2,555.46",GRACELANDS COMPLETE MAINTENANCE SERVICES LTD,GRA007,
EFDC,CAPCM,COMMUNITIES CAPITAL,VOIDS WORKS,A045,19-Apr-17,104520,"5,213.55",GRACELANDS COMPLETE MAINTENANCE SERVICES LTD,GRA007,
EFDC,CAPCM,COMMUNITIES CAPITAL,VOIDS WORKS,A045,19-Apr-17,104520,"2,580.16",GRACELANDS COMPLETE MAINTENANCE SERVICES LTD,GRA007,
EFDC,CAPCM,COMMUNITIES CAPITAL,VOIDS WORKS,A045,19-Apr-17,104521,"1,741.41",GRACELANDS COMPLETE MAINTENANCE SERVICES LTD,GRA007,
EFDC,CAPCM,COMMUNITIES CAPITAL,VOIDS WORKS,A045,19-Apr-17,104027,"1,976.46",GRACELANDS COMPLETE MAINTENANCE SERVICES LTD,GRA007,
EFDC,CAPCM,COMMUNITIES CAPITAL,WORKS- COUNCIL DWELLINGS,A040,19-Apr-17,104703,584.90,GRACELANDS COMPLETE MAINTENANCE SERVICES LTD,GRA007,
EFDC,OS110,PARKS & GROUNDS,GROUNDS MAINTENANCE,1040,19-Apr-17,105547,585.48,HUGH PEARL (LAND DRAINAGE) LTD,HUG001,
EFDC,FD100,LAND DRAINAGE/SEWERAGE,HIGHWAYS CONTRACTORS,4310,19-Apr-17,104567,836.00,HUGH PEARL (LAND DRAINAGE) LTD,HUG001,
EFDC,35300,ENVIRONMENTAL OTHER,MATERIALS,3080,19-Apr-17,104566,503.00,MATTHEW'S PLANTS,MAT001,
EFDC,78001,OTHER ACTIVITIES,MATERIALS,3080,19-Apr-17,104714,"1,670.80",CRANBROOK ELECTRICS,CRA001,
EFDC,78001,OTHER ACTIVITIES,MATERIALS,3080,19-Apr-17,104718,"1,074.90",CRANBROOK ELECTRICS,CRA001,
EFDC,EI131,FORWARD PLANNING & ECONOMIC,CONTRIBUTIONS,3740,19-Apr-17,104679,"4,000.00",ESSEX WILDLIFE TRUST LTD,ESS025,
EFDC,CAPCM,COMMUNITIES CAPITAL,WORKS- COUNCIL DWELLINGS,A040,19-Apr-17,105556,"7,720.83",TOWER ASPHALT LTD,TOW001,
EFDC,26200,OTHER SUPPORT SERVICES (HR),BUILDING MAINTENANCE,1010,19-Apr-17,105556,"7,720.83",TOWER ASPHALT LTD,TOW001,
EFDC,BAL01,EFDC BALANCE SHEET,TUSKER CAR SCHEME,Z631,19-Apr-17,105587,"-1,980.31",TUSKERDIRECT LTD,TUS002,
EFDC,BAL01,EFDC BALANCE SHEET,TUSKER CAR SCHEME,Z631,19-Apr-17,105587,"3,960.61",TUSKERDIRECT LTD,TUS002,
EFDC,BAL01,EFDC BALANCE SHEET,TUSKER CAR SCHEME,Z631,19-Apr-17,105587,"3,126.86",TUSKERDIRECT LTD,TUS002,
EFDC,BAL01,EFDC BALANCE SHEET,TUSKER CAR SCHEME,Z631,19-Apr-17,105587,"1,397.32",TUSKERDIRECT LTD,TUS002,
EFDC,37500,PLANNING OTHER,AGENCY STAFF,0120,19-Apr-17,104613,"1,280.00",SAFFRON BUILDING CONSULTANCY,SAF004,
EFDC,34110,COMMUNITIES SUPPORT SERVICES,PRINTING - EXTERNAL,3390,19-Apr-17,104159,"1,425.00",MFP,MFP001,
EFDC,CAPNB,NEIGHBOURHOODS CAPITAL,SEC 278 CONSULTANCY WORK,L049,19-Apr-17,105083,"2,500.00",WYG ENVIRONMENT PLANNING TRANSPORT LTD,WYG001,
EFDC,CAPCM,COMMUNITIES CAPITAL,WORKS- COUNCIL DWELLINGS,A040,19-Apr-17,103994,"1,124.00",WOODS BUILDING SERVICES LTD,WOO001,
EFDC,CAPCM,COMMUNITIES CAPITAL,VOIDS WORKS,A045,19-Apr-17,103155,970.00,WOODS BUILDING SERVICES LTD,WOO001,
EFDC,YB500,SUPERVISION/MANAGEMENT SPECIAL,REFUSE REMOVAL,1640,19-Apr-17,105529,10.68,BIFFA MUNICIPAL LTD,BIF001,
EFDC,YB620,SUPERVISION/MANAGEMENT SPECIAL,REFUSE REMOVAL,1640,19-Apr-17,105529,10.68,BIFFA MUNICIPAL LTD,BIF001,
EFDC,27150,"COMMUNITY, HEALTH & WELLBEING",REFUSE REMOVAL,1640,19-Apr-17,105529,10.68,BIFFA MUNICIPAL LTD,BIF001,
EFDC,YB400,SUPERVISION/MANAGEMENT SPECIAL,REFUSE REMOVAL,1640,19-Apr-17,105529,923.40,BIFFA MUNICIPAL LTD,BIF001,
EFDC,23110,ACCOMMODATION,REFUSE REMOVAL,1640,19-Apr-17,105529,10.68,BIFFA MUNICIPAL LTD,BIF001,
EFDC,WC100,WASTE MANAGEMENT,EQUIPMENT - MAINTENANCE,3030,19-Apr-17,105529,"2,715.51",BIFFA MUNICIPAL LTD,BIF001,
EFDC,WC200,WASTE MANAGEMENT,EQUIPMENT - NEW,3010,19-Apr-17,105529,"13,541.00",BIFFA MUNICIPAL LTD,BIF001,
EFDC,WC200,WASTE MANAGEMENT,CLEANSING CONTRACTORS,4320,19-Apr-17,105529,-200.00,BIFFA MUNICIPAL LTD,BIF001,
EFDC,WC200,WASTE MANAGEMENT,CLEANSING CONTRACTORS,4320,19-Apr-17,105529,"5,720.98",BIFFA MUNICIPAL LTD,BIF001,
EFDC,23140,ACCOMMODATION,REFUSE REMOVAL,1640,19-Apr-17,105529,21.36,BIFFA MUNICIPAL LTD,BIF001,
EFDC,WC300,WASTE MANAGEMENT,CLEANSING CONTRACTORS,4320,19-Apr-17,105529,"1,225.00",BIFFA MUNICIPAL LTD,BIF001,
EFDC,27110,ACCOMMODATION,REFUSE REMOVAL,1640,19-Apr-17,105529,10.68,BIFFA MUNICIPAL LTD,BIF001,
EFDC,PS100,CAR PARKING,CLEANSING CONTRACTORS,4320,19-Apr-17,105529,-284.17,BIFFA MUNICIPAL LTD,BIF001,
EFDC,WC102,WASTE MANAGEMENT,CLEANSING CONTRACTORS,4320,19-Apr-17,105529,"1,020.12",BIFFA MUNICIPAL LTD,BIF001,
EFDC,27050,ACCOMMODATION,REFUSE REMOVAL,1640,19-Apr-17,105529,416.52,BIFFA MUNICIPAL LTD,BIF001,
EFDC,WC100,WASTE MANAGEMENT,CLEANSING CONTRACTORS,4320,19-Apr-17,105529,"7,143.77",BIFFA MUNICIPAL LTD,BIF001,
EFDC,SC100,WASTE MANAGEMENT,CLEANSING CONTRACTORS,4320,19-Apr-17,105529,173.86,BIFFA MUNICIPAL LTD,BIF001,
EFDC,OS100,PARKS & GROUNDS,GROUNDS MAINTENANCE,1040,19-Apr-17,105529,75.68,BIFFA MUNICIPAL LTD,BIF001,
EFDC,PS100,CAR PARKING,OTHER MAINTENANCE,1050,19-Apr-17,105529,25.23,BIFFA MUNICIPAL LTD,BIF001,
EFDC,GD190,VOLUNTARY SECTOR SUPPORT,GROUNDS MAINTENANCE,1040,19-Apr-17,105529,75.68,BIFFA MUNICIPAL LTD,BIF001,
EFDC,RS301,NORTH WEALD CENTRE,RENTS,9410,19-Apr-17,105529,-600.00,BIFFA MUNICIPAL LTD,BIF001,
EFDC,RS410,"COMMUNITY, HEALTH & WELLBEING",ACTIVITIES,3372,19-Apr-17,105537,"1,595.00",ENJOY FITNESS,ENJ001,
EFDC,23110,ACCOMMODATION,ELECTRICITY,1120,19-Apr-17,105169,0.49,EDF ENERGY,EDF001,
EFDC,RS302,NORTH WEALD CENTRE,ELECTRICITY,1120,19-Apr-17,105168,"5,607.84",EDF ENERGY,EDF001,
EFDC,27050,ACCOMMODATION,ELECTRICITY,1120,19-Apr-17,105162,"6,804.69",EDF ENERGY,EDF001,
EFDC,27050,ACCOMMODATION,ELECTRICITY,1120,19-Apr-17,105163,"7,182.50",EDF ENERGY,EDF001,
EFDC,27050,ACCOMMODATION,ELECTRICITY,1120,19-Apr-17,105164,"6,698.86",EDF ENERGY,EDF001,
EFDC,27050,ACCOMMODATION,ELECTRICITY,1120,19-Apr-17,105167,"6,866.12",EDF ENERGY,EDF001,
EFDC,27050,ACCOMMODATION,ELECTRICITY,1120,19-Apr-17,105165,"7,457.03",EDF ENERGY,EDF001,
EFDC,27050,ACCOMMODATION,ELECTRICITY,1120,19-Apr-17,105166,"6,431.49",EDF ENERGY,EDF001,
EFDC,23110,ACCOMMODATION,ELECTRICITY,1120,19-Apr-17,105169,"1,317.06",EDF ENERGY,EDF001,
EFDC,26200,OTHER SUPPORT SERVICES (HR),BUILDING MAINTENANCE,1010,19-Apr-17,104091,"1,328.00",SAVILLE STAINLESS,SAV001,
EFDC,RS410,"COMMUNITY, HEALTH & WELLBEING",ACTIVITIES,3372,19-Apr-17,104661,"1,750.00",COLEBROOK ROYALS FC,COL023,
EFDC,CH118,"MUSEUM, HERITAGE & CULTURE",PROFESSIONAL FEES,3420,19-Apr-17,105276,"5,900.00",WINCHWORTH SHERWOOD,WIN005,
EFDC,26200,OTHER SUPPORT SERVICES (HR),BUILDING MAINTENANCE,1010,19-Apr-17,104454,920.00,RDM ENVIRONMENTAL SOLUTIONS LLP,RDM001,
EFDC,26200,OTHER SUPPORT SERVICES (HR),BUILDING MAINTENANCE,1010,19-Apr-17,104453,965.00,RDM ENVIRONMENTAL SOLUTIONS LLP,RDM001,
EFDC,CAPCM,COMMUNITIES CAPITAL,WORKS,E040,19-Apr-17,105595,"69,749.22",P A FINLAY & COMPANY LTD,FIN003,
EFDC,CAPCM,COMMUNITIES CAPITAL,WORKS,E040,19-Apr-17,105595,"76,596.84",P A FINLAY & COMPANY LTD,FIN003,
EFDC,CAPCM,COMMUNITIES CAPITAL,WORKS,E040,19-Apr-17,105595,"25,237.48",P A FINLAY & COMPANY LTD,FIN003,
EFDC,CAPCM,COMMUNITIES CAPITAL,WORKS,E040,19-Apr-17,105595,"127,313.36",P A FINLAY & COMPANY LTD,FIN003,
EFDC,32170,OTHER SUPPORT SERVICES (HR),EQUIPMENT - NEW,3010,19-Apr-17,103749,541.44,CDW LTD,CDW001,
EFDC,32115,OTHER SUPPORT SERVICES (HR),CONSULTANTS FEES,3490,19-Apr-17,104547,"2,609.00",THE KNOWLEDGE ACADEMY LTD,KNO001,
EFDC,32180,OTHER SUPPORT SERVICES (HR),AGENCY STAFF,0120,19-Apr-17,105121,"1,098.50",COMMUNITY RESOURCING LTD,COM011,
EFDC,PP111,FORWARD PLANNING & ECONOMIC,PROFESSIONAL FEES,3420,19-Apr-17,105554,"24,860.25",OVE ARUP & PARTNERS LTD,OVE002,
EFDC,78001,OTHER ACTIVITIES,MATERIALS,3080,19-Apr-17,104023,518.38,M E DUFFELL LTD,DUF001,
EFDC,33060,OTHER ACTIVITIES,EQUIPMENT - NEW,3010,19-Apr-17,104006,"1,874.03",KINGSFIELD COMPUTER PRODUCTS LTD,KIN004,
EFDC,YA140,SUPERVISION/MANAGEMENT GENERAL,COMPUTER - OTHER,3570,19-Apr-17,104006,"2,016.34",KINGSFIELD COMPUTER PRODUCTS LTD,KIN004,
EFDC,33080,OTHER ACTIVITIES,ANNUAL SUPPORT /  LICENSES,3872,19-Apr-17,104435,"4,080.00",CHERWELL SOFTWARE LTD,CHE009,
EFDC,EL100,ELECTIONS,BUILDING MAINTENANCE,1010,19-Apr-17,105594,"1,100.38",MARK SIMMANCE,SIM004,
EFDC,CAPRS,RESOURCES CAPITAL,CAPITAL SOFTWARE,K340,19-Apr-17,104024,"6,000.00",COVALENT SOFTWARE LTD,COV001,
EFDC,33080,OTHER ACTIVITIES,ANNUAL SUPPORT /  LICENSES,3872,19-Apr-17,104024,"1,350.00",COVALENT SOFTWARE LTD,COV001,
EFDC,EI131,FORWARD PLANNING & ECONOMIC,EQUIPMENT - NEW,3010,19-Apr-17,103591,"1,495.27",HABITAT AID LIMITED,HAB001,
EFDC,ED100,FORWARD PLANNING & ECONOMIC,GRANTS TO VOLUNTARY ORGS,3710,20-Apr-17,23503,610.00,CHINGFORD AND WOODFORD AIKIDO CLUB,6686P,
EFDC,PH100,PRIVATE SECTOR HOUSING,GRANTS GENERAL,3720,25-Apr-17,23969,"4,996.00",STANNAH LIFT SERVICES LTD,STA002,
EFDC,BAL01,EFDC BALANCE SHEET,NDR REFUNDS,Z623,25-Apr-17,23939,561.00,JT FLOORING SUPPLIES,3863P,
EFDC,TO100,LAND & PROPERTY,LICENSES,2360,25-Apr-17,23951,"2,160.00",POST OFFICE LTD,5023P,
EFDC,BAL01,EFDC BALANCE SHEET,HOUSING RENT REFUNDS,Z613,25-Apr-17,23973,846.30,MR S CHILVERS,6787P,
EFDC,BAL01,EFDC BALANCE SHEET,NDR REFUNDS,Z623,25-Apr-17,23942,"3,322.53",CLEMENTS AGENCY LIMITED,6788P,
EFDC,BAL01,EFDC BALANCE SHEET,SUNDRY DEBTORS (OTHER),Z208,25-Apr-17,23947,650.00,H & B LETTINGS,6790P,
EFDC,PH100,PRIVATE SECTOR HOUSING,GRANTS GENERAL,3720,25-Apr-17,23949,"14,500.00",NEIL WHISTON BUILDING SERVICES,NEI001,
EFDC,YB200,SUPERVISION/MANAGEMENT SPECIAL,COMPENSATION PAYMENTS,3880,25-Apr-17,23955,"1,000.00",MISS KERRY JANE ROWE,6796P,
EFDC,YB200,SUPERVISION/MANAGEMENT SPECIAL,REMOVAL EXPENSES,3830,25-Apr-17,23955,500.00,MISS KERRY JANE ROWE,6796P,
EFDC,YB200,SUPERVISION/MANAGEMENT SPECIAL,CONTRIBUTIONS,3740,25-Apr-17,23955,500.00,MISS KERRY JANE ROWE,6796P,
EFDC,BAL01,EFDC BALANCE SHEET,SUNDRY DEBTORS (OTHER),Z208,25-Apr-17,23959,"1,100.00",MR MATT TALLON,6799P,
EFDC,33080,OTHER ACTIVITIES,FIXED NETWORK LINE COSTS,3520,26-Apr-17,105981,"12,066.30",BRITISH TELECOMMUNICATIONS PLC,BRI002,
EFDC,33080,OTHER ACTIVITIES,EQUIPMENT - HIRED,3020,26-Apr-17,104990,"1,480.79",CANON (UK) LTD,CAN004,
EFDC,32200,OTHER SUPPORT SERVICES (HR),EQUIPMENT - HIRED,3020,26-Apr-17,104991,"3,550.01",CANON (UK) LTD,CAN004,
EFDC,33080,OTHER ACTIVITIES,ANNUAL SUPPORT /  LICENSES,3872,26-Apr-17,105282,"7,500.00",CAPITA BUSINESS SERVICES LTD,CAP004,
EFDC,33075,OTHER ACTIVITIES,LICENCES,3870,26-Apr-17,104622,975.00,CAPITA BUSINESS SERVICES LTD,CAP004,
EFDC,33080,OTHER ACTIVITIES,ANNUAL SUPPORT /  LICENSES,3872,26-Apr-17,105282,"33,000.00",CAPITA BUSINESS SERVICES LTD,CAP004,
EFDC,33080,OTHER ACTIVITIES,ANNUAL SUPPORT /  LICENSES,3872,26-Apr-17,105282,"49,004.00",CAPITA BUSINESS SERVICES LTD,CAP004,
EFDC,33080,OTHER ACTIVITIES,ANNUAL SUPPORT /  LICENSES,3872,26-Apr-17,105987,"12,973.98",CAPITA BUSINESS SERVICES LTD,CAP004,
EFDC,26200,OTHER SUPPORT SERVICES (HR),BUILDING MAINTENANCE,1010,26-Apr-17,104551,520.54,CHELMSFORD SAFETY SUPPLIES LTD,CHE020,
EFDC,26200,OTHER SUPPORT SERVICES (HR),BUILDING MAINTENANCE,1010,26-Apr-17,104551,82.64,CHELMSFORD SAFETY SUPPLIES LTD,CHE020,
EFDC,LT120,LOCAL TAXATION,SUBSCRIPTIONS,3730,26-Apr-17,105908,"2,110.00",CIPFA BUSINESS LTD,CIP005,
EFDC,33080,OTHER ACTIVITIES,EQUIPMENT - MAINTENANCE,3030,26-Apr-17,105070,841.54,BYTES SOFTWARE SERVICES LTD,BYT001,
EFDC,26200,OTHER SUPPORT SERVICES (HR),FIXED PLANT MAINTENANCE,1020,26-Apr-17,104579,651.46,EDMUNDSON ELECTRICAL LTD,EDM001,
EFDC,26200,OTHER SUPPORT SERVICES (HR),FIXED PLANT MAINTENANCE,1020,26-Apr-17,104948,"5,775.00",CTL AUDIOVISUAL SERVICES LTD,CTL001,
EFDC,EL100,ELECTIONS,OTHER MISCELLANEOUS EXPENSES,3850,26-Apr-17,106021,"100,000.00",DISTRICT RETURNING OFFICERS ACCOUNT,DIS001,
EFDC,YB140,SUPERVISION/MANAGEMENT SPECIAL,SEWAGE & ENVIRONMENTAL SERVICE,1430,26-Apr-17,104398,"7,182.00",ENVIRONMENT AGENCY,ENV008,
EFDC,EH112,LAND DRAINAGE/SEWERAGE,OTHER MAINTENANCE,1050,26-Apr-17,104459,"1,814.50",ENVIRONMENT AGENCY,ENV008,
EFDC,RM400,PLANNED & CYCLICAL MAINTENANCE,BUILDING MAINTENANCE,1010,26-Apr-17,106014,236.87,ESSEX LIFT SERVICES LTD,ESS032,
EFDC,RM400,PLANNED & CYCLICAL MAINTENANCE,BUILDING MAINTENANCE,1010,26-Apr-17,106014,236.86,ESSEX LIFT SERVICES LTD,ESS032,
EFDC,RM400,PLANNED & CYCLICAL MAINTENANCE,BUILDING MAINTENANCE,1010,26-Apr-17,106014,236.87,ESSEX LIFT SERVICES LTD,ESS032,
EFDC,RM300,PLANNED & CYCLICAL MAINTENANCE,BUILDING MAINTENANCE,1010,26-Apr-17,106022,"1,118.00",FIELDWHITE SERVICES LTD,FIE003,
EFDC,CAPCM,COMMUNITIES CAPITAL,WORKS- COUNCIL DWELLINGS,A040,26-Apr-17,106022,"16,798.06",FIELDWHITE SERVICES LTD,FIE003,
EFDC,CAPCM,COMMUNITIES CAPITAL,WORKS- COUNCIL DWELLINGS,A040,26-Apr-17,106022,175.00,FIELDWHITE SERVICES LTD,FIE003,
EFDC,CAPCM,COMMUNITIES CAPITAL,WORKS- COUNCIL DWELLINGS,A040,26-Apr-17,106022,"5,805.33",FIELDWHITE SERVICES LTD,FIE003,
EFDC,RM100,RESPONSIVE & VOID REPAIRS,BUILDING MAINTENANCE,1010,26-Apr-17,104984,958.87,FLOWLINE (BUILDERS) LTD,FLO003,
EFDC,RM200,RESPONSIVE & VOID REPAIRS,BUILDING MAINTENANCE,1010,26-Apr-17,104985,"1,922.14",FLOWLINE (BUILDERS) LTD,FLO003,
EFDC,43100,ENVIRONMENTAL OTHER,AGENCY STAFF,0120,26-Apr-17,104604,"26,610.00",FORTISMERE ASSOCIATES LTD,FOR016,
EFDC,HI122,HIGHWAYS,TREE  MAINTENANCE,1070,26-Apr-17,106025,660.00,S H GOSS & CO LTD,GOS001,
EFDC,32220,OTHER SUPPORT SERVICES (HR),AGENCY STAFF,0120,26-Apr-17,105255,"1,531.22",HAYS SPECIALIST RECRUITMENT LTD,HAY011,
EFDC,32220,OTHER SUPPORT SERVICES (HR),AGENCY STAFF,0120,26-Apr-17,105108,504.00,HAYS SPECIALIST RECRUITMENT LTD,HAY011,
EFDC,32220,OTHER SUPPORT SERVICES (HR),AGENCY STAFF,0120,26-Apr-17,104980,"1,305.66",HAYS SPECIALIST RECRUITMENT LTD,HAY011,
EFDC,32220,OTHER SUPPORT SERVICES (HR),AGENCY STAFF,0120,26-Apr-17,105109,"1,106.00",HAYS SPECIALIST RECRUITMENT LTD,HAY011,
EFDC,YA210,SUPERVISION/MANAGEMENT GENERAL,PROFESSIONAL FEES,3420,26-Apr-17,105995,855.00,DR CATHERINE JOHN,JOH021,
EFDC,CAPCM,COMMUNITIES CAPITAL,WORKS- COUNCIL DWELLINGS,A040,26-Apr-17,104589,899.41,ADECCO UK LTD,ADE002,
EFDC,26200,OTHER SUPPORT SERVICES (HR),BUILDING MAINTENANCE,1010,26-Apr-17,105100,983.00,MITIE SECURITY LTD,MIT004,
EFDC,UO120,LAND & PROPERTY,CONSULTANTS FEES,3490,26-Apr-17,105042,"2,499.00",MITIE SECURITY LTD,MIT004,
EFDC,RM400,PLANNED & CYCLICAL MAINTENANCE,BUILDING MAINTENANCE,1010,26-Apr-17,105101,884.40,MITIE SECURITY LTD,MIT004,
EFDC,CM105,CORPORATE ACTIVITIES,SUBSCRIPTIONS,3730,26-Apr-17,105584,"10,450.00",LOCAL GOVERNMENT ASSOCIATION,LOC001,
EFDC,RM400,PLANNED & CYCLICAL MAINTENANCE,BUILDING MAINTENANCE,1010,26-Apr-17,105056,833.34,MULTI ALARM SYSTEMS GB LTD,MUL001,
EFDC,33080,OTHER ACTIVITIES,ANNUAL SUPPORT /  LICENSES,3872,26-Apr-17,105996,"6,639.95",NORTHGATE PUBLIC SERVICES (UK) LTD,NOR018,
EFDC,33080,OTHER ACTIVITIES,ANNUAL SUPPORT /  LICENSES,3872,26-Apr-17,105996,"4,384.07",NORTHGATE PUBLIC SERVICES (UK) LTD,NOR018,
EFDC,33080,OTHER ACTIVITIES,ANNUAL SUPPORT /  LICENSES,3872,26-Apr-17,105996,189.24,NORTHGATE PUBLIC SERVICES (UK) LTD,NOR018,
EFDC,33080,OTHER ACTIVITIES,ANNUAL SUPPORT /  LICENSES,3872,26-Apr-17,104491,"21,000.00",NORTHGATE PUBLIC SERVICES (UK) LTD,NOR018,
EFDC,33080,OTHER ACTIVITIES,ANNUAL SUPPORT /  LICENSES,3872,26-Apr-17,105767,"37,467.43",NORTHGATE PUBLIC SERVICES (UK) LTD,NOR018,
EFDC,33080,OTHER ACTIVITIES,ANNUAL SUPPORT /  LICENSES,3872,26-Apr-17,105996,124.95,NORTHGATE PUBLIC SERVICES (UK) LTD,NOR018,
EFDC,YB120,SUPERVISION/MANAGEMENT SPECIAL,FUEL,2330,26-Apr-17,104974,127.43,SHELL U.K. OIL PRODUCTS LIMITED,SHE007,
EFDC,78001,OTHER ACTIVITIES,FUEL,2330,26-Apr-17,104974,"1,742.41",SHELL U.K. OIL PRODUCTS LIMITED,SHE007,
EFDC,HI124,HIGHWAYS,OTHER MAINTENANCE,1050,26-Apr-17,104437,"1,066.00",SIGNWAY SUPPLIES (DATCHET) LTD,SIG009,
EFDC,CH110,"MUSEUM, HERITAGE & CULTURE",RENTS / HIRE OF HALL,1210,26-Apr-17,106029,"3,000.00",ROYAL GUNPOWDER MILLS CO LTD,ROY018,
EFDC,CAPCM,COMMUNITIES CAPITAL,EQUIPMENT ACQUISITION,C330,26-Apr-17,105502,"7,375.00",RVTV SECURITY LTD,RVT001,
EFDC,LA100,LAA POOLED FUNDS,LAA EXPENDITURE,Y100,26-Apr-17,105818,"4,650.00",RVTV SECURITY LTD,RVT001,
EFDC,DC110,PLANNING REGULATORY SERVICES,LEGAL EXPENSES,3680,26-Apr-17,106003,"4,629.41",SWORDERS,SWO001,
EFDC,CH101,"MUSEUM, HERITAGE & CULTURE",PROFESSIONAL FEES,3420,26-Apr-17,104122,560.00,ELYSIA TEBB,TEB003,
EFDC,32030,OTHER SUPPORT SERVICES (HR),BOOKS & PUBLICATIONS,3350,26-Apr-17,105270,"18,329.42",THOMSON REUTERS (PROFESSIONAL) UK LTD,THO010,
EFDC,33080,OTHER ACTIVITIES,COMPUTER - OTHER,3570,26-Apr-17,106005,"2,527.29",VODAFONE LIMITED,VOD002,
EFDC,HI124,HIGHWAYS,OTHER MAINTENANCE,1050,26-Apr-17,106006,"1,260.00",WEDGE CIVIL ENGINEERING LTD,WED004,
EFDC,LT110,LOCAL TAXATION,PROFESSIONAL FEES,3420,26-Apr-17,105907,"2,500.00",WILKS HEAD AND EVE LLP,WIL010,
EFDC,34110,COMMUNITIES SUPPORT SERVICES,FURNITURE - NEW,3040,26-Apr-17,104448,635.60,Q OFFICE FURNITURE LIMITED,WIS006,
EFDC,CH118,"MUSEUM, HERITAGE & CULTURE",FURNITURE - NEW,3040,26-Apr-17,104673,549.24,Q OFFICE FURNITURE LIMITED,WIS006,
EFDC,26200,OTHER SUPPORT SERVICES (HR),BUILDING MAINTENANCE,1010,26-Apr-17,105300,"2,050.00",CONTACT ROLLER SHUTTERS LTD,CON006,
EFDC,32030,OTHER SUPPORT SERVICES (HR),TRAINING EXPENSES,0310,26-Apr-17,106008,798.00,ZURICH INSURANCE PLC,ZUR006,
EFDC,CAPCM,COMMUNITIES CAPITAL,WORKS- COUNCIL DWELLINGS,A040,26-Apr-17,106023,"25,210.06",GRACELANDS COMPLETE MAINTENANCE SERVICES LTD,GRA007,
EFDC,CAPCM,COMMUNITIES CAPITAL,WORKS- COUNCIL DWELLINGS,A040,26-Apr-17,106023,"10,758.40",GRACELANDS COMPLETE MAINTENANCE SERVICES LTD,GRA007,
EFDC,CAPCM,COMMUNITIES CAPITAL,WORKS- COUNCIL DWELLINGS,A040,26-Apr-17,106023,"1,281.21",GRACELANDS COMPLETE MAINTENANCE SERVICES LTD,GRA007,
EFDC,CAPCM,COMMUNITIES CAPITAL,WORKS- COUNCIL DWELLINGS,A040,26-Apr-17,106024,"3,548.42",GRACELANDS COMPLETE MAINTENANCE SERVICES LTD,GRA007,
EFDC,CAPCM,COMMUNITIES CAPITAL,WORKS- COUNCIL DWELLINGS,A040,26-Apr-17,106024,"1,664.95",GRACELANDS COMPLETE MAINTENANCE SERVICES LTD,GRA007,
EFDC,CAPCM,COMMUNITIES CAPITAL,WORKS- COUNCIL DWELLINGS,A040,26-Apr-17,106024,"4,136.98",GRACELANDS COMPLETE MAINTENANCE SERVICES LTD,GRA007,
EFDC,RM200,RESPONSIVE & VOID REPAIRS,BUILDING MAINTENANCE,1010,26-Apr-17,104753,958.33,GRACELANDS COMPLETE MAINTENANCE SERVICES LTD,GRA007,
EFDC,RM300,PLANNED & CYCLICAL MAINTENANCE,BUILDING MAINTENANCE,1010,26-Apr-17,106023,720.39,GRACELANDS COMPLETE MAINTENANCE SERVICES LTD,GRA007,
EFDC,RM100,RESPONSIVE & VOID REPAIRS,BUILDING MAINTENANCE,1010,26-Apr-17,104495,"1,993.86",M & J SERVICES LTD,SER009,
EFDC,RM100,RESPONSIVE & VOID REPAIRS,BUILDING MAINTENANCE,1010,26-Apr-17,104434,"1,196.55",M & J SERVICES LTD,SER009,
EFDC,78001,OTHER ACTIVITIES,MATERIALS,3080,26-Apr-17,104997,"1,328.00",WALTHAM FOREST FENCING,WAL001,
EFDC,78001,OTHER ACTIVITIES,MATERIALS,3080,26-Apr-17,104715,701.70,CRANBROOK ELECTRICS,CRA001,
EFDC,36500,OTHER ACTIVITIES,AGENCY STAFF,0120,26-Apr-17,105876,900.00,BADENOCH & CLARK,BAD001,
EFDC,36500,OTHER ACTIVITIES,AGENCY STAFF,0120,26-Apr-17,105877,850.00,BADENOCH & CLARK,BAD001,
EFDC,CD112,"COMMUNITY, HEALTH & WELLBEING",OTHER TRAVEL EXPENSES,2850,26-Apr-17,105465,639.80,LAWLOR CAR SERVICE,LAW003,
EFDC,33080,OTHER ACTIVITIES,FIXED NETWORK LINE COSTS,3520,26-Apr-17,106000,"5,798.00",SOLAR COMMUNICATION LIMITED,SOL002,
EFDC,YB140,SUPERVISION/MANAGEMENT SPECIAL,PROFESSIONAL FEES,3420,26-Apr-17,104942,80.42,BINDER LTD,BIN001,
EFDC,YB140,SUPERVISION/MANAGEMENT SPECIAL,PROFESSIONAL FEES,3420,26-Apr-17,104944,39.00,BINDER LTD,BIN001,
EFDC,YB140,SUPERVISION/MANAGEMENT SPECIAL,PROFESSIONAL FEES,3420,26-Apr-17,104944,78.00,BINDER LTD,BIN001,
EFDC,YB130,SUPERVISION/MANAGEMENT SPECIAL,PROFESSIONAL FEES,3420,26-Apr-17,104942,82.92,BINDER LTD,BIN001,
EFDC,YB130,SUPERVISION/MANAGEMENT SPECIAL,PROFESSIONAL FEES,3420,26-Apr-17,104943,82.92,BINDER LTD,BIN001,
EFDC,RS301,NORTH WEALD CENTRE,OTHER MAINTENANCE,1050,26-Apr-17,104942,162.92,BINDER LTD,BIN001,
EFDC,RS301,NORTH WEALD CENTRE,OTHER MAINTENANCE,1050,26-Apr-17,104942,82.92,BINDER LTD,BIN001,
EFDC,YB140,SUPERVISION/MANAGEMENT SPECIAL,PROFESSIONAL FEES,3420,26-Apr-17,104942,107.92,BINDER LTD,BIN001,
EFDC,RS301,NORTH WEALD CENTRE,OTHER MAINTENANCE,1050,26-Apr-17,104942,135.42,BINDER LTD,BIN001,
EFDC,YB140,SUPERVISION/MANAGEMENT SPECIAL,PROFESSIONAL FEES,3420,26-Apr-17,104942,117.08,BINDER LTD,BIN001,
EFDC,RS301,NORTH WEALD CENTRE,OTHER MAINTENANCE,1050,26-Apr-17,104942,82.92,BINDER LTD,BIN001,
EFDC,YB140,SUPERVISION/MANAGEMENT SPECIAL,PROFESSIONAL FEES,3420,26-Apr-17,104942,117.08,BINDER LTD,BIN001,
EFDC,YB140,SUPERVISION/MANAGEMENT SPECIAL,PROFESSIONAL FEES,3420,26-Apr-17,104944,39.00,BINDER LTD,BIN001,
EFDC,YB140,SUPERVISION/MANAGEMENT SPECIAL,PROFESSIONAL FEES,3420,26-Apr-17,104942,117.08,BINDER LTD,BIN001,
EFDC,YB140,SUPERVISION/MANAGEMENT SPECIAL,PROFESSIONAL FEES,3420,26-Apr-17,104942,181.25,BINDER LTD,BIN001,
EFDC,YB140,SUPERVISION/MANAGEMENT SPECIAL,PROFESSIONAL FEES,3420,26-Apr-17,104942,80.42,BINDER LTD,BIN001,
EFDC,YB140,SUPERVISION/MANAGEMENT SPECIAL,PROFESSIONAL FEES,3420,26-Apr-17,104942,117.08,BINDER LTD,BIN001,
EFDC,YB140,SUPERVISION/MANAGEMENT SPECIAL,PROFESSIONAL FEES,3420,26-Apr-17,104942,117.08,BINDER LTD,BIN001,
EFDC,YB140,SUPERVISION/MANAGEMENT SPECIAL,PROFESSIONAL FEES,3420,26-Apr-17,104942,80.42,BINDER LTD,BIN001,
EFDC,YB140,SUPERVISION/MANAGEMENT SPECIAL,PROFESSIONAL FEES,3420,26-Apr-17,104942,117.08,BINDER LTD,BIN001,
EFDC,RS301,NORTH WEALD CENTRE,OTHER MAINTENANCE,1050,26-Apr-17,104943,135.42,BINDER LTD,BIN001,
EFDC,YB140,SUPERVISION/MANAGEMENT SPECIAL,PROFESSIONAL FEES,3420,26-Apr-17,104942,177.08,BINDER LTD,BIN001,
EFDC,RS301,NORTH WEALD CENTRE,OTHER MAINTENANCE,1050,26-Apr-17,104943,162.92,BINDER LTD,BIN001,
EFDC,RS301,NORTH WEALD CENTRE,OTHER MAINTENANCE,1050,26-Apr-17,104943,82.92,BINDER LTD,BIN001,
EFDC,RS301,NORTH WEALD CENTRE,OTHER MAINTENANCE,1050,26-Apr-17,104943,82.92,BINDER LTD,BIN001,
EFDC,YB140,SUPERVISION/MANAGEMENT SPECIAL,PROFESSIONAL FEES,3420,26-Apr-17,104942,117.08,BINDER LTD,BIN001,
EFDC,YB140,SUPERVISION/MANAGEMENT SPECIAL,PROFESSIONAL FEES,3420,26-Apr-17,104942,162.91,BINDER LTD,BIN001,
EFDC,YB140,SUPERVISION/MANAGEMENT SPECIAL,PROFESSIONAL FEES,3420,26-Apr-17,104942,172.08,BINDER LTD,BIN001,
EFDC,YB140,SUPERVISION/MANAGEMENT SPECIAL,PROFESSIONAL FEES,3420,26-Apr-17,104943,117.08,BINDER LTD,BIN001,
EFDC,YB140,SUPERVISION/MANAGEMENT SPECIAL,PROFESSIONAL FEES,3420,26-Apr-17,104944,39.00,BINDER LTD,BIN001,
EFDC,YB140,SUPERVISION/MANAGEMENT SPECIAL,PROFESSIONAL FEES,3420,26-Apr-17,104943,181.24,BINDER LTD,BIN001,
EFDC,YB140,SUPERVISION/MANAGEMENT SPECIAL,PROFESSIONAL FEES,3420,26-Apr-17,104943,117.08,BINDER LTD,BIN001,
EFDC,YB140,SUPERVISION/MANAGEMENT SPECIAL,PROFESSIONAL FEES,3420,26-Apr-17,104943,117.08,BINDER LTD,BIN001,
EFDC,YB140,SUPERVISION/MANAGEMENT SPECIAL,PROFESSIONAL FEES,3420,26-Apr-17,104943,172.08,BINDER LTD,BIN001,
EFDC,YB140,SUPERVISION/MANAGEMENT SPECIAL,PROFESSIONAL FEES,3420,26-Apr-17,104943,80.42,BINDER LTD,BIN001,
EFDC,YB140,SUPERVISION/MANAGEMENT SPECIAL,PROFESSIONAL FEES,3420,26-Apr-17,104944,39.00,BINDER LTD,BIN001,
EFDC,YB140,SUPERVISION/MANAGEMENT SPECIAL,PROFESSIONAL FEES,3420,26-Apr-17,104943,177.08,BINDER LTD,BIN001,
EFDC,YB140,SUPERVISION/MANAGEMENT SPECIAL,PROFESSIONAL FEES,3420,26-Apr-17,104944,39.00,BINDER LTD,BIN001,
EFDC,YB140,SUPERVISION/MANAGEMENT SPECIAL,PROFESSIONAL FEES,3420,26-Apr-17,104943,162.92,BINDER LTD,BIN001,
EFDC,YB140,SUPERVISION/MANAGEMENT SPECIAL,PROFESSIONAL FEES,3420,26-Apr-17,104943,80.42,BINDER LTD,BIN001,
EFDC,YB140,SUPERVISION/MANAGEMENT SPECIAL,PROFESSIONAL FEES,3420,26-Apr-17,104943,117.08,BINDER LTD,BIN001,
EFDC,YB140,SUPERVISION/MANAGEMENT SPECIAL,PROFESSIONAL FEES,3420,26-Apr-17,104943,117.08,BINDER LTD,BIN001,
EFDC,YB140,SUPERVISION/MANAGEMENT SPECIAL,PROFESSIONAL FEES,3420,26-Apr-17,104943,117.08,BINDER LTD,BIN001,
EFDC,YB140,SUPERVISION/MANAGEMENT SPECIAL,PROFESSIONAL FEES,3420,26-Apr-17,104943,117.08,BINDER LTD,BIN001,
EFDC,YB140,SUPERVISION/MANAGEMENT SPECIAL,PROFESSIONAL FEES,3420,26-Apr-17,104943,80.42,BINDER LTD,BIN001,
EFDC,YB140,SUPERVISION/MANAGEMENT SPECIAL,PROFESSIONAL FEES,3420,26-Apr-17,104943,107.92,BINDER LTD,BIN001,
EFDC,YB140,SUPERVISION/MANAGEMENT SPECIAL,PROFESSIONAL FEES,3420,26-Apr-17,104944,39.00,BINDER LTD,BIN001,
EFDC,YB140,SUPERVISION/MANAGEMENT SPECIAL,PROFESSIONAL FEES,3420,26-Apr-17,104944,39.00,BINDER LTD,BIN001,
EFDC,YB140,SUPERVISION/MANAGEMENT SPECIAL,PROFESSIONAL FEES,3420,26-Apr-17,104944,39.00,BINDER LTD,BIN001,
EFDC,YB140,SUPERVISION/MANAGEMENT SPECIAL,PROFESSIONAL FEES,3420,26-Apr-17,104944,78.00,BINDER LTD,BIN001,
EFDC,YB140,SUPERVISION/MANAGEMENT SPECIAL,PROFESSIONAL FEES,3420,26-Apr-17,104944,39.00,BINDER LTD,BIN001,
EFDC,YB140,SUPERVISION/MANAGEMENT SPECIAL,PROFESSIONAL FEES,3420,26-Apr-17,104944,39.00,BINDER LTD,BIN001,
EFDC,YB140,SUPERVISION/MANAGEMENT SPECIAL,PROFESSIONAL FEES,3420,26-Apr-17,104944,39.00,BINDER LTD,BIN001,
EFDC,YB140,SUPERVISION/MANAGEMENT SPECIAL,PROFESSIONAL FEES,3420,26-Apr-17,104944,39.00,BINDER LTD,BIN001,
EFDC,YB140,SUPERVISION/MANAGEMENT SPECIAL,PROFESSIONAL FEES,3420,26-Apr-17,104944,39.00,BINDER LTD,BIN001,
EFDC,37500,PLANNING OTHER,EQUIPMENT - NEW,3010,26-Apr-17,104462,"1,229.37",AIT PARTNERSHIP GROUP LTD,AIT001,
EFDC,33080,OTHER ACTIVITIES,EQUIPMENT - NEW,3010,26-Apr-17,104462,"5,795.63",AIT PARTNERSHIP GROUP LTD,AIT001,
EFDC,CAPRS,RESOURCES CAPITAL,EQUIPMENT ACQUISITION,C330,26-Apr-17,104432,"12,087.00",INSPIRED TECHNOLOGY SERVICES LTD,INS001,
EFDC,SC100,WASTE MANAGEMENT,HIGHWAYS CONTRACTORS,4310,26-Apr-17,104709,"10,545.92",EASTERN WASTE DISPOSAL LTD,EAS002,
EFDC,CAPNB,NEIGHBOURHOODS CAPITAL,LEGAL FEES,E140,26-Apr-17,105999,848.00,SHARPE PRITCHARD LLP,SHA004,
EFDC,RS400,"COMMUNITY, HEALTH & WELLBEING",PRINTING - EXTERNAL,3390,26-Apr-17,105550,"2,178.00",MFP,MFP001,
EFDC,34110,COMMUNITIES SUPPORT SERVICES,FURNITURE - NEW,3040,26-Apr-17,104628,531.92,NISBETS PLC,NIS001,
EFDC,26200,OTHER SUPPORT SERVICES (HR),BUILDING MAINTENANCE,1010,26-Apr-17,104574,"3,156.70",ALLWAYS AIR-CONDITIONING & VENTILATION,ALL003,
EFDC,LA100,LAA POOLED FUNDS,LAA EXPENDITURE,Y100,26-Apr-17,104983,594.00,SHARRONS EVENT CATERING COMPANY LTD,SHA002,
EFDC,SC100,WASTE MANAGEMENT,CLEANSING CONTRACTORS,4320,26-Apr-17,105122,740.00,JUST GRAB SERVICES LTD,JUS002,
EFDC,26200,OTHER SUPPORT SERVICES (HR),BUILDING MAINTENANCE,1010,26-Apr-17,104588,"1,200.00",T B PROPERTY SERVICES (ESSEX) LTD,TBP001,
EFDC,26200,OTHER SUPPORT SERVICES (HR),BUILDING MAINTENANCE,1010,26-Apr-17,104588,780.00,T B PROPERTY SERVICES (ESSEX) LTD,TBP001,
EFDC,26200,OTHER SUPPORT SERVICES (HR),BUILDING MAINTENANCE,1010,26-Apr-17,104587,"1,536.00",T B PROPERTY SERVICES (ESSEX) LTD,TBP001,
EFDC,26200,OTHER SUPPORT SERVICES (HR),BUILDING MAINTENANCE,1010,26-Apr-17,104587,100.00,T B PROPERTY SERVICES (ESSEX) LTD,TBP001,
EFDC,CAPNB,NEIGHBOURHOODS CAPITAL,LEGAL FEES,E140,26-Apr-17,105244,"1,890.00",DAC BEACHCROFT LLP,DAC001,
EFDC,CAPNB,NEIGHBOURHOODS CAPITAL,LEGAL FEES,E140,26-Apr-17,105988,"3,576.13",DAC BEACHCROFT LLP,DAC001,
EFDC,RS301,NORTH WEALD CENTRE,UNIFORMS,3220,26-Apr-17,104492,689.35,BALLANTYNE EDWARDS LTD,BAL001,
EFDC,27050,ACCOMMODATION,SECURITY,1650,26-Apr-17,105483,"5,382.74",T.S.S. (TOTAL SECURITY SERVICES) LTD,TSS001,
EFDC,23110,ACCOMMODATION,SECURITY,1650,26-Apr-17,105482,"6,196.41",T.S.S. (TOTAL SECURITY SERVICES) LTD,TSS001,
EFDC,33080,OTHER ACTIVITIES,EQUIPMENT - MAINTENANCE,3030,26-Apr-17,104455,"1,260.00",SEC-1 LIMITED,SEC002,
EFDC,33080,OTHER ACTIVITIES,ANNUAL SUPPORT /  LICENSES,3872,26-Apr-17,104711,"6,971.00",HOOTSUITE MEDIA INC,HOO001,
EFDC,YB500,SUPERVISION/MANAGEMENT SPECIAL,REFUSE REMOVAL,1640,26-Apr-17,106017,10.68,BIFFA MUNICIPAL LTD,BIF001,
EFDC,YB500,SUPERVISION/MANAGEMENT SPECIAL,REFUSE REMOVAL,1640,26-Apr-17,106016,21.36,BIFFA MUNICIPAL LTD,BIF001,
EFDC,YB620,SUPERVISION/MANAGEMENT SPECIAL,REFUSE REMOVAL,1640,26-Apr-17,106016,21.36,BIFFA MUNICIPAL LTD,BIF001,
EFDC,YB620,SUPERVISION/MANAGEMENT SPECIAL,REFUSE REMOVAL,1640,26-Apr-17,106017,10.68,BIFFA MUNICIPAL LTD,BIF001,
EFDC,27150,"COMMUNITY, HEALTH & WELLBEING",REFUSE REMOVAL,1640,26-Apr-17,106017,10.68,BIFFA MUNICIPAL LTD,BIF001,
EFDC,WC100,WASTE MANAGEMENT,EQUIPMENT - NEW,3010,26-Apr-17,106017,"3,549.77",BIFFA MUNICIPAL LTD,BIF001,
EFDC,27150,"COMMUNITY, HEALTH & WELLBEING",REFUSE REMOVAL,1640,26-Apr-17,106016,21.36,BIFFA MUNICIPAL LTD,BIF001,
EFDC,YB400,SUPERVISION/MANAGEMENT SPECIAL,REFUSE REMOVAL,1640,26-Apr-17,106017,799.85,BIFFA MUNICIPAL LTD,BIF001,
EFDC,23110,ACCOMMODATION,REFUSE REMOVAL,1640,26-Apr-17,106016,10.68,BIFFA MUNICIPAL LTD,BIF001,
EFDC,GD190,VOLUNTARY SECTOR SUPPORT,MATERIALS,3080,26-Apr-17,106017,100.90,BIFFA MUNICIPAL LTD,BIF001,
EFDC,WC100,WASTE MANAGEMENT,EQUIPMENT - NEW,3010,26-Apr-17,106016,"4,375.75",BIFFA MUNICIPAL LTD,BIF001,
EFDC,27110,ACCOMMODATION,REFUSE REMOVAL,1640,26-Apr-17,106016,21.36,BIFFA MUNICIPAL LTD,BIF001,
EFDC,YB120,SUPERVISION/MANAGEMENT SPECIAL,EQUIPMENT - MAINTENANCE,3030,26-Apr-17,106017,87.00,BIFFA MUNICIPAL LTD,BIF001,
EFDC,WC200,WASTE MANAGEMENT,CLEANSING CONTRACTORS,4320,26-Apr-17,106016,"3,258.00",BIFFA MUNICIPAL LTD,BIF001,
EFDC,YB400,SUPERVISION/MANAGEMENT SPECIAL,OTHER MISCELLANEOUS EXPENSES,3850,26-Apr-17,106017,10.09,BIFFA MUNICIPAL LTD,BIF001,
EFDC,EL100,ELECTIONS,OTHER MISCELLANEOUS EXPENSES,3850,26-Apr-17,106017,50.45,BIFFA MUNICIPAL LTD,BIF001,
EFDC,WC200,WASTE MANAGEMENT,PUBLICITY,3360,26-Apr-17,106017,846.00,BIFFA MUNICIPAL LTD,BIF001,
EFDC,WC100,WASTE MANAGEMENT,PUBLICITY,3360,26-Apr-17,106017,"1,500.00",BIFFA MUNICIPAL LTD,BIF001,
EFDC,WC102,WASTE MANAGEMENT,CLEANSING CONTRACTORS,4320,26-Apr-17,106016,336.34,BIFFA MUNICIPAL LTD,BIF001,
EFDC,WC200,WASTE MANAGEMENT,CLEANSING CONTRACTORS,4320,26-Apr-17,106017,"147,511.64",BIFFA MUNICIPAL LTD,BIF001,
EFDC,27050,ACCOMMODATION,REFUSE REMOVAL,1640,26-Apr-17,106016,768.96,BIFFA MUNICIPAL LTD,BIF001,
EFDC,WC200,WASTE MANAGEMENT,CLEANSING CONTRACTORS,4320,26-Apr-17,106016,"4,531.54",BIFFA MUNICIPAL LTD,BIF001,
EFDC,WC200,WASTE MANAGEMENT,CLEANSING CONTRACTORS,4320,26-Apr-17,106016,762.10,BIFFA MUNICIPAL LTD,BIF001,
EFDC,23110,ACCOMMODATION,REFUSE REMOVAL,1640,26-Apr-17,106017,10.68,BIFFA MUNICIPAL LTD,BIF001,
EFDC,YB400,SUPERVISION/MANAGEMENT SPECIAL,CLEANSING CONTRACTORS,4320,26-Apr-17,106017,12.61,BIFFA MUNICIPAL LTD,BIF001,
EFDC,YB400,SUPERVISION/MANAGEMENT SPECIAL,CLEANSING CONTRACTORS,4320,26-Apr-17,106016,25.23,BIFFA MUNICIPAL LTD,BIF001,
EFDC,WC300,WASTE MANAGEMENT,CLEANSING CONTRACTORS,4320,26-Apr-17,106017,262.50,BIFFA MUNICIPAL LTD,BIF001,
EFDC,23140,ACCOMMODATION,REFUSE REMOVAL,1640,26-Apr-17,106016,42.72,BIFFA MUNICIPAL LTD,BIF001,
EFDC,WC200,WASTE MANAGEMENT,CLEANSING CONTRACTORS,4320,26-Apr-17,106017,"6,609.95",BIFFA MUNICIPAL LTD,BIF001,
EFDC,SC100,WASTE MANAGEMENT,CLEANSING CONTRACTORS,4320,26-Apr-17,106016,"2,061.54",BIFFA MUNICIPAL LTD,BIF001,
EFDC,WC200,WASTE MANAGEMENT,CLEANSING CONTRACTORS,4320,26-Apr-17,106016,"7,403.78",BIFFA MUNICIPAL LTD,BIF001,
EFDC,27050,ACCOMMODATION,REFUSE REMOVAL,1640,26-Apr-17,106017,427.20,BIFFA MUNICIPAL LTD,BIF001,
EFDC,23140,ACCOMMODATION,REFUSE REMOVAL,1640,26-Apr-17,106017,21.36,BIFFA MUNICIPAL LTD,BIF001,
EFDC,PS100,CAR PARKING,CLEANSING CONTRACTORS,4320,26-Apr-17,106017,-423.41,BIFFA MUNICIPAL LTD,BIF001,
EFDC,PS100,CAR PARKING,CLEANSING CONTRACTORS,4320,26-Apr-17,106016,-284.17,BIFFA MUNICIPAL LTD,BIF001,
EFDC,WC102,WASTE MANAGEMENT,CLEANSING CONTRACTORS,4320,26-Apr-17,106017,680.08,BIFFA MUNICIPAL LTD,BIF001,
EFDC,SC100,WASTE MANAGEMENT,CLEANSING CONTRACTORS,4320,26-Apr-17,106017,634.40,BIFFA MUNICIPAL LTD,BIF001,
EFDC,SC100,WASTE MANAGEMENT,CLEANSING CONTRACTORS,4320,26-Apr-17,106016,748.28,BIFFA MUNICIPAL LTD,BIF001,
EFDC,WC100,WASTE MANAGEMENT,CLEANSING CONTRACTORS,4320,26-Apr-17,106017,"6,682.82",BIFFA MUNICIPAL LTD,BIF001,
EFDC,WC100,WASTE MANAGEMENT,CLEANSING CONTRACTORS,4320,26-Apr-17,106016,"2,514.38",BIFFA MUNICIPAL LTD,BIF001,
EFDC,WC100,WASTE MANAGEMENT,CLEANSING CONTRACTORS,4320,26-Apr-17,106016,476.00,BIFFA MUNICIPAL LTD,BIF001,
EFDC,WC100,WASTE MANAGEMENT,CLEANSING CONTRACTORS,4320,26-Apr-17,106016,"1,260.76",BIFFA MUNICIPAL LTD,BIF001,
EFDC,WC100,WASTE MANAGEMENT,CLEANSING CONTRACTORS,4320,26-Apr-17,106016,"6,222.05",BIFFA MUNICIPAL LTD,BIF001,
EFDC,27110,ACCOMMODATION,REFUSE REMOVAL,1640,26-Apr-17,106017,10.68,BIFFA MUNICIPAL LTD,BIF001,
EFDC,RS301,NORTH WEALD CENTRE,RENTS,9410,26-Apr-17,106016,-600.00,BIFFA MUNICIPAL LTD,BIF001,
EFDC,OS100,PARKS & GROUNDS,GROUNDS MAINTENANCE,1040,26-Apr-17,106016,84.29,BIFFA MUNICIPAL LTD,BIF001,
EFDC,OS100,PARKS & GROUNDS,GROUNDS MAINTENANCE,1040,26-Apr-17,106017,100.90,BIFFA MUNICIPAL LTD,BIF001,
EFDC,YB400,SUPERVISION/MANAGEMENT SPECIAL,REFUSE REMOVAL,1640,26-Apr-17,106016,"1,109.58",BIFFA MUNICIPAL LTD,BIF001,
EFDC,GD190,VOLUNTARY SECTOR SUPPORT,GROUNDS MAINTENANCE,1040,26-Apr-17,106016,75.90,BIFFA MUNICIPAL LTD,BIF001,
EFDC,GD190,VOLUNTARY SECTOR SUPPORT,GROUNDS MAINTENANCE,1040,26-Apr-17,106017,12.61,BIFFA MUNICIPAL LTD,BIF001,
EFDC,SC100,WASTE MANAGEMENT,FEES & CHARGES,9210,26-Apr-17,106017,-300.00,BIFFA MUNICIPAL LTD,BIF001,
EFDC,RS301,NORTH WEALD CENTRE,RENTS,9410,26-Apr-17,106017,-600.00,BIFFA MUNICIPAL LTD,BIF001,
EFDC,UO120,LAND & PROPERTY,AGENCY STAFF,0120,26-Apr-17,105897,"1,195.04",CAPSTONE PROPERTY RECRUITMENT LTD,CAP001,
EFDC,UO120,LAND & PROPERTY,AGENCY STAFF,0120,26-Apr-17,105896,"1,792.56",CAPSTONE PROPERTY RECRUITMENT LTD,CAP001,
EFDC,UO120,LAND & PROPERTY,AGENCY STAFF,0120,26-Apr-17,105773,"1,792.56",CAPSTONE PROPERTY RECRUITMENT LTD,CAP001,
EFDC,RS301,NORTH WEALD CENTRE,FLEET OPERATIONS RECHARGE,2510,26-Apr-17,105247,656.72,ESSEX EMERGENCY SERVICES 2000 LTD,ESS018,
EFDC,HL100,HOMELESSNESS,COMPENSATION PAYMENTS,3880,26-Apr-17,104449,"1,000.00",MR MATT LEWIN,LEW001,
EFDC,32180,OTHER SUPPORT SERVICES (HR),FIXED PLANT MAINTENANCE,1020,26-Apr-17,105519,900.00,COMMUNITY RESOURCING LTD,COM011,
EFDC,CH101,"MUSEUM, HERITAGE & CULTURE",PROFESSIONAL FEES,3420,26-Apr-17,104447,"1,072.50",KEELY MILLS,MIL006,
EFDC,CH110,"MUSEUM, HERITAGE & CULTURE",CLEANING,1630,26-Apr-17,105892,517.79,ATLAS CONTRACTORS LTD,ATL001,
EFDC,23140,ACCOMMODATION,CLEANING,1630,26-Apr-17,105892,450.34,ATLAS CONTRACTORS LTD,ATL001,
EFDC,27050,ACCOMMODATION,CLEANING,1630,26-Apr-17,105892,"7,874.20",ATLAS CONTRACTORS LTD,ATL001,
EFDC,27060,ACCOMMODATION,CLEANING,1630,26-Apr-17,105892,414.58,ATLAS CONTRACTORS LTD,ATL001,
EFDC,23110,ACCOMMODATION,CLEANING,1630,26-Apr-17,105892,62.12,ATLAS CONTRACTORS LTD,ATL001,
EFDC,23110,ACCOMMODATION,CLEANING,1630,26-Apr-17,105892,"1,327.17",ATLAS CONTRACTORS LTD,ATL001,
EFDC,23130,ACCOMMODATION,CLEANING,1630,26-Apr-17,105892,227.84,ATLAS CONTRACTORS LTD,ATL001,
EFDC,RS301,NORTH WEALD CENTRE,LICENCES,3870,26-Apr-17,105151,650.00,CAA INTERNATIONAL LTD,CAA001,
EFDC,32030,OTHER SUPPORT SERVICES (HR),TRAINING EXPENSES,0310,26-Apr-17,104694,"1,360.00",PUBLIC SECTOR PEOPLE MANAGERS ASSOCIATION,PUB006,
EFDC,PS100,CAR PARKING,OTHER MAINTENANCE,1050,26-Apr-17,104136,"4,082.34",MURRILL CONSTRUCTION LTD,MUR004,
EFDC,PS100,CAR PARKING,OTHER MAINTENANCE,1050,26-Apr-17,104137,985.16,MURRILL CONSTRUCTION LTD,MUR004,
EFDC,PS100,CAR PARKING,OTHER MAINTENANCE,1050,26-Apr-17,104134,"1,820.08",MURRILL CONSTRUCTION LTD,MUR004,
EFDC,CH117,HERITAGE LOTTERY FUND,EQUIPMENT - NEW,3010,26-Apr-17,105268,"6,300.00",SYSTEM SIMULATION LTD,SYS003,
EFDC,CAPNB,NEIGHBOURHOODS CAPITAL,SEC 278 CONSULTANCY WORK,L049,26-Apr-17,105271,"18,332.00",SYSTRA LTD,SYS004,
EFDC,CAPNB,NEIGHBOURHOODS CAPITAL,SEC 278 CONSULTANCY WORK,L049,26-Apr-17,105269,"1,320.00",SYSTRA LTD,SYS004,
EFDC,TO100,LAND & PROPERTY,PROFESSIONAL FEES,3420,26-Apr-17,105153,"2,025.00",RAC MOTORING SERVICES,RAC001,
EFDC,EH112,LAND DRAINAGE/SEWERAGE,CONSULTANTS FEES,3490,26-Apr-17,105226,"2,664.97",AFFINITY WATER LTD,AFF002,
EFDC,27050,ACCOMMODATION,WATER CHARGES,1410,26-Apr-17,105227,758.32,AFFINITY WATER LTD,AFF002,
EFDC,PP111,FORWARD PLANNING & ECONOMIC,CONSULTANTS FEES,3490,26-Apr-17,105273,"6,753.00",4 GLOBAL CONSULTING LTD,GLO005,
EFDC,EP100,OTHER ACTIVITIES,EQUIPMENT - NEW,3010,26-Apr-17,106004,"1,300.00",UK FLOOD DEFENCES LTD,UKF002,
EFDC,EH100,ENVIRONMENTAL HEALTH,OTHER MISCELLANEOUS EXPENSES,3850,26-Apr-17,106002,"3,000.00",STEWART HARRIS AGNEW PARTNERSHIP,STE004,
EFDC,33080,OTHER ACTIVITIES,EQUIPMENT - NEW,3010,26-Apr-17,104646,"2,240.00",XEROX (UK) LTD,XER002,
EFDC,ED100,FORWARD PLANNING & ECONOMIC,OTHER MISCELLANEOUS EXPENSES,3850,26-Apr-17,104659,"1,342.00",NEW MIND INTERNET CONSULTANCY LTD,NEW004,
EFDC,ED100,FORWARD PLANNING & ECONOMIC,OTHER MISCELLANEOUS EXPENSES,3850,26-Apr-17,104658,"2,680.00",NEW MIND INTERNET CONSULTANCY LTD,NEW004,
EFDC,UO130,LAND & PROPERTY,PREMISES,1030,26-Apr-17,104611,800.00,INGLETON  WOOD,ING001,
EFDC,PH100,PRIVATE SECTOR HOUSING,GRANTS GENERAL,3720,02-May-17,24021,"3,007.40",K.J.BATCHELOR,BAT001,
EFDC,BAL01,EFDC BALANCE SHEET,PROVISION FOR APPEALS EFDC,Z633,02-May-17,24052,"6,648.60",CLUTTONS LLP CLIENT ACCOUNT - RECEIPTS,390P,
EFDC,PH100,PRIVATE SECTOR HOUSING,GRANTS GENERAL,3720,02-May-17,24019,"4,305.00",ACCESSIBLE SOLUTIONS LIMITED,ACC002,
EFDC,BAL01,EFDC BALANCE SHEET,NDR REFUNDS,Z623,02-May-17,24043,"1,455.59",DG ROBSON MECHANICAL SERVICES LTD,6607P,
EFDC,BAL01,EFDC BALANCE SHEET,NDR REFUNDS,Z623,02-May-17,24042,"1,314.42",DG ROBSON MECHANICAL SERVICES LTD,6607P,
EFDC,BAL01,EFDC BALANCE SHEET,NDR REFUNDS,Z623,02-May-17,24039,974.63,DG ROBSON MECHANICAL SERVICES LTD,6607P,
EFDC,BAL01,EFDC BALANCE SHEET,NDR REFUNDS,Z623,02-May-17,24037,771.75,DG ROBSON MECHANICAL SERVICES LTD,6607P,
EFDC,BAL01,EFDC BALANCE SHEET,SUNDRY DEBTORS (OTHER),Z208,02-May-17,24023,"1,200.00",BERESFORD COMMERCIAL LIMITED,6807P,
EFDC,BAL01,EFDC BALANCE SHEET,DEPOSITS - PAID,Z223,02-May-17,24023,"1,200.00",BERESFORD COMMERCIAL LIMITED,6807P,
EFDC,BAL01,EFDC BALANCE SHEET,NDR REFUNDS,Z623,02-May-17,24059,"3,618.28",THE PLACEMENT GROUP HEALTHCARE LTD,6825P,
EFDC,BAL01,EFDC BALANCE SHEET,NDR REFUNDS,Z623,02-May-17,24022,"24,696.97",LEGAL & GENERAL ASSURANCE,6806P,
EFDC,BAL01,EFDC BALANCE SHEET,NDR REFUNDS,Z623,02-May-17,24032,"3,626.01",MCMULLEN & SONS LTD,6811P,
EFDC,BAL01,EFDC BALANCE SHEET,NDR REFUNDS,Z623,02-May-17,24036,592.38,RICHROCH INVESTMENTS LTD,6814P,
EFDC,33080,OTHER ACTIVITIES,FIXED NETWORK LINE COSTS,3520,03-May-17,106454,"2,848.50",BRITISH TELECOMMUNICATIONS PLC,BRI002,
EFDC,37100,PLANNING OTHER,EQUIPMENT - HIRED,3020,03-May-17,105745,514.67,CANON (UK) LTD,CAN004,
EFDC,33080,OTHER ACTIVITIES,ANNUAL SUPPORT /  LICENSES,3872,03-May-17,105752,"6,011.61",CAPITA BUSINESS SERVICES LTD,CAP004,
EFDC,33080,OTHER ACTIVITIES,ANNUAL SUPPORT /  LICENSES,3872,03-May-17,105517,"1,563.81",CAPITA BUSINESS SERVICES LTD,CAP004,
EFDC,42520,GOVERNANCE SUPPORT SERVICES,TRAINING EXPENSES,0310,03-May-17,105778,"1,297.00",BPP PROFESSIONAL EDUCATION LTD,BPP001,
EFDC,28030,OTHER SUPPORT SERVICES (HR),MATERIALS,3080,03-May-17,104954,744.88,CARE VENDING SERVICES LTD,CAR017,
EFDC,28030,OTHER SUPPORT SERVICES (HR),MATERIALS,3080,03-May-17,104954,-115.19,CARE VENDING SERVICES LTD,CAR017,
EFDC,CAPRS,RESOURCES CAPITAL,CAPITAL SOFTWARE,K340,03-May-17,103720,"36,107.33",BYTES SOFTWARE SERVICES LTD,BYT001,
EFDC,33080,OTHER ACTIVITIES,EQUIPMENT - MAINTENANCE,3030,03-May-17,104952,"20,332.29",BYTES SOFTWARE SERVICES LTD,BYT001,
EFDC,31140,CORPORATE SUPPORT SERVICES,CRB POLICE CHECK COSTS,0381,03-May-17,105073,44.00,DISCLOSURE & BARRING SERVICE,CRB002,
EFDC,RS400,"COMMUNITY, HEALTH & WELLBEING",CRB POLICE CHECK COSTS,0381,03-May-17,105073,132.00,DISCLOSURE & BARRING SERVICE,CRB002,
EFDC,EH150,REGULATORY SERVICES,CRB POLICE CHECK COSTS,0381,03-May-17,105073,704.00,DISCLOSURE & BARRING SERVICE,CRB002,
EFDC,YA110,SUPERVISION/MANAGEMENT GENERAL,PROFESSIONAL FEES,3420,03-May-17,106417,750.00,DERRICK WADE WATERS,DER001,
EFDC,27050,ACCOMMODATION,CATERING,3110,03-May-17,105764,791.60,ESSEX SUPPLIES (UK) LTD,ESS028,
EFDC,RM100,RESPONSIVE & VOID REPAIRS,BUILDING MAINTENANCE,1010,03-May-17,105841,662.00,FIELDWHITE SERVICES LTD,FIE003,
EFDC,RM100,RESPONSIVE & VOID REPAIRS,BUILDING MAINTENANCE,1010,03-May-17,104986,"1,437.56",FLOWLINE (BUILDERS) LTD,FLO003,
EFDC,RM300,PLANNED & CYCLICAL MAINTENANCE,BUILDING MAINTENANCE,1010,03-May-17,106418,"14,932.37",FLOWLINE (BUILDERS) LTD,FLO003,
EFDC,RM100,RESPONSIVE & VOID REPAIRS,BUILDING MAINTENANCE,1010,03-May-17,104515,862.85,FLOWLINE (BUILDERS) LTD,FLO003,
EFDC,YB620,SUPERVISION/MANAGEMENT SPECIAL,EQUIPMENT - NEW,3010,03-May-17,105134,"1,842.40",GW COMMERCIAL EQUIPMENT LTD,GWC001,
EFDC,32220,OTHER SUPPORT SERVICES (HR),AGENCY STAFF,0120,03-May-17,105293,"1,312.86",HAYS SPECIALIST RECRUITMENT LTD,HAY011,
EFDC,32220,OTHER SUPPORT SERVICES (HR),AGENCY STAFF,0120,03-May-17,105744,506.10,HAYS SPECIALIST RECRUITMENT LTD,HAY011,
EFDC,32220,OTHER SUPPORT SERVICES (HR),AGENCY STAFF,0120,03-May-17,105597,"1,529.60",HAYS SPECIALIST RECRUITMENT LTD,HAY011,
EFDC,32220,OTHER SUPPORT SERVICES (HR),AGENCY STAFF,0120,03-May-17,105787,"1,106.01",HAYS SPECIALIST RECRUITMENT LTD,HAY011,
EFDC,32180,OTHER SUPPORT SERVICES (HR),FIXED PLANT MAINTENANCE,1020,03-May-17,105522,800.63,HAYS SPECIALIST RECRUITMENT LTD,HAY011,
EFDC,35300,ENVIRONMENTAL OTHER,STOCK ISSUES,3070,03-May-17,105086,"1,059.87",LANDSCAPE SUPPLY COMPANY,LAN014,
EFDC,36650,OTHER ACTIVITIES,AGENCY STAFF,0120,03-May-17,105481,946.35,ADECCO UK LTD,ADE002,
EFDC,YA210,SUPERVISION/MANAGEMENT GENERAL,PROFESSIONAL FEES,3420,03-May-17,105571,"5,000.00",LHS,LHS001,
EFDC,CAPNB,NEIGHBOURHOODS CAPITAL,MANAGEMENT CONSULTANT,E130,03-May-17,105600,"1,618.75",PENNANT CONSULTING LIMITED,PEN005,
EFDC,35300,ENVIRONMENTAL OTHER,MATERIALS,3080,03-May-17,105277,529.60,NOMIX-ENVIRO LTD,NOM001,
EFDC,YB620,SUPERVISION/MANAGEMENT SPECIAL,FURNITURE - NEW,3040,03-May-17,104094,"1,081.00",O.C.N. CONTRACT SERVICES,OCN001,
EFDC,32200,OTHER SUPPORT SERVICES (HR),STOCK ISSUES,3070,03-May-17,105751,791.60,CORBEAU PROCUREMENT SUPPLIES LTD,PAP002,
EFDC,33080,OTHER ACTIVITIES,ANNUAL SUPPORT /  LICENSES,3872,03-May-17,105463,"7,010.00",MODERN MINDSET LTD,MOD004,
EFDC,33080,OTHER ACTIVITIES,ANNUAL SUPPORT /  LICENSES,3872,03-May-17,105463,"1,000.00",MODERN MINDSET LTD,MOD004,
EFDC,35300,ENVIRONMENTAL OTHER,MATERIALS,3080,03-May-17,105041,624.10,RIGBY TAYLOR,RIG001,
EFDC,35300,ENVIRONMENTAL OTHER,MATERIALS,3080,03-May-17,105749,534.00,RIGBY TAYLOR,RIG001,
EFDC,33080,OTHER ACTIVITIES,ANNUAL SUPPORT /  LICENSES,3872,03-May-17,104928,"13,000.00",PHOENIX SOFTWARE LTD,PHO002,
EFDC,78001,OTHER ACTIVITIES,FUEL,2330,03-May-17,105058,"1,386.11",SHELL U.K. OIL PRODUCTS LIMITED,SHE007,
EFDC,EH155,ENVIRONMENTAL HEALTH,FUEL,2330,03-May-17,105058,82.33,SHELL U.K. OIL PRODUCTS LIMITED,SHE007,
EFDC,RS301,NORTH WEALD CENTRE,FIXED PLANT MAINTENANCE,1020,03-May-17,105536,300.00,C.Q SURFACING,SUR008,
EFDC,RS301,NORTH WEALD CENTRE,FIXED PLANT MAINTENANCE,1020,03-May-17,105536,490.00,C.Q SURFACING,SUR008,
EFDC,EH112,LAND DRAINAGE/SEWERAGE,OTHER MAINTENANCE,1050,03-May-17,105746,"1,758.18",VEOLIA ES (UK) LTD,VER004,
EFDC,35009,ENVIRONMENTAL OTHER,EQUIPMENT - MAINTENANCE,3030,03-May-17,106247,"3,610.00",WIRELESS CCTV LTD,WIR001,
EFDC,26200,OTHER SUPPORT SERVICES (HR),FIXED PLANT MAINTENANCE,1020,03-May-17,105299,600.00,ALLIED MECHANICAL SERVICES LTD,ALL002,
EFDC,26200,OTHER SUPPORT SERVICES (HR),FIXED PLANT MAINTENANCE,1020,03-May-17,105299,600.00,ALLIED MECHANICAL SERVICES LTD,ALL002,
EFDC,YB400,SUPERVISION/MANAGEMENT SPECIAL,GROUNDS MAINTENANCE,1040,03-May-17,106229,"40,000.00",VOLUNTARY ACTION EPPING FOREST,VOL004,
EFDC,CAPCM,COMMUNITIES CAPITAL,VOIDS WORKS,A045,03-May-17,105736,"3,633.72",GRACELANDS COMPLETE MAINTENANCE SERVICES LTD,GRA007,
EFDC,CAPCM,COMMUNITIES CAPITAL,VOIDS WORKS,A045,03-May-17,105736,"1,332.04",GRACELANDS COMPLETE MAINTENANCE SERVICES LTD,GRA007,
EFDC,CAPCM,COMMUNITIES CAPITAL,VOIDS WORKS,A045,03-May-17,105736,"4,362.07",GRACELANDS COMPLETE MAINTENANCE SERVICES LTD,GRA007,
EFDC,CAPCM,COMMUNITIES CAPITAL,VOIDS WORKS,A045,03-May-17,105736,"2,118.85",GRACELANDS COMPLETE MAINTENANCE SERVICES LTD,GRA007,
EFDC,CAPCM,COMMUNITIES CAPITAL,VOIDS WORKS,A045,03-May-17,105732,"3,753.82",GRACELANDS COMPLETE MAINTENANCE SERVICES LTD,GRA007,
EFDC,CAPCM,COMMUNITIES CAPITAL,VOIDS WORKS,A045,03-May-17,105732,"1,637.79",GRACELANDS COMPLETE MAINTENANCE SERVICES LTD,GRA007,
EFDC,CAPCM,COMMUNITIES CAPITAL,VOIDS WORKS,A045,03-May-17,105732,"3,877.48",GRACELANDS COMPLETE MAINTENANCE SERVICES LTD,GRA007,
EFDC,CAPCM,COMMUNITIES CAPITAL,VOIDS WORKS,A045,03-May-17,105732,"2,279.88",GRACELANDS COMPLETE MAINTENANCE SERVICES LTD,GRA007,
EFDC,CAPCM,COMMUNITIES CAPITAL,VOIDS WORKS,A045,03-May-17,105733,573.11,GRACELANDS COMPLETE MAINTENANCE SERVICES LTD,GRA007,
EFDC,CAPCM,COMMUNITIES CAPITAL,VOIDS WORKS,A045,03-May-17,105485,"1,254.37",GRACELANDS COMPLETE MAINTENANCE SERVICES LTD,GRA007,
EFDC,CAPCM,COMMUNITIES CAPITAL,VOIDS WORKS,A045,03-May-17,105485,"2,880.64",GRACELANDS COMPLETE MAINTENANCE SERVICES LTD,GRA007,
EFDC,CAPCM,COMMUNITIES CAPITAL,VOIDS WORKS,A045,03-May-17,105731,204.89,GRACELANDS COMPLETE MAINTENANCE SERVICES LTD,GRA007,
EFDC,CAPCM,COMMUNITIES CAPITAL,VOIDS WORKS,A045,03-May-17,105734,344.91,GRACELANDS COMPLETE MAINTENANCE SERVICES LTD,GRA007,
EFDC,CAPCM,COMMUNITIES CAPITAL,VOIDS WORKS,A045,03-May-17,105735,"1,790.91",GRACELANDS COMPLETE MAINTENANCE SERVICES LTD,GRA007,
EFDC,CAPCM,COMMUNITIES CAPITAL,VOIDS WORKS,A045,03-May-17,105735,"3,074.45",GRACELANDS COMPLETE MAINTENANCE SERVICES LTD,GRA007,
EFDC,CAPCM,COMMUNITIES CAPITAL,VOIDS WORKS,A045,03-May-17,105735,"3,408.49",GRACELANDS COMPLETE MAINTENANCE SERVICES LTD,GRA007,
EFDC,RM200,RESPONSIVE & VOID REPAIRS,BUILDING MAINTENANCE,1010,03-May-17,105732,"1,173.06",GRACELANDS COMPLETE MAINTENANCE SERVICES LTD,GRA007,
EFDC,RM100,RESPONSIVE & VOID REPAIRS,BUILDING MAINTENANCE,1010,03-May-17,105564,918.26,GRACELANDS COMPLETE MAINTENANCE SERVICES LTD,GRA007,
EFDC,RM200,RESPONSIVE & VOID REPAIRS,BUILDING MAINTENANCE,1010,03-May-17,105731,647.15,GRACELANDS COMPLETE MAINTENANCE SERVICES LTD,GRA007,
EFDC,RM100,RESPONSIVE & VOID REPAIRS,BUILDING MAINTENANCE,1010,03-May-17,105730,720.00,GRACELANDS COMPLETE MAINTENANCE SERVICES LTD,GRA007,
EFDC,RM100,RESPONSIVE & VOID REPAIRS,BUILDING MAINTENANCE,1010,03-May-17,105488,640.00,GRACELANDS COMPLETE MAINTENANCE SERVICES LTD,GRA007,
EFDC,RM200,RESPONSIVE & VOID REPAIRS,BUILDING MAINTENANCE,1010,03-May-17,105736,814.47,GRACELANDS COMPLETE MAINTENANCE SERVICES LTD,GRA007,
EFDC,RM200,RESPONSIVE & VOID REPAIRS,BUILDING MAINTENANCE,1010,03-May-17,105734,"1,027.56",GRACELANDS COMPLETE MAINTENANCE SERVICES LTD,GRA007,
EFDC,RM200,RESPONSIVE & VOID REPAIRS,BUILDING MAINTENANCE,1010,03-May-17,105485,"2,597.27",GRACELANDS COMPLETE MAINTENANCE SERVICES LTD,GRA007,
EFDC,RM100,RESPONSIVE & VOID REPAIRS,BUILDING MAINTENANCE,1010,03-May-17,105549,734.94,GRACELANDS COMPLETE MAINTENANCE SERVICES LTD,GRA007,
EFDC,RM100,RESPONSIVE & VOID REPAIRS,BUILDING MAINTENANCE,1010,03-May-17,105561,673.28,GRACELANDS COMPLETE MAINTENANCE SERVICES LTD,GRA007,
EFDC,RM100,RESPONSIVE & VOID REPAIRS,BUILDING MAINTENANCE,1010,03-May-17,105552,982.28,GRACELANDS COMPLETE MAINTENANCE SERVICES LTD,GRA007,
EFDC,RM100,RESPONSIVE & VOID REPAIRS,BUILDING MAINTENANCE,1010,03-May-17,105557,"1,256.92",GRACELANDS COMPLETE MAINTENANCE SERVICES LTD,GRA007,
EFDC,RM100,RESPONSIVE & VOID REPAIRS,BUILDING MAINTENANCE,1010,03-May-17,105559,666.91,GRACELANDS COMPLETE MAINTENANCE SERVICES LTD,GRA007,
EFDC,RM200,RESPONSIVE & VOID REPAIRS,BUILDING MAINTENANCE,1010,03-May-17,105733,"1,222.91",GRACELANDS COMPLETE MAINTENANCE SERVICES LTD,GRA007,
EFDC,RM200,RESPONSIVE & VOID REPAIRS,BUILDING MAINTENANCE,1010,03-May-17,105735,"2,099.58",GRACELANDS COMPLETE MAINTENANCE SERVICES LTD,GRA007,
EFDC,RM300,PLANNED & CYCLICAL MAINTENANCE,BUILDING MAINTENANCE,1010,03-May-17,106455,"110,740.21",GRACELANDS COMPLETE MAINTENANCE SERVICES LTD,GRA007,
EFDC,RM100,RESPONSIVE & VOID REPAIRS,BUILDING MAINTENANCE,1010,03-May-17,103212,"6,955.69",M & J SERVICES LTD,SER009,
EFDC,78001,OTHER ACTIVITIES,MATERIALS,3080,03-May-17,105823,"1,250.80",CRANBROOK ELECTRICS,CRA001,
EFDC,78001,OTHER ACTIVITIES,MATERIALS,3080,03-May-17,105824,"1,890.00",CRANBROOK ELECTRICS,CRA001,
EFDC,RM100,RESPONSIVE & VOID REPAIRS,BUILDING MAINTENANCE,1010,03-May-17,103339,"1,005.98",TOWER ASPHALT LTD,TOW001,
EFDC,35300,ENVIRONMENTAL OTHER,AGENCY STAFF,0120,03-May-17,105872,822.80,SEWELL STAFFING LTD,SEW001,
EFDC,26200,OTHER SUPPORT SERVICES (HR),BUILDING MAINTENANCE,1010,03-May-17,105309,880.00,T B PROPERTY SERVICES (ESSEX) LTD,TBP001,
EFDC,26200,OTHER SUPPORT SERVICES (HR),BUILDING MAINTENANCE,1010,03-May-17,105309,"1,630.00",T B PROPERTY SERVICES (ESSEX) LTD,TBP001,
EFDC,CAPCM,COMMUNITIES CAPITAL,VOIDS WORKS,A045,03-May-17,105043,746.00,WOODS BUILDING SERVICES LTD,WOO001,
EFDC,32220,OTHER SUPPORT SERVICES (HR),AGENCY STAFF,0120,03-May-17,105756,"1,408.75",MACDONALD & COMPANY FREELANCE LTD,MAC003,
EFDC,32220,OTHER SUPPORT SERVICES (HR),AGENCY STAFF,0120,03-May-17,105755,"1,408.75",MACDONALD & COMPANY FREELANCE LTD,MAC003,
EFDC,26200,OTHER SUPPORT SERVICES (HR),BUILDING MAINTENANCE,1010,03-May-17,104583,939.89,SMART MERCHANTS LTD,SMA002,
EFDC,CH110,"MUSEUM, HERITAGE & CULTURE",RENTS / HIRE OF HALL,1210,03-May-17,106419,"1,100.00",GRANGEWOOD INVESTMENTS LTD,GRA006,
EFDC,UO120,LAND & PROPERTY,AGENCY STAFF,0120,03-May-17,105898,"1,195.04",CAPSTONE PROPERTY RECRUITMENT LTD,CAP001,
EFDC,32220,OTHER SUPPORT SERVICES (HR),AGENCY STAFF,0120,03-May-17,105776,"2,309.50",CAPSTONE PROPERTY RECRUITMENT LTD,CAP001,
EFDC,CAPCM,COMMUNITIES CAPITAL,WORKS,E040,03-May-17,106421,"303,159.47",MULALLEY & CO LTD,MUL003,
EFDC,RM500,OTHER ITEMS,CONSULTANTS FEES,3490,03-May-17,105810,"1,262.50",ZENERGI LTD,ZEN001,
EFDC,YB200,SUPERVISION/MANAGEMENT SPECIAL,REMOVAL EXPENSES,3830,03-May-17,105807,900.00,MCKELLAR & SONS REMOVAL & STORAGE LTD,MCK004,
EFDC,32180,OTHER SUPPORT SERVICES (HR),AGENCY STAFF,0120,03-May-17,106325,"1,136.88",COMMUNITY RESOURCING LTD,COM011,
EFDC,32170,OTHER SUPPORT SERVICES (HR),SUBSCRIPTIONS,3730,03-May-17,105097,660.00,JAMES BUTTON & CO SOLICITORS,JAM002,
EFDC,CAPNB,NEIGHBOURHOODS CAPITAL,SEC 278 MAIN CONTRACTOR,L040,03-May-17,106428,"346,297.10",WALKER CONSTRUCTION (UK) LTD,WAL009,
EFDC,RM200,RESPONSIVE & VOID REPAIRS,BUILDING MAINTENANCE,1010,03-May-17,105113,539.24,SUREVENT LTD,SUR002,
EFDC,RM200,RESPONSIVE & VOID REPAIRS,BUILDING MAINTENANCE,1010,03-May-17,106037,"5,175.00",WICKES BUILDING SUPPLIES LTD,WIC004,
EFDC,WC102,WASTE MANAGEMENT,OTHER CONTRACTORS,4340,03-May-17,104692,"5,500.00",MULGRAVE SERVICES LTD,MUL004,
EFDC,34160,COMMUNITIES SUPPORT SERVICES,PUBLICITY,3360,03-May-17,104939,"2,166.67",KINGSFIELD COMPUTER PRODUCTS LTD,KIN004,
EFDC,33080,OTHER ACTIVITIES,EQUIPMENT - NEW,3010,03-May-17,105075,749.98,KINGSFIELD COMPUTER PRODUCTS LTD,KIN004,
EFDC,PS100,CAR PARKING,OTHER MAINTENANCE,1050,03-May-17,105263,"2,425.00",MURRILL CONSTRUCTION LTD,MUR004,
EFDC,PS100,CAR PARKING,OTHER MAINTENANCE,1050,03-May-17,105235,"1,650.00",MURRILL CONSTRUCTION LTD,MUR004,
EFDC,CAPCM,COMMUNITIES CAPITAL,MANAGEMENT CONSULTANT,E130,03-May-17,106424,"11,922.79",STORM BUILDING LTD,STO007,
EFDC,CAPCM,COMMUNITIES CAPITAL,WORKS,E040,03-May-17,106423,"6,323.94",STORM BUILDING LTD,STO007,
EFDC,CAPCM,COMMUNITIES CAPITAL,CONSTRUCTION,E030,03-May-17,106413,"38,723.57",DENMARK AND WHITE LTD,DEN003,
EFDC,CAPCM,COMMUNITIES CAPITAL,CONSTRUCTION,E030,03-May-17,106414,"23,179.00",DENMARK AND WHITE LTD,DEN003,
EFDC,DC110,PLANNING REGULATORY SERVICES,PROFESSIONAL FEES,3420,03-May-17,105072,"1,050.00",TEMPIETTO ARCHITECTS,TEM001,
EFDC,GD140,VOLUNTARY SECTOR SUPPORT,GRANTS TO VOLUNTARY ORGS,3710,09-May-17,24118,"19,000.00",EPPING FOREST CITIZENS ADVICE BUREAU,205P,
EFDC,BAL01,EFDC BALANCE SHEET,SUNDRY DEBTORS (OTHER),Z208,09-May-17,24119,810.00,DUNCAN PHILLIPS,654P,
EFDC,BAL01,EFDC BALANCE SHEET,DEPOSITS - PAID,Z223,09-May-17,24119,810.00,DUNCAN PHILLIPS,654P,
EFDC,TO100,LAND & PROPERTY,LICENSES,2360,09-May-17,24121,"1,200.00",POST OFFICE LTD,5023P,
EFDC,BAL01,EFDC BALANCE SHEET,HOUSING RENT REFUNDS,Z613,09-May-17,24114,760.78,MENCAP,6831P,
EFDC,BAL01,EFDC BALANCE SHEET,NDR REFUNDS,Z623,09-May-17,24115,"3,373.41",METROPAC LTD,6832P,
EFDC,BAL01,EFDC BALANCE SHEET,NDR REFUNDS,Z623,09-May-17,24128,732.21,TELEFONICA UK LTD,6836P,
EFDC,BAL01,EFDC BALANCE SHEET,NDR REFUNDS,Z623,09-May-17,24129,907.87,WOODREDON EQUESTRIAN CENTRE LTD,6837P,
EFDC,BAL01,EFDC BALANCE SHEET,SUNDRY DEBTORS (OTHER),Z208,09-May-17,24105,540.00,NILGUN CIYILTEPE,6827P,
EFDC,YB200,SUPERVISION/MANAGEMENT SPECIAL,CONTRIBUTIONS,3740,09-May-17,24126,500.00,MISS CHRISTINE M HEDGES,6834P,
EFDC,YB200,SUPERVISION/MANAGEMENT SPECIAL,COMPENSATION PAYMENTS,3880,09-May-17,24126,944.70,MISS CHRISTINE M HEDGES,6834P,
EFDC,YB200,SUPERVISION/MANAGEMENT SPECIAL,REMOVAL EXPENSES,3830,09-May-17,24126,500.00,MISS CHRISTINE M HEDGES,6834P,
EFDC,BAL01,EFDC BALANCE SHEET,NDR REFUNDS,Z623,09-May-17,24132,"4,872.00",H & V INSULATION LTD,6840P,
EFDC,BAL01,EFDC BALANCE SHEET,AIMS,Z211,09-May-17,24123,687.50,MR PRATHAPAN RAGHAVAN,6151P,
EFDC,33080,OTHER ACTIVITIES,ANNUAL SUPPORT /  LICENSES,3872,10-May-17,106571,"1,005.00",AUDITWARE SYSTEMS LIMITED,AUD003,
EFDC,33080,OTHER ACTIVITIES,FIXED NETWORK LINE COSTS,3520,10-May-17,106830,"1,118.00",BRITISH TELECOMMUNICATIONS PLC,BRI002,
EFDC,32200,OTHER SUPPORT SERVICES (HR),EQUIPMENT - HIRED,3020,10-May-17,105754,"1,367.75",CANON (UK) LTD,CAN004,
EFDC,32200,OTHER SUPPORT SERVICES (HR),EQUIPMENT - HIRED,3020,10-May-17,102625,"1,736.44",CANON (UK) LTD,CAN004,
EFDC,DC110,PLANNING REGULATORY SERVICES,PROFESSIONAL FEES,3420,10-May-17,106588,"2,250.00",MR M BEARD,BEA001,
EFDC,DC110,PLANNING REGULATORY SERVICES,PROFESSIONAL FEES,3420,10-May-17,106604,750.00,MR M BEARD,BEA001,
EFDC,RM100,RESPONSIVE & VOID REPAIRS,BUILDING MAINTENANCE,1010,10-May-17,89826,855.25,OPENVIEW SECURITY SOLUTIONS LTD,CAR003,
EFDC,RM100,RESPONSIVE & VOID REPAIRS,BUILDING MAINTENANCE,1010,10-May-17,106251,"2,428.44",OPENVIEW SECURITY SOLUTIONS LTD,CAR003,
EFDC,RM100,RESPONSIVE & VOID REPAIRS,BUILDING MAINTENANCE,1010,10-May-17,106275,"2,428.44",OPENVIEW SECURITY SOLUTIONS LTD,CAR003,
EFDC,RM100,RESPONSIVE & VOID REPAIRS,BUILDING MAINTENANCE,1010,10-May-17,106288,"2,428.44",OPENVIEW SECURITY SOLUTIONS LTD,CAR003,
EFDC,28030,OTHER SUPPORT SERVICES (HR),MATERIALS,3080,10-May-17,106608,-57.20,CARE VENDING SERVICES LTD,CAR017,
EFDC,28030,OTHER SUPPORT SERVICES (HR),MATERIALS,3080,10-May-17,106608,652.09,CARE VENDING SERVICES LTD,CAR017,
EFDC,34110,COMMUNITIES SUPPORT SERVICES,BANKING AND CASH COLLECTION,3440,10-May-17,104499,72.59,CONTRACT SECURITY SERVICES LTD,CON033,
EFDC,EH160,OTHER ACTIVITIES,BANKING AND CASH COLLECTION,3440,10-May-17,104499,80.40,CONTRACT SECURITY SERVICES LTD,CON033,
EFDC,EH160,OTHER ACTIVITIES,BANKING AND CASH COLLECTION,3440,10-May-17,102304,80.40,CONTRACT SECURITY SERVICES LTD,CON033,
EFDC,CH110,"MUSEUM, HERITAGE & CULTURE",BANKING AND CASH COLLECTION,3440,10-May-17,104499,36.29,CONTRACT SECURITY SERVICES LTD,CON033,
EFDC,TO100,LAND & PROPERTY,BANKING AND CASH COLLECTION,3440,10-May-17,102304,72.58,CONTRACT SECURITY SERVICES LTD,CON033,
EFDC,34110,COMMUNITIES SUPPORT SERVICES,BANKING AND CASH COLLECTION,3440,10-May-17,102304,72.59,CONTRACT SECURITY SERVICES LTD,CON033,
EFDC,33020,OTHER ACTIVITIES,BANKING AND CASH COLLECTION,3440,10-May-17,102304,362.92,CONTRACT SECURITY SERVICES LTD,CON033,
EFDC,YB620,SUPERVISION/MANAGEMENT SPECIAL,BANKING AND CASH COLLECTION,3440,10-May-17,104499,72.58,CONTRACT SECURITY SERVICES LTD,CON033,
EFDC,YB620,SUPERVISION/MANAGEMENT SPECIAL,BANKING AND CASH COLLECTION,3440,10-May-17,102304,72.58,CONTRACT SECURITY SERVICES LTD,CON033,
EFDC,33020,OTHER ACTIVITIES,BANKING AND CASH COLLECTION,3440,10-May-17,104499,725.83,CONTRACT SECURITY SERVICES LTD,CON033,
EFDC,33020,OTHER ACTIVITIES,BANKING AND CASH COLLECTION,3440,10-May-17,102304,725.83,CONTRACT SECURITY SERVICES LTD,CON033,
EFDC,TO100,LAND & PROPERTY,BANKING AND CASH COLLECTION,3440,10-May-17,104499,72.58,CONTRACT SECURITY SERVICES LTD,CON033,
EFDC,CH110,"MUSEUM, HERITAGE & CULTURE",BANKING AND CASH COLLECTION,3440,10-May-17,102304,36.29,CONTRACT SECURITY SERVICES LTD,CON033,
EFDC,33020,OTHER ACTIVITIES,BANKING AND CASH COLLECTION,3440,10-May-17,104499,362.92,CONTRACT SECURITY SERVICES LTD,CON033,
EFDC,YB500,SUPERVISION/MANAGEMENT SPECIAL,GAS,1110,10-May-17,105182,782.53,CORONA ENERGY RETAIL 4 LTD,COR015,
EFDC,YB500,SUPERVISION/MANAGEMENT SPECIAL,GAS,1110,10-May-17,105180,"1,255.94",CORONA ENERGY RETAIL 4 LTD,COR015,
EFDC,YB500,SUPERVISION/MANAGEMENT SPECIAL,GAS,1110,10-May-17,105175,"1,095.33",CORONA ENERGY RETAIL 4 LTD,COR015,
EFDC,YB500,SUPERVISION/MANAGEMENT SPECIAL,GAS,1110,10-May-17,105179,"1,124.99",CORONA ENERGY RETAIL 4 LTD,COR015,
EFDC,YB500,SUPERVISION/MANAGEMENT SPECIAL,GAS,1110,10-May-17,105205,"1,015.27",CORONA ENERGY RETAIL 4 LTD,COR015,
EFDC,YB500,SUPERVISION/MANAGEMENT SPECIAL,GAS,1110,10-May-17,105204,989.37,CORONA ENERGY RETAIL 4 LTD,COR015,
EFDC,YB620,SUPERVISION/MANAGEMENT SPECIAL,GAS,1110,10-May-17,105173,"1,259.06",CORONA ENERGY RETAIL 4 LTD,COR015,
EFDC,YB500,SUPERVISION/MANAGEMENT SPECIAL,GAS,1110,10-May-17,105176,841.57,CORONA ENERGY RETAIL 4 LTD,COR015,
EFDC,27050,ACCOMMODATION,GAS,1110,10-May-17,105223,"1,704.90",CORONA ENERGY RETAIL 4 LTD,COR015,
EFDC,35300,ENVIRONMENTAL OTHER,GAS,1110,10-May-17,105183,"1,200.15",CORONA ENERGY RETAIL 4 LTD,COR015,
EFDC,26200,OTHER SUPPORT SERVICES (HR),BUILDING MAINTENANCE,1010,10-May-17,106828,81.67,ESSEX LIFT SERVICES LTD,ESS032,
EFDC,26200,OTHER SUPPORT SERVICES (HR),FIXED PLANT MAINTENANCE,1020,10-May-17,106828,81.67,ESSEX LIFT SERVICES LTD,ESS032,
EFDC,26200,OTHER SUPPORT SERVICES (HR),FIXED PLANT MAINTENANCE,1020,10-May-17,106828,81.67,ESSEX LIFT SERVICES LTD,ESS032,
EFDC,26200,OTHER SUPPORT SERVICES (HR),BUILDING MAINTENANCE,1010,10-May-17,106828,81.67,ESSEX LIFT SERVICES LTD,ESS032,
EFDC,RM400,PLANNED & CYCLICAL MAINTENANCE,BUILDING MAINTENANCE,1010,10-May-17,106828,81.67,ESSEX LIFT SERVICES LTD,ESS032,
EFDC,RM400,PLANNED & CYCLICAL MAINTENANCE,BUILDING MAINTENANCE,1010,10-May-17,106828,84.99,ESSEX LIFT SERVICES LTD,ESS032,
EFDC,RM400,PLANNED & CYCLICAL MAINTENANCE,BUILDING MAINTENANCE,1010,10-May-17,106828,84.99,ESSEX LIFT SERVICES LTD,ESS032,
EFDC,RM400,PLANNED & CYCLICAL MAINTENANCE,BUILDING MAINTENANCE,1010,10-May-17,106828,84.99,ESSEX LIFT SERVICES LTD,ESS032,
EFDC,RM400,PLANNED & CYCLICAL MAINTENANCE,BUILDING MAINTENANCE,1010,10-May-17,106828,84.99,ESSEX LIFT SERVICES LTD,ESS032,
EFDC,26200,OTHER SUPPORT SERVICES (HR),FIXED PLANT MAINTENANCE,1020,10-May-17,106828,61.67,ESSEX LIFT SERVICES LTD,ESS032,
EFDC,RM400,PLANNED & CYCLICAL MAINTENANCE,BUILDING MAINTENANCE,1010,10-May-17,106828,84.99,ESSEX LIFT SERVICES LTD,ESS032,
EFDC,RM400,PLANNED & CYCLICAL MAINTENANCE,BUILDING MAINTENANCE,1010,10-May-17,106828,84.99,ESSEX LIFT SERVICES LTD,ESS032,
EFDC,RM400,PLANNED & CYCLICAL MAINTENANCE,BUILDING MAINTENANCE,1010,10-May-17,106828,84.99,ESSEX LIFT SERVICES LTD,ESS032,
EFDC,RM400,PLANNED & CYCLICAL MAINTENANCE,BUILDING MAINTENANCE,1010,10-May-17,106828,81.67,ESSEX LIFT SERVICES LTD,ESS032,
EFDC,RM400,PLANNED & CYCLICAL MAINTENANCE,BUILDING MAINTENANCE,1010,10-May-17,106828,81.67,ESSEX LIFT SERVICES LTD,ESS032,
EFDC,RM400,PLANNED & CYCLICAL MAINTENANCE,BUILDING MAINTENANCE,1010,10-May-17,106828,81.67,ESSEX LIFT SERVICES LTD,ESS032,
EFDC,RM400,PLANNED & CYCLICAL MAINTENANCE,BUILDING MAINTENANCE,1010,10-May-17,106828,81.67,ESSEX LIFT SERVICES LTD,ESS032,
EFDC,26200,OTHER SUPPORT SERVICES (HR),BUILDING MAINTENANCE,1010,10-May-17,106828,81.67,ESSEX LIFT SERVICES LTD,ESS032,
EFDC,RM400,PLANNED & CYCLICAL MAINTENANCE,BUILDING MAINTENANCE,1010,10-May-17,106828,84.99,ESSEX LIFT SERVICES LTD,ESS032,
EFDC,RM400,PLANNED & CYCLICAL MAINTENANCE,BUILDING MAINTENANCE,1010,10-May-17,106828,84.99,ESSEX LIFT SERVICES LTD,ESS032,
EFDC,RM400,PLANNED & CYCLICAL MAINTENANCE,BUILDING MAINTENANCE,1010,10-May-17,106828,81.67,ESSEX LIFT SERVICES LTD,ESS032,
EFDC,RM400,PLANNED & CYCLICAL MAINTENANCE,BUILDING MAINTENANCE,1010,10-May-17,106828,81.67,ESSEX LIFT SERVICES LTD,ESS032,
EFDC,RM400,PLANNED & CYCLICAL MAINTENANCE,BUILDING MAINTENANCE,1010,10-May-17,106828,81.67,ESSEX LIFT SERVICES LTD,ESS032,
EFDC,26200,OTHER SUPPORT SERVICES (HR),FIXED PLANT MAINTENANCE,1020,10-May-17,106828,81.67,ESSEX LIFT SERVICES LTD,ESS032,
EFDC,RM400,PLANNED & CYCLICAL MAINTENANCE,BUILDING MAINTENANCE,1010,10-May-17,106828,81.67,ESSEX LIFT SERVICES LTD,ESS032,
EFDC,RM100,RESPONSIVE & VOID REPAIRS,BUILDING MAINTENANCE,1010,10-May-17,105860,"1,160.05",EXTERIOR PLAS,EXT001,
EFDC,RM100,RESPONSIVE & VOID REPAIRS,BUILDING MAINTENANCE,1010,10-May-17,105856,966.79,EXTERIOR PLAS,EXT001,
EFDC,RM100,RESPONSIVE & VOID REPAIRS,BUILDING MAINTENANCE,1010,10-May-17,105847,"1,870.90",EXTERIOR PLAS,EXT001,
EFDC,RM100,RESPONSIVE & VOID REPAIRS,BUILDING MAINTENANCE,1010,10-May-17,105846,803.99,EXTERIOR PLAS,EXT001,
EFDC,RM100,RESPONSIVE & VOID REPAIRS,BUILDING MAINTENANCE,1010,10-May-17,105870,"2,015.46",EXTERIOR PLAS,EXT001,
EFDC,RM100,RESPONSIVE & VOID REPAIRS,BUILDING MAINTENANCE,1010,10-May-17,105861,868.30,EXTERIOR PLAS,EXT001,
EFDC,RM100,RESPONSIVE & VOID REPAIRS,BUILDING MAINTENANCE,1010,10-May-17,105858,"1,224.82",EXTERIOR PLAS,EXT001,
EFDC,RM100,RESPONSIVE & VOID REPAIRS,BUILDING MAINTENANCE,1010,10-May-17,105853,917.01,EXTERIOR PLAS,EXT001,
EFDC,RM100,RESPONSIVE & VOID REPAIRS,BUILDING MAINTENANCE,1010,10-May-17,105851,"1,004.81",EXTERIOR PLAS,EXT001,
EFDC,RM100,RESPONSIVE & VOID REPAIRS,BUILDING MAINTENANCE,1010,10-May-17,105849,"1,150.54",EXTERIOR PLAS,EXT001,
EFDC,RM100,RESPONSIVE & VOID REPAIRS,BUILDING MAINTENANCE,1010,10-May-17,105871,711.04,EXTERIOR PLAS,EXT001,
EFDC,CM102,CORPORATE ACTIVITIES,COMPUTER - OTHER,3570,10-May-17,105913,"17,602.50",FIRMSTEP,FIR009,
EFDC,32220,OTHER SUPPORT SERVICES (HR),AGENCY STAFF,0120,10-May-17,105788,843.50,HAYS SPECIALIST RECRUITMENT LTD,HAY011,
EFDC,32180,OTHER SUPPORT SERVICES (HR),AGENCY STAFF,0120,10-May-17,105814,809.63,HAYS SPECIALIST RECRUITMENT LTD,HAY011,
EFDC,78001,OTHER ACTIVITIES,REFUSE REMOVAL,1640,10-May-17,105473,765.00,HEATHERLAND LTD T/A LUNNON PLANT & WASTE SERV,HEA001,
EFDC,36650,OTHER ACTIVITIES,AGENCY STAFF,0120,10-May-17,105850,883.73,ADECCO UK LTD,ADE002,
EFDC,CAPCM,COMMUNITIES CAPITAL,EQUIPMENT ACQUISITION,C330,10-May-17,106327,"10,185.00",ADVANCED VISION SURVEILLANCE LTD,ADV001,
EFDC,RM200,RESPONSIVE & VOID REPAIRS,BUILDING MAINTENANCE,1010,10-May-17,106393,"3,746.18",MEARS LTD,MEA002,
EFDC,RM200,RESPONSIVE & VOID REPAIRS,BUILDING MAINTENANCE,1010,10-May-17,106236,"3,028.60",MEARS LTD,MEA002,
EFDC,CAPCM,COMMUNITIES CAPITAL,VOIDS WORKS,A045,10-May-17,106236,"2,038.22",MEARS LTD,MEA002,
EFDC,CAPCM,COMMUNITIES CAPITAL,VOIDS WORKS,A045,10-May-17,106393,199.21,MEARS LTD,MEA002,
EFDC,CAPCM,COMMUNITIES CAPITAL,VOIDS WORKS,A045,10-May-17,106236,"2,632.01",MEARS LTD,MEA002,
EFDC,CAPCM,COMMUNITIES CAPITAL,VOIDS WORKS,A045,10-May-17,106236,"2,473.85",MEARS LTD,MEA002,
EFDC,WC100,WASTE MANAGEMENT,ADVERTISING,3820,10-May-17,106210,691.25,NEWSQUEST MEDIA GROUP,NEW002,
EFDC,33080,OTHER ACTIVITIES,MOBILE PHONE LINE COSTS,3580,10-May-17,106837,"4,191.25",O2 (UK) LTD,OTW002,
EFDC,33080,OTHER ACTIVITIES,MOBILE PHONE LINE COSTS,3580,10-May-17,106837,33.19,O2 (UK) LTD,OTW002,
EFDC,32200,OTHER SUPPORT SERVICES (HR),STOCK ISSUES,3070,10-May-17,105932,583.04,OVENDENS,OVE001,
EFDC,32200,OTHER SUPPORT SERVICES (HR),STOCK ISSUES,3070,10-May-17,106378,"1,235.26",CORBEAU PROCUREMENT SUPPLIES LTD,PAP002,
EFDC,33060,OTHER ACTIVITIES,CONSULTANTS FEES,3490,10-May-17,106374,"1,000.00",PRICEWATERHOUSECOOPERS LLP,PRI002,
EFDC,26200,OTHER SUPPORT SERVICES (HR),BUILDING MAINTENANCE,1010,10-May-17,106440,"1,340.00",ROGER AYERS T/A R J SPECIALIST COATINGS,SPE005,
EFDC,26200,OTHER SUPPORT SERVICES (HR),BUILDING MAINTENANCE,1010,10-May-17,106440,"1,842.00",ROGER AYERS T/A R J SPECIALIST COATINGS,SPE005,
EFDC,CY100,SAFER COMMUNITIES,CONTRIBUTIONS,3740,10-May-17,105893,510.50,SOLON SECURITY LTD,SOL008,
EFDC,37100,PLANNING OTHER,POSTAGE,3510,10-May-17,106639,275.70,ROYAL MAIL GROUP PLC,ROY015,
EFDC,CH110,"MUSEUM, HERITAGE & CULTURE",POSTAGE,3510,10-May-17,106639,1.20,ROYAL MAIL GROUP PLC,ROY015,
EFDC,37100,PLANNING OTHER,POSTAGE,3510,10-May-17,105790,290.10,ROYAL MAIL GROUP PLC,ROY015,
EFDC,36200,OTHER ACTIVITIES,POSTAGE,3510,10-May-17,105790,254.10,ROYAL MAIL GROUP PLC,ROY015,
EFDC,CH110,"MUSEUM, HERITAGE & CULTURE",POSTAGE,3510,10-May-17,105790,0.30,ROYAL MAIL GROUP PLC,ROY015,
EFDC,34110,COMMUNITIES SUPPORT SERVICES,POSTAGE,3510,10-May-17,105790,1.50,ROYAL MAIL GROUP PLC,ROY015,
EFDC,34110,COMMUNITIES SUPPORT SERVICES,POSTAGE,3510,10-May-17,106639,9.90,ROYAL MAIL GROUP PLC,ROY015,
EFDC,EP100,OTHER ACTIVITIES,OTHER MISCELLANEOUS EXPENSES,3850,10-May-17,106639,0.30,ROYAL MAIL GROUP PLC,ROY015,
EFDC,EL100,ELECTIONS,OTHER MISCELLANEOUS EXPENSES,3850,10-May-17,105790,42.00,ROYAL MAIL GROUP PLC,ROY015,
EFDC,EL100,ELECTIONS,OTHER MISCELLANEOUS EXPENSES,3850,10-May-17,106639,81.00,ROYAL MAIL GROUP PLC,ROY015,
EFDC,EL100,ELECTIONS,OTHER MISCELLANEOUS EXPENSES,3850,10-May-17,106639,"5,067.18",ROYAL MAIL GROUP PLC,ROY015,
EFDC,35900,ENVIRONMENTAL OTHER,POSTAGE,3510,10-May-17,105790,73.80,ROYAL MAIL GROUP PLC,ROY015,
EFDC,35900,ENVIRONMENTAL OTHER,POSTAGE,3510,10-May-17,106639,79.20,ROYAL MAIL GROUP PLC,ROY015,
EFDC,36200,OTHER ACTIVITIES,POSTAGE,3510,10-May-17,106639,"2,547.84",ROYAL MAIL GROUP PLC,ROY015,
EFDC,33055,OTHER ACTIVITIES,POSTAGE,3510,10-May-17,105790,208.80,ROYAL MAIL GROUP PLC,ROY015,
EFDC,33055,OTHER ACTIVITIES,POSTAGE,3510,10-May-17,106639,6.44,ROYAL MAIL GROUP PLC,ROY015,
EFDC,33075,OTHER ACTIVITIES,POSTAGE,3510,10-May-17,105790,747.26,ROYAL MAIL GROUP PLC,ROY015,
EFDC,33075,OTHER ACTIVITIES,POSTAGE,3510,10-May-17,106639,972.23,ROYAL MAIL GROUP PLC,ROY015,
EFDC,32030,OTHER SUPPORT SERVICES (HR),POSTAGE,3510,10-May-17,106639,134.40,ROYAL MAIL GROUP PLC,ROY015,
EFDC,RE100,ELECTIONS,POSTAGE,3510,10-May-17,105790,68.10,ROYAL MAIL GROUP PLC,ROY015,
EFDC,33055,OTHER ACTIVITIES,POSTAGE,3510,10-May-17,106639,377.70,ROYAL MAIL GROUP PLC,ROY015,
EFDC,RE100,ELECTIONS,POSTAGE,3510,10-May-17,106639,144.00,ROYAL MAIL GROUP PLC,ROY015,
EFDC,32030,OTHER SUPPORT SERVICES (HR),POSTAGE,3510,10-May-17,105790,72.90,ROYAL MAIL GROUP PLC,ROY015,
EFDC,35009,ENVIRONMENTAL OTHER,EQUIPMENT - MAINTENANCE,3030,10-May-17,106593,710.00,RVTV SECURITY LTD,RVT001,
EFDC,YB500,SUPERVISION/MANAGEMENT SPECIAL,EQUIPMENT - MAINTENANCE,3030,10-May-17,105766,"37,186.30",TUNSTALL HEALTHCARE (UK) LTD,TUN001,
EFDC,YB500,SUPERVISION/MANAGEMENT SPECIAL,EQUIPMENT - MAINTENANCE,3030,10-May-17,105765,"9,893.93",TUNSTALL HEALTHCARE (UK) LTD,TUN001,
EFDC,CAPCM,COMMUNITIES CAPITAL,WORKS- COUNCIL DWELLINGS,A040,10-May-17,106839,"1,054.00",STANNAH LIFT SERVICES LTD,STA019,
EFDC,RM100,RESPONSIVE & VOID REPAIRS,BUILDING MAINTENANCE,1010,10-May-17,106840,996.00,STANNAH LIFT SERVICES LTD,STA019,
EFDC,78001,OTHER ACTIVITIES,MATERIALS,3080,10-May-17,105760,530.00,TOUCAN TOOL CO LTD,TOU001,
EFDC,CAPCM,COMMUNITIES CAPITAL,WORKS- COUNCIL DWELLINGS,A040,10-May-17,106846,"2,741.25",VSN ENTERPRISES LTD,VSN001,
EFDC,CAPCM,COMMUNITIES CAPITAL,WORKS- COUNCIL DWELLINGS,A040,10-May-17,106846,"2,300.00",VSN ENTERPRISES LTD,VSN001,
EFDC,25300,INTERNAL INSURANCE FUND,OTHER MISCELLANEOUS EXPENSES,3850,10-May-17,106843,"2,652.50",ZURICH INSURANCE PLC,ZUR008,
EFDC,CAPCM,COMMUNITIES CAPITAL,WORKS- COUNCIL DWELLINGS,A040,10-May-17,106845,"22,547.75",GRACELANDS COMPLETE MAINTENANCE SERVICES LTD,GRA007,
EFDC,RM200,RESPONSIVE & VOID REPAIRS,BUILDING MAINTENANCE,1010,10-May-17,105921,"1,418.90",GRACELANDS COMPLETE MAINTENANCE SERVICES LTD,GRA007,
EFDC,RM100,RESPONSIVE & VOID REPAIRS,BUILDING MAINTENANCE,1010,10-May-17,106207,"3,517.92",GRACELANDS COMPLETE MAINTENANCE SERVICES LTD,GRA007,
EFDC,33075,OTHER ACTIVITIES,AGENCY STAFF,0120,10-May-17,106382,642.35,MORGAN HUNT UK LTD,MOR001,
EFDC,33075,OTHER ACTIVITIES,AGENCY STAFF,0120,10-May-17,106744,814.01,MORGAN HUNT UK LTD,MOR001,
EFDC,36500,OTHER ACTIVITIES,AGENCY STAFF,0120,10-May-17,106745,850.00,BADENOCH & CLARK,BAD001,
EFDC,RM100,RESPONSIVE & VOID REPAIRS,BUILDING MAINTENANCE,1010,10-May-17,104745,929.15,TOWER ASPHALT LTD,TOW001,
EFDC,RM300,PLANNED & CYCLICAL MAINTENANCE,BUILDING MAINTENANCE,1010,10-May-17,105989,"9,822.45",DDS (INTERNATIONAL) LTD,DDS001,
EFDC,CH110,"MUSEUM, HERITAGE & CULTURE",PROFESSIONAL FEES,3420,10-May-17,105989,645.00,DDS (INTERNATIONAL) LTD,DDS001,
EFDC,33065,OTHER ACTIVITIES,PROFESSIONAL FEES,3420,10-May-17,105128,"2,050.00",BDO LLP,BDO001,
EFDC,CAPCM,COMMUNITIES CAPITAL,WORKS- COUNCIL DWELLINGS,A040,10-May-17,106829,"4,121.32",ARAN SERVICES LTD,ARA001,
EFDC,33095,OTHER ACTIVITIES,PROFESSIONAL FEES,3420,10-May-17,105591,"22,141.35",SMITH BELLERBY,SMI003,
EFDC,UO120,LAND & PROPERTY,AGENCY STAFF,0120,10-May-17,106762,"1,195.04",CAPSTONE PROPERTY RECRUITMENT LTD,CAP001,
EFDC,UO120,LAND & PROPERTY,AGENCY STAFF,0120,10-May-17,106383,"1,195.04",CAPSTONE PROPERTY RECRUITMENT LTD,CAP001,
EFDC,CAPNB,NEIGHBOURHOODS CAPITAL,QUANTITY SURVEYORS FEES,E170,10-May-17,106724,"2,000.00",RIDGE AND PARTNERS LLP,RID002,
EFDC,EH142,ENVIRONMENTAL HEALTH,PROFESSIONAL FEES,3420,10-May-17,106841,557.90,V. E. T. S (INTERNATIONAL) LTD,VET001,
EFDC,32180,OTHER SUPPORT SERVICES (HR),AGENCY STAFF,0120,10-May-17,106324,850.00,COMMUNITY RESOURCING LTD,COM011,
EFDC,35950,ENVIRONMENTAL OTHER,CONSULTANTS FEES,3490,10-May-17,106838,"5,000.00",RPT CONSULTING LTD,RPT001,
EFDC,43310,ENVIRONMENTAL OTHER,AGENCY STAFF,0120,10-May-17,106570,"9,940.67",OVE ARUP & PARTNERS LTD,OVE002,
EFDC,33075,OTHER ACTIVITIES,EQUIPMENT - NEW,3010,10-May-17,105880,"4,194.00",KINGSFIELD COMPUTER PRODUCTS LTD,KIN004,
EFDC,CAPCM,COMMUNITIES CAPITAL,WORKS- COUNCIL DWELLINGS,A040,10-May-17,106844,"39,677.30",ANGLIAN BUILDING PRODUCTS,ANG002,
EFDC,CH118,"MUSEUM, HERITAGE & CULTURE",EQUIPMENT - NEW,3010,10-May-17,106223,"3,859.27",CALUMET PHOTOGRAPHY LTD,CAL002,
EFDC,HL100,HOMELESSNESS,COMPENSATION PAYMENTS,3880,10-May-17,105782,"1,600.00",MR ANDREW LANE,LAN003,
EFDC,34160,COMMUNITIES SUPPORT SERVICES,PUBLICITY,3360,10-May-17,105781,850.00,ESSENTIAL SUPPLIES UK LTD,ESS019,
EFDC,CAPNB,NEIGHBOURHOODS CAPITAL,LEGAL FEES,E140,10-May-17,106834,"860,686.22",MCLAUGHLIN & HARVEY CONSTRUCTION LTD,MCL003,
EFDC,BAL01,EFDC BALANCE SHEET,SALARIES - UNIONS,Z605,16-May-17,24212,"1,506.05",UNISON,UNI001,
EFDC,32140,OTHER SUPPORT SERVICES (HR),COMMISSION,9320,16-May-17,24212,-37.65,UNISON,UNI001,
EFDC,BAL01,EFDC BALANCE SHEET,NDR REFUNDS,Z623,16-May-17,24192,"141,348.65",DR HU KHAN & PARTNERS,2115P,
EFDC,BAL01,EFDC BALANCE SHEET,NDR REFUNDS,Z623,16-May-17,24181,514.58,MR HASAN DAGLI,1425P,
EFDC,RS400,"COMMUNITY, HEALTH & WELLBEING",ACTIVITIES,3372,16-May-17,24208,"5,450.00",THE RED BALLOON FAMILY FOUNDATION,3537P,
EFDC,BAL01,EFDC BALANCE SHEET,SUNDRY DEBTORS (OTHER),Z208,16-May-17,24195,850.00,MR SAMUEL OMOMOH,4967P,
EFDC,BAL01,EFDC BALANCE SHEET,DEPOSITS - PAID,Z223,16-May-17,24195,850.00,MR SAMUEL OMOMOH,4967P,
EFDC,25300,INTERNAL INSURANCE FUND,OTHER MISCELLANEOUS EXPENSES,3850,16-May-17,24216,"15,663.31",ROY BOTTELL,6636P,
EFDC,25300,INTERNAL INSURANCE FUND,OTHER MISCELLANEOUS EXPENSES,3850,16-May-17,24224,"4,374.00",IRWIN MITCHELL LLP,6642P,
EFDC,RS400,"COMMUNITY, HEALTH & WELLBEING",ACTIVITIES,3372,16-May-17,24202,915.00,RESTORE COMMUNITY CENTRE,6851P,
EFDC,BAL01,EFDC BALANCE SHEET,DEPOSITS - PAID,Z223,16-May-17,24214,"1,000.00",WESTBURY HOMES,6857P,
EFDC,BAL01,EFDC BALANCE SHEET,HOUSING RENT REFUNDS,Z613,16-May-17,24225,543.92,MENCAP,6831P,
EFDC,BAL01,EFDC BALANCE SHEET,INSURANCE EXCESS CREDITOR,Z621,16-May-17,24226,"1,000.00",ORIEL SERVICES LTD,6864P,
EFDC,BAL01,EFDC BALANCE SHEET,NDR REFUNDS,Z623,16-May-17,24180,"8,152.60",CHRYSALIS NURSERIES LTD,6843P,
EFDC,BAL01,EFDC BALANCE SHEET,NDR REFUNDS,Z623,16-May-17,24186,"6,909.34",HARGREAVES (UK) SERVICES LTD-TRANSPORT,6844P,
EFDC,GD100,VOLUNTARY SECTOR SUPPORT,GRANTS TO VOLUNTARY ORGS,3710,16-May-17,24179,610.00,CHINGFORD AND WOODFORD AIKIDO CLUB,6686P,
EFDC,41100,OTHER ACTIVITIES,SUBSCRIPTIONS,3730,17-May-17,107130,"6,750.00",ASSOC. OF RETAINED COUNCIL HOUSING LTD,ASS020,
EFDC,33080,OTHER ACTIVITIES,FIXED NETWORK LINE COSTS,3520,17-May-17,107315,"10,705.28",BRITISH TELECOMMUNICATIONS PLC,BRI002,
EFDC,33080,OTHER ACTIVITIES,FIXED NETWORK LINE COSTS,3520,17-May-17,107316,"2,081.50",BRITISH TELECOMMUNICATIONS PLC,BRI002,
EFDC,33080,OTHER ACTIVITIES,EQUIPMENT - MAINTENANCE,3030,17-May-17,105933,660.00,CANON (UK) LTD,CAN004,
EFDC,BA100,HOUSING BENEFITS,COMPUTER - OTHER,3570,17-May-17,105516,"1,250.00",CAPITA BUSINESS SERVICES LTD,CAP004,
EFDC,33080,OTHER ACTIVITIES,ANNUAL SUPPORT /  LICENSES,3872,17-May-17,105937,"9,165.00",CAPITA BUSINESS SERVICES LTD,CAP004,
EFDC,33080,OTHER ACTIVITIES,EQUIPMENT - MAINTENANCE,3030,17-May-17,105884,"1,243.83",BANKING AUTOMATION LTD,BAN011,
EFDC,33080,OTHER ACTIVITIES,ANNUAL SUPPORT /  LICENSES,3872,17-May-17,105884,"2,902.29",BANKING AUTOMATION LTD,BAN011,
EFDC,CAPNB,NEIGHBOURHOODS CAPITAL,WORKS,F040,17-May-17,106030,"3,024.96",CLEAR CHANNEL UK LTD,CLE010,
EFDC,BAL01,EFDC BALANCE SHEET,BUSY BEES,Z606,17-May-17,107324,"2,812.84",COMPUTERSHARE VOUCHER SERVICES,BUS009,
EFDC,32120,OTHER SUPPORT SERVICES (HR),EMPLOYEES - OTHER PAYMENTS,0191,17-May-17,107324,182.83,COMPUTERSHARE VOUCHER SERVICES,BUS009,
EFDC,EH160,OTHER ACTIVITIES,BANKING AND CASH COLLECTION,3440,17-May-17,106582,80.40,CONTRACT SECURITY SERVICES LTD,CON033,
EFDC,34110,COMMUNITIES SUPPORT SERVICES,BANKING AND CASH COLLECTION,3440,17-May-17,106582,72.59,CONTRACT SECURITY SERVICES LTD,CON033,
EFDC,CH110,"MUSEUM, HERITAGE & CULTURE",BANKING AND CASH COLLECTION,3440,17-May-17,106582,36.29,CONTRACT SECURITY SERVICES LTD,CON033,
EFDC,YB620,SUPERVISION/MANAGEMENT SPECIAL,BANKING AND CASH COLLECTION,3440,17-May-17,106582,72.58,CONTRACT SECURITY SERVICES LTD,CON033,
EFDC,TO100,LAND & PROPERTY,BANKING AND CASH COLLECTION,3440,17-May-17,106582,72.58,CONTRACT SECURITY SERVICES LTD,CON033,
EFDC,33020,OTHER ACTIVITIES,BANKING AND CASH COLLECTION,3440,17-May-17,106582,725.83,CONTRACT SECURITY SERVICES LTD,CON033,
EFDC,33020,OTHER ACTIVITIES,BANKING AND CASH COLLECTION,3440,17-May-17,106582,362.92,CONTRACT SECURITY SERVICES LTD,CON033,
EFDC,RS301,NORTH WEALD CENTRE,OTHER MAINTENANCE,1050,17-May-17,106730,945.00,B B & C FENCING,FEN003,
EFDC,RM100,RESPONSIVE & VOID REPAIRS,BUILDING MAINTENANCE,1010,17-May-17,106708,720.00,FIELDWHITE SERVICES LTD,FIE003,
EFDC,RM300,PLANNED & CYCLICAL MAINTENANCE,BUILDING MAINTENANCE,1010,17-May-17,107339,753.00,FLOWLINE (BUILDERS) LTD,FLO003,
EFDC,RM100,RESPONSIVE & VOID REPAIRS,BUILDING MAINTENANCE,1010,17-May-17,104514,569.45,FLOWLINE (BUILDERS) LTD,FLO003,
EFDC,RM100,RESPONSIVE & VOID REPAIRS,BUILDING MAINTENANCE,1010,17-May-17,104527,"4,939.66",FLOWLINE (BUILDERS) LTD,FLO003,
EFDC,RM100,RESPONSIVE & VOID REPAIRS,BUILDING MAINTENANCE,1010,17-May-17,104526,527.62,FLOWLINE (BUILDERS) LTD,FLO003,
EFDC,33095,OTHER ACTIVITIES,PROFESSIONAL FEES,3420,17-May-17,105886,750.00,EGS GROUP HOLDINGS LIIMITED,GOV001,
EFDC,32120,OTHER SUPPORT SERVICES (HR),EMPLOYEES - OTHER PAYMENTS,0191,17-May-17,106631,965.60,HARLOW OCCUPATIONAL HEALTH SERVICE LTD,HAR006,
EFDC,32120,OTHER SUPPORT SERVICES (HR),EMPLOYEES - OTHER PAYMENTS,0191,17-May-17,106631,"1,511.30",HARLOW OCCUPATIONAL HEALTH SERVICE LTD,HAR006,
EFDC,32220,OTHER SUPPORT SERVICES (HR),AGENCY STAFF,0120,17-May-17,106427,"1,118.88",HAYS SPECIALIST RECRUITMENT LTD,HAY011,
EFDC,32220,OTHER SUPPORT SERVICES (HR),AGENCY STAFF,0120,17-May-17,106430,"1,310.09",HAYS SPECIALIST RECRUITMENT LTD,HAY011,
EFDC,32180,OTHER SUPPORT SERVICES (HR),AGENCY STAFF,0120,17-May-17,106323,652.20,HAYS SPECIALIST RECRUITMENT LTD,HAY011,
EFDC,YA210,SUPERVISION/MANAGEMENT GENERAL,PROFESSIONAL FEES,3420,17-May-17,107331,540.00,DR CATHERINE JOHN,JOH021,
EFDC,CH110,"MUSEUM, HERITAGE & CULTURE",PROFESSIONAL FEES,3420,17-May-17,107309,"1,085.75",ACE SECURITY & ELECTRICAL LTD,ACE001,
EFDC,36650,OTHER ACTIVITIES,AGENCY STAFF,0120,17-May-17,106399,738.64,ADECCO UK LTD,ADE002,
EFDC,27050,ACCOMMODATION,WATER CHARGES,1410,17-May-17,107310,971.35,AFFINITY FOR BUSINESS LTD,AFF001,
EFDC,27050,ACCOMMODATION,WATER CHARGES,1410,17-May-17,107311,500.47,AFFINITY FOR BUSINESS LTD,AFF001,
EFDC,UO120,LAND & PROPERTY,CONSULTANTS FEES,3490,17-May-17,106220,621.20,MITIE SECURITY LTD,MIT004,
EFDC,BAL01,EFDC BALANCE SHEET,FRANKING MACHINES,Z100,17-May-17,107333,"8,000.00",NEOPOST LIMITED,NEO001,
EFDC,RE100,ELECTIONS,OTHER MISCELLANEOUS EXPENSES,3850,17-May-17,106804,688.79,NEOPOST LTD,NEO003,
EFDC,DC120,PLANNING REGULATORY SERVICES,PUBLICITY,3360,17-May-17,106452,714.00,NEWSQUEST MEDIA GROUP,NEW002,
EFDC,26200,OTHER SUPPORT SERVICES (HR),FIXED PLANT MAINTENANCE,1020,17-May-17,106387,"2,600.00",NEWFOUND ENERGY LIMITED,NEW015,
EFDC,RM300,PLANNED & CYCLICAL MAINTENANCE,BUILDING MAINTENANCE,1010,17-May-17,106689,"1,880.66",SCCI ALPHATRACK LTD,SCC003,
EFDC,35300,ENVIRONMENTAL OTHER,VEHICLE HIRE,2620,17-May-17,105888,598.12,P TUCKWELL LTD,TUC002,
EFDC,RM100,RESPONSIVE & VOID REPAIRS,BUILDING MAINTENANCE,1010,17-May-17,107346,996.00,STANNAH LIFT SERVICES LTD,STA019,
EFDC,CAPCM,COMMUNITIES CAPITAL,WORKS- COUNCIL DWELLINGS,A040,17-May-17,106031,"1,163.37",STANNAH LIFT SERVICES LTD,STA019,
EFDC,33080,OTHER ACTIVITIES,EQUIPMENT - MAINTENANCE,3030,17-May-17,106591,599.00,SYMANTEC LTD,SYM005,
EFDC,26200,OTHER SUPPORT SERVICES (HR),BUILDING MAINTENANCE,1010,17-May-17,106994,660.00,TANKER AND DRAIN SOLUTIONS LTD,TAN004,
EFDC,YA180,SUPERVISION/MANAGEMENT GENERAL,RECRUITMENT EXPENSES,0320,17-May-17,106710,"3,222.31",TMP WORLDWIDE LTD,TMP001,
EFDC,CAPCM,COMMUNITIES CAPITAL,CONSTRUCTION,E030,17-May-17,107361,"5,106.44",VSN ENTERPRISES LTD,VSN001,
EFDC,26200,OTHER SUPPORT SERVICES (HR),BUILDING MAINTENANCE,1010,17-May-17,106238,"6,565.00",WEDGE CIVIL ENGINEERING LTD,WED004,
EFDC,CAPCM,COMMUNITIES CAPITAL,WORKS- COUNCIL DWELLINGS,A040,17-May-17,107341,"4,003.78",GRACELANDS COMPLETE MAINTENANCE SERVICES LTD,GRA007,
EFDC,CAPCM,COMMUNITIES CAPITAL,WORKS- COUNCIL DWELLINGS,A040,17-May-17,107345,"46,762.64",GRACELANDS COMPLETE MAINTENANCE SERVICES LTD,GRA007,
EFDC,CAPCM,COMMUNITIES CAPITAL,WORKS- COUNCIL DWELLINGS,A040,17-May-17,107341,"2,400.00",GRACELANDS COMPLETE MAINTENANCE SERVICES LTD,GRA007,
EFDC,CAPCM,COMMUNITIES CAPITAL,WORKS- COUNCIL DWELLINGS,A040,17-May-17,107342,"18,555.75",GRACELANDS COMPLETE MAINTENANCE SERVICES LTD,GRA007,
EFDC,CAPCM,COMMUNITIES CAPITAL,WORKS- COUNCIL DWELLINGS,A040,17-May-17,107344,"40,996.56",GRACELANDS COMPLETE MAINTENANCE SERVICES LTD,GRA007,
EFDC,CAPCM,COMMUNITIES CAPITAL,VOIDS WORKS,A045,17-May-17,107229,"1,707.86",GRACELANDS COMPLETE MAINTENANCE SERVICES LTD,GRA007,
EFDC,CAPCM,COMMUNITIES CAPITAL,WORKS- COUNCIL DWELLINGS,A040,17-May-17,107341,"62,330.35",GRACELANDS COMPLETE MAINTENANCE SERVICES LTD,GRA007,
EFDC,RM100,RESPONSIVE & VOID REPAIRS,BUILDING MAINTENANCE,1010,17-May-17,104919,803.38,GRACELANDS COMPLETE MAINTENANCE SERVICES LTD,GRA007,
EFDC,RM100,RESPONSIVE & VOID REPAIRS,BUILDING MAINTENANCE,1010,17-May-17,105565,531.00,GRACELANDS COMPLETE MAINTENANCE SERVICES LTD,GRA007,
EFDC,RM100,RESPONSIVE & VOID REPAIRS,BUILDING MAINTENANCE,1010,17-May-17,106602,662.27,GRACELANDS COMPLETE MAINTENANCE SERVICES LTD,GRA007,
EFDC,UO130,LAND & PROPERTY,PREMISES,1030,17-May-17,107329,"21,226.00",GRACELANDS COMPLETE MAINTENANCE SERVICES LTD,GRA007,
EFDC,CAPCM,COMMUNITIES CAPITAL,WORKS- COUNCIL DWELLINGS,A040,17-May-17,107348,"75,761.68",M & J SERVICES LTD,SER009,
EFDC,78001,OTHER ACTIVITIES,MATERIALS,3080,17-May-17,105827,906.80,CRANBROOK ELECTRICS,CRA001,
EFDC,LA100,LAA POOLED FUNDS,LAA EXPENDITURE,Y100,17-May-17,105946,"15,000.00",VOLUNTARY ACTION EPPING FOREST,VOL007,
EFDC,33080,OTHER ACTIVITIES,EQUIPMENT - MAINTENANCE,3030,17-May-17,106726,"23,677.00",SOLAR COMMUNICATION LIMITED,SOL002,
EFDC,RS301,NORTH WEALD CENTRE,VEHICLE PARTS,2210,17-May-17,106992,"2,541.67",IMPERIAL WAR MUSEUM,IMP001,
EFDC,35300,ENVIRONMENTAL OTHER,AGENCY STAFF,0120,17-May-17,104935,816.94,SEWELL STAFFING LTD,SEW001,
EFDC,35300,ENVIRONMENTAL OTHER,AGENCY STAFF,0120,17-May-17,104950,"1,084.56",SEWELL STAFFING LTD,SEW001,
EFDC,BAL01,EFDC BALANCE SHEET,TUSKER CAR SCHEME,Z631,17-May-17,107355,"1,397.32",TUSKERDIRECT LTD,TUS002,
EFDC,BAL01,EFDC BALANCE SHEET,TUSKER CAR SCHEME,Z631,17-May-17,107355,"3,126.86",TUSKERDIRECT LTD,TUS002,
EFDC,BAL01,EFDC BALANCE SHEET,TUSKER CAR SCHEME,Z631,17-May-17,107355,"-1,980.31",TUSKERDIRECT LTD,TUS002,
EFDC,BAL01,EFDC BALANCE SHEET,TUSKER CAR SCHEME,Z631,17-May-17,107355,"3,960.61",TUSKERDIRECT LTD,TUS002,
EFDC,SC100,WASTE MANAGEMENT,HIGHWAYS CONTRACTORS,4310,17-May-17,106395,882.74,EASTERN WASTE DISPOSAL LTD,EAS002,
EFDC,CAPCM,COMMUNITIES CAPITAL,CONSTRUCTION,E030,17-May-17,107182,"9,566.08",TSG BUILDING SERVICES PLC,TSG001,
EFDC,CAPCM,COMMUNITIES CAPITAL,CONSTRUCTION,E030,17-May-17,107183,"60,538.67",TSG BUILDING SERVICES PLC,TSG001,
EFDC,CAPCM,COMMUNITIES CAPITAL,PLAN & BUILDING REGS,E110,17-May-17,107351,"1,000.00",THAMES WATER UTILITIES LTD,THA002,
EFDC,32030,OTHER SUPPORT SERVICES (HR),EQUIPMENT - NEW,3010,17-May-17,106698,537.00,HUNTERS CONTRACT LTD,HUN001,
EFDC,32220,OTHER SUPPORT SERVICES (HR),AGENCY STAFF,0120,17-May-17,106714,"1,207.50",MACDONALD & COMPANY FREELANCE LTD,MAC003,
EFDC,32220,OTHER SUPPORT SERVICES (HR),AGENCY STAFF,0120,17-May-17,106715,"1,408.75",MACDONALD & COMPANY FREELANCE LTD,MAC003,
EFDC,32220,OTHER SUPPORT SERVICES (HR),AGENCY STAFF,0120,17-May-17,106716,"1,288.00",MACDONALD & COMPANY FREELANCE LTD,MAC003,
EFDC,CH110,"MUSEUM, HERITAGE & CULTURE",RENTS / HIRE OF HALL,1210,17-May-17,106243,"1,100.00",GRANGEWOOD INVESTMENTS LTD,GRA006,
EFDC,EH112,LAND DRAINAGE/SEWERAGE,PROFESSIONAL FEES,3420,17-May-17,106237,"30,931.00",AECOM,AEC002,
EFDC,23110,ACCOMMODATION,ELECTRICITY,1120,17-May-17,107307,-1.61,EDF ENERGY,EDF001,
EFDC,27050,ACCOMMODATION,ELECTRICITY,1120,17-May-17,107305,"5,821.60",EDF ENERGY,EDF001,
EFDC,23110,ACCOMMODATION,ELECTRICITY,1120,17-May-17,107307,"1,197.57",EDF ENERGY,EDF001,
EFDC,RS302,NORTH WEALD CENTRE,ELECTRICITY,1120,17-May-17,107306,"4,117.02",EDF ENERGY,EDF001,
EFDC,EH110,ENVIRONMENTAL HEALTH,PROFESSIONAL FEES,3420,17-May-17,106212,"2,856.00",ENVIRONMENTAL SCIENTIFICS GROUP LTD,ENV005,
EFDC,UO120,LAND & PROPERTY,CONSULTANTS FEES,3490,17-May-17,107325,"4,944.16",CROSBY LAND LTD,CRO003,
EFDC,32220,OTHER SUPPORT SERVICES (HR),AGENCY STAFF,0120,17-May-17,106751,"11,028.19",CAPSTONE PROPERTY RECRUITMENT LTD,CAP001,
EFDC,36500,OTHER ACTIVITIES,LICENCES,3870,17-May-17,106347,"1,188.00",ID SCAN BIOMETRICS LTD,IDS001,
EFDC,CAPCM,COMMUNITIES CAPITAL,VEHICLES,C300,17-May-17,106226,295.00,FORD MOTOR CO LTD,FOR004,
EFDC,CAPCM,COMMUNITIES CAPITAL,VEHICLES,C300,17-May-17,106224,"12,966.50",FORD MOTOR CO LTD,FOR004,
EFDC,CAPCM,COMMUNITIES CAPITAL,VEHICLES,C300,17-May-17,106224,295.00,FORD MOTOR CO LTD,FOR004,
EFDC,CAPCM,COMMUNITIES CAPITAL,VEHICLES,C300,17-May-17,106225,"12,966.50",FORD MOTOR CO LTD,FOR004,
EFDC,CAPCM,COMMUNITIES CAPITAL,VEHICLES,C300,17-May-17,106226,"12,966.50",FORD MOTOR CO LTD,FOR004,
EFDC,CAPCM,COMMUNITIES CAPITAL,VEHICLES,C300,17-May-17,106225,295.00,FORD MOTOR CO LTD,FOR004,
EFDC,PP111,FORWARD PLANNING & ECONOMIC,PROFESSIONAL FEES,3420,17-May-17,98677,"4,500.00",CONSOLIDATED HUB DEVELOPMENTS LTD,CON044,
EFDC,CAPCM,COMMUNITIES CAPITAL,CONSTRUCTION,E030,17-May-17,107326,"110,058.11",DENMARK AND WHITE LTD,DEN003,
EFDC,RS400,"COMMUNITY, HEALTH & WELLBEING",ACTIVITIES,3372,23-May-17,24183,"1,000.00",GENESIS HOUSING ASSOCIATION,840P,
EFDC,WC100,WASTE MANAGEMENT,SUBSCRIPTIONS,3730,23-May-17,24298,"2,920.00",ENVIRONMENT AGENCY,533P,
EFDC,BAL01,EFDC BALANCE SHEET,SUNDRY DEBTORS (OTHER),Z208,23-May-17,24333,836.00,AVENUE LETTINGS PROPERTY MANAGEMENT LTD,5334P,
EFDC,BAL01,EFDC BALANCE SHEET,DEPOSITS - PAID,Z223,23-May-17,24333,836.00,AVENUE LETTINGS PROPERTY MANAGEMENT LTD,5334P,
EFDC,BAL01,EFDC BALANCE SHEET,NDR REFUNDS,Z623,23-May-17,24342,"1,293.18",MR JOEY VINCE,6892P,
EFDC,BAL01,EFDC BALANCE SHEET,SUNDRY DEBTORS (OTHER),Z208,23-May-17,24320,650.00,CARIDON PROPERTY LIMITED,6866P,
EFDC,BAL01,EFDC BALANCE SHEET,DEPOSITS - PAID,Z223,23-May-17,24320,650.00,CARIDON PROPERTY LIMITED,6866P,
EFDC,BAL01,EFDC BALANCE SHEET,DEPOSITS - PAID,Z223,23-May-17,24291,579.00,CARIDON PROPERTY LIMITED,6866P,
EFDC,BAL01,EFDC BALANCE SHEET,SUNDRY DEBTORS (OTHER),Z208,23-May-17,24291,579.00,CARIDON PROPERTY LIMITED,6866P,
EFDC,BAL01,EFDC BALANCE SHEET,NDR REFUNDS,Z623,23-May-17,24321,610.40,R DALTON T/A R S GLASS,6877P,
EFDC,PH100,PRIVATE SECTOR HOUSING,GRANTS GENERAL,3720,23-May-17,24322,"1,997.50",HD PROPERTY SERVICES LIMITED,6878P,
EFDC,BAL01,EFDC BALANCE SHEET,NDR REFUNDS,Z623,23-May-17,24325,905.52,D HUBBARD LIMITED,6881P,
EFDC,DC110,PLANNING REGULATORY SERVICES,LEGAL EXPENSES,3680,23-May-17,24329,"5,000.00",MR NICASTRO,6884P,
EFDC,35300,ENVIRONMENTAL OTHER,AGENCY STAFF,0120,24-May-17,106749,517.44,AXIOM PERSONNEL LIMITED,AXI005,
EFDC,YB110,SUPERVISION/MANAGEMENT SPECIAL,ELECTRICITY,1120,24-May-17,107675,13.90,BRITISH GAS,BRI040,
EFDC,YB110,SUPERVISION/MANAGEMENT SPECIAL,ELECTRICITY,1120,24-May-17,107675,13.77,BRITISH GAS,BRI040,
EFDC,YB110,SUPERVISION/MANAGEMENT SPECIAL,ELECTRICITY,1120,24-May-17,107675,9.40,BRITISH GAS,BRI040,
EFDC,YB110,SUPERVISION/MANAGEMENT SPECIAL,ELECTRICITY,1120,24-May-17,107675,12.85,BRITISH GAS,BRI040,
EFDC,YB110,SUPERVISION/MANAGEMENT SPECIAL,ELECTRICITY,1120,24-May-17,107675,14.74,BRITISH GAS,BRI040,
EFDC,YB110,SUPERVISION/MANAGEMENT SPECIAL,ELECTRICITY,1120,24-May-17,107675,13.84,BRITISH GAS,BRI040,
EFDC,YB110,SUPERVISION/MANAGEMENT SPECIAL,ELECTRICITY,1120,24-May-17,107675,9.62,BRITISH GAS,BRI040,
EFDC,YB110,SUPERVISION/MANAGEMENT SPECIAL,ELECTRICITY,1120,24-May-17,107675,8.74,BRITISH GAS,BRI040,
EFDC,YB110,SUPERVISION/MANAGEMENT SPECIAL,ELECTRICITY,1120,24-May-17,107675,23.74,BRITISH GAS,BRI040,
EFDC,YB110,SUPERVISION/MANAGEMENT SPECIAL,ELECTRICITY,1120,24-May-17,107675,10.96,BRITISH GAS,BRI040,
EFDC,YB110,SUPERVISION/MANAGEMENT SPECIAL,ELECTRICITY,1120,24-May-17,107675,9.17,BRITISH GAS,BRI040,
EFDC,YB110,SUPERVISION/MANAGEMENT SPECIAL,ELECTRICITY,1120,24-May-17,107675,8.73,BRITISH GAS,BRI040,
EFDC,YB110,SUPERVISION/MANAGEMENT SPECIAL,ELECTRICITY,1120,24-May-17,107675,59.89,BRITISH GAS,BRI040,
EFDC,YB110,SUPERVISION/MANAGEMENT SPECIAL,ELECTRICITY,1120,24-May-17,107675,12.41,BRITISH GAS,BRI040,
EFDC,YB110,SUPERVISION/MANAGEMENT SPECIAL,ELECTRICITY,1120,24-May-17,107675,12.99,BRITISH GAS,BRI040,
EFDC,YB110,SUPERVISION/MANAGEMENT SPECIAL,ELECTRICITY,1120,24-May-17,107675,75.34,BRITISH GAS,BRI040,
EFDC,YB110,SUPERVISION/MANAGEMENT SPECIAL,ELECTRICITY,1120,24-May-17,107675,12.70,BRITISH GAS,BRI040,
EFDC,YB110,SUPERVISION/MANAGEMENT SPECIAL,ELECTRICITY,1120,24-May-17,107675,63.49,BRITISH GAS,BRI040,
EFDC,YB110,SUPERVISION/MANAGEMENT SPECIAL,ELECTRICITY,1120,24-May-17,107675,13.19,BRITISH GAS,BRI040,
EFDC,YB110,SUPERVISION/MANAGEMENT SPECIAL,ELECTRICITY,1120,24-May-17,107675,9.41,BRITISH GAS,BRI040,
EFDC,YB110,SUPERVISION/MANAGEMENT SPECIAL,ELECTRICITY,1120,24-May-17,107675,14.29,BRITISH GAS,BRI040,
EFDC,YB110,SUPERVISION/MANAGEMENT SPECIAL,ELECTRICITY,1120,24-May-17,107675,15.28,BRITISH GAS,BRI040,
EFDC,YB110,SUPERVISION/MANAGEMENT SPECIAL,ELECTRICITY,1120,24-May-17,107675,48.82,BRITISH GAS,BRI040,
EFDC,YB110,SUPERVISION/MANAGEMENT SPECIAL,ELECTRICITY,1120,24-May-17,107675,12.58,BRITISH GAS,BRI040,
EFDC,YB110,SUPERVISION/MANAGEMENT SPECIAL,ELECTRICITY,1120,24-May-17,107675,63.85,BRITISH GAS,BRI040,
EFDC,YB110,SUPERVISION/MANAGEMENT SPECIAL,ELECTRICITY,1120,24-May-17,107675,48.83,BRITISH GAS,BRI040,
EFDC,YB110,SUPERVISION/MANAGEMENT SPECIAL,ELECTRICITY,1120,24-May-17,107675,50.10,BRITISH GAS,BRI040,
EFDC,YB110,SUPERVISION/MANAGEMENT SPECIAL,ELECTRICITY,1120,24-May-17,107675,13.39,BRITISH GAS,BRI040,
EFDC,YB110,SUPERVISION/MANAGEMENT SPECIAL,ELECTRICITY,1120,24-May-17,107675,"11,115.46",BRITISH GAS,BRI040,
EFDC,YB110,SUPERVISION/MANAGEMENT SPECIAL,ELECTRICITY,1120,24-May-17,107675,13.29,BRITISH GAS,BRI040,
EFDC,YB110,SUPERVISION/MANAGEMENT SPECIAL,ELECTRICITY,1120,24-May-17,107675,13.63,BRITISH GAS,BRI040,
EFDC,YB110,SUPERVISION/MANAGEMENT SPECIAL,ELECTRICITY,1120,24-May-17,107675,36.38,BRITISH GAS,BRI040,
EFDC,YB110,SUPERVISION/MANAGEMENT SPECIAL,ELECTRICITY,1120,24-May-17,107675,15.29,BRITISH GAS,BRI040,
EFDC,YB110,SUPERVISION/MANAGEMENT SPECIAL,ELECTRICITY,1120,24-May-17,107675,4.46,BRITISH GAS,BRI040,
EFDC,YB110,SUPERVISION/MANAGEMENT SPECIAL,ELECTRICITY,1120,24-May-17,107675,11.39,BRITISH GAS,BRI040,
EFDC,YB110,SUPERVISION/MANAGEMENT SPECIAL,ELECTRICITY,1120,24-May-17,107675,10.35,BRITISH GAS,BRI040,
EFDC,YB110,SUPERVISION/MANAGEMENT SPECIAL,ELECTRICITY,1120,24-May-17,107675,6.33,BRITISH GAS,BRI040,
EFDC,YB110,SUPERVISION/MANAGEMENT SPECIAL,ELECTRICITY,1120,24-May-17,107675,10.81,BRITISH GAS,BRI040,
EFDC,YB110,SUPERVISION/MANAGEMENT SPECIAL,ELECTRICITY,1120,24-May-17,107675,17.25,BRITISH GAS,BRI040,
EFDC,YB110,SUPERVISION/MANAGEMENT SPECIAL,ELECTRICITY,1120,24-May-17,107675,69.87,BRITISH GAS,BRI040,
EFDC,YB110,SUPERVISION/MANAGEMENT SPECIAL,ELECTRICITY,1120,24-May-17,107675,21.31,BRITISH GAS,BRI040,
EFDC,YB110,SUPERVISION/MANAGEMENT SPECIAL,ELECTRICITY,1120,24-May-17,107675,29.23,BRITISH GAS,BRI040,
EFDC,YB110,SUPERVISION/MANAGEMENT SPECIAL,ELECTRICITY,1120,24-May-17,107675,24.84,BRITISH GAS,BRI040,
EFDC,YB110,SUPERVISION/MANAGEMENT SPECIAL,ELECTRICITY,1120,24-May-17,107675,33.29,BRITISH GAS,BRI040,
EFDC,YB110,SUPERVISION/MANAGEMENT SPECIAL,ELECTRICITY,1120,24-May-17,107675,29.85,BRITISH GAS,BRI040,
EFDC,YB110,SUPERVISION/MANAGEMENT SPECIAL,ELECTRICITY,1120,24-May-17,107675,19.42,BRITISH GAS,BRI040,
EFDC,YB110,SUPERVISION/MANAGEMENT SPECIAL,ELECTRICITY,1120,24-May-17,107675,9.85,BRITISH GAS,BRI040,
EFDC,YB110,SUPERVISION/MANAGEMENT SPECIAL,ELECTRICITY,1120,24-May-17,107675,17.08,BRITISH GAS,BRI040,
EFDC,YB110,SUPERVISION/MANAGEMENT SPECIAL,ELECTRICITY,1120,24-May-17,107675,19.77,BRITISH GAS,BRI040,
EFDC,YB110,SUPERVISION/MANAGEMENT SPECIAL,ELECTRICITY,1120,24-May-17,107675,24.85,BRITISH GAS,BRI040,
EFDC,YB110,SUPERVISION/MANAGEMENT SPECIAL,ELECTRICITY,1120,24-May-17,107675,39.76,BRITISH GAS,BRI040,
EFDC,YB110,SUPERVISION/MANAGEMENT SPECIAL,ELECTRICITY,1120,24-May-17,107675,14.75,BRITISH GAS,BRI040,
EFDC,YB110,SUPERVISION/MANAGEMENT SPECIAL,ELECTRICITY,1120,24-May-17,107675,26.51,BRITISH GAS,BRI040,
EFDC,YB110,SUPERVISION/MANAGEMENT SPECIAL,ELECTRICITY,1120,24-May-17,107675,13.28,BRITISH GAS,BRI040,
EFDC,YB110,SUPERVISION/MANAGEMENT SPECIAL,ELECTRICITY,1120,24-May-17,107675,14.62,BRITISH GAS,BRI040,
EFDC,YB110,SUPERVISION/MANAGEMENT SPECIAL,ELECTRICITY,1120,24-May-17,107675,10.18,BRITISH GAS,BRI040,
EFDC,YB110,SUPERVISION/MANAGEMENT SPECIAL,ELECTRICITY,1120,24-May-17,107675,12.93,BRITISH GAS,BRI040,
EFDC,YB110,SUPERVISION/MANAGEMENT SPECIAL,ELECTRICITY,1120,24-May-17,107675,13.75,BRITISH GAS,BRI040,
EFDC,YB110,SUPERVISION/MANAGEMENT SPECIAL,ELECTRICITY,1120,24-May-17,107675,12.85,BRITISH GAS,BRI040,
EFDC,YB110,SUPERVISION/MANAGEMENT SPECIAL,ELECTRICITY,1120,24-May-17,107675,6.81,BRITISH GAS,BRI040,
EFDC,YB110,SUPERVISION/MANAGEMENT SPECIAL,ELECTRICITY,1120,24-May-17,107675,23.68,BRITISH GAS,BRI040,
EFDC,YB110,SUPERVISION/MANAGEMENT SPECIAL,ELECTRICITY,1120,24-May-17,107675,6.81,BRITISH GAS,BRI040,
EFDC,YB110,SUPERVISION/MANAGEMENT SPECIAL,ELECTRICITY,1120,24-May-17,107675,15.37,BRITISH GAS,BRI040,
EFDC,YB110,SUPERVISION/MANAGEMENT SPECIAL,ELECTRICITY,1120,24-May-17,107675,15.37,BRITISH GAS,BRI040,
EFDC,YB110,SUPERVISION/MANAGEMENT SPECIAL,ELECTRICITY,1120,24-May-17,107675,6.57,BRITISH GAS,BRI040,
EFDC,YB110,SUPERVISION/MANAGEMENT SPECIAL,ELECTRICITY,1120,24-May-17,107675,14.85,BRITISH GAS,BRI040,
EFDC,YB110,SUPERVISION/MANAGEMENT SPECIAL,ELECTRICITY,1120,24-May-17,107675,31.10,BRITISH GAS,BRI040,
EFDC,YB110,SUPERVISION/MANAGEMENT SPECIAL,ELECTRICITY,1120,24-May-17,107675,12.85,BRITISH GAS,BRI040,
EFDC,YB110,SUPERVISION/MANAGEMENT SPECIAL,ELECTRICITY,1120,24-May-17,107675,92.67,BRITISH GAS,BRI040,
EFDC,YB110,SUPERVISION/MANAGEMENT SPECIAL,ELECTRICITY,1120,24-May-17,107675,14.34,BRITISH GAS,BRI040,
EFDC,YB110,SUPERVISION/MANAGEMENT SPECIAL,ELECTRICITY,1120,24-May-17,107675,12.58,BRITISH GAS,BRI040,
EFDC,YB110,SUPERVISION/MANAGEMENT SPECIAL,ELECTRICITY,1120,24-May-17,107675,36.04,BRITISH GAS,BRI040,
EFDC,YB110,SUPERVISION/MANAGEMENT SPECIAL,ELECTRICITY,1120,24-May-17,107675,20.60,BRITISH GAS,BRI040,
EFDC,YB110,SUPERVISION/MANAGEMENT SPECIAL,ELECTRICITY,1120,24-May-17,107675,11.69,BRITISH GAS,BRI040,
EFDC,YB110,SUPERVISION/MANAGEMENT SPECIAL,ELECTRICITY,1120,24-May-17,107675,13.03,BRITISH GAS,BRI040,
EFDC,YB110,SUPERVISION/MANAGEMENT SPECIAL,ELECTRICITY,1120,24-May-17,107675,14.02,BRITISH GAS,BRI040,
EFDC,YB110,SUPERVISION/MANAGEMENT SPECIAL,ELECTRICITY,1120,24-May-17,107675,11.60,BRITISH GAS,BRI040,
EFDC,YB110,SUPERVISION/MANAGEMENT SPECIAL,ELECTRICITY,1120,24-May-17,107675,11.44,BRITISH GAS,BRI040,
EFDC,YB110,SUPERVISION/MANAGEMENT SPECIAL,ELECTRICITY,1120,24-May-17,107675,64.41,BRITISH GAS,BRI040,
EFDC,YB110,SUPERVISION/MANAGEMENT SPECIAL,ELECTRICITY,1120,24-May-17,107675,14.47,BRITISH GAS,BRI040,
EFDC,YB110,SUPERVISION/MANAGEMENT SPECIAL,ELECTRICITY,1120,24-May-17,107675,18.97,BRITISH GAS,BRI040,
EFDC,YB110,SUPERVISION/MANAGEMENT SPECIAL,ELECTRICITY,1120,24-May-17,107675,22.02,BRITISH GAS,BRI040,
EFDC,YB110,SUPERVISION/MANAGEMENT SPECIAL,ELECTRICITY,1120,24-May-17,107675,17.45,BRITISH GAS,BRI040,
EFDC,YB110,SUPERVISION/MANAGEMENT SPECIAL,ELECTRICITY,1120,24-May-17,107675,14.92,BRITISH GAS,BRI040,
EFDC,YB110,SUPERVISION/MANAGEMENT SPECIAL,ELECTRICITY,1120,24-May-17,107675,13.03,BRITISH GAS,BRI040,
EFDC,YB110,SUPERVISION/MANAGEMENT SPECIAL,ELECTRICITY,1120,24-May-17,107675,20.32,BRITISH GAS,BRI040,
EFDC,YB110,SUPERVISION/MANAGEMENT SPECIAL,ELECTRICITY,1120,24-May-17,107675,14.02,BRITISH GAS,BRI040,
EFDC,YB110,SUPERVISION/MANAGEMENT SPECIAL,ELECTRICITY,1120,24-May-17,107675,12.41,BRITISH GAS,BRI040,
EFDC,YB110,SUPERVISION/MANAGEMENT SPECIAL,ELECTRICITY,1120,24-May-17,107675,12.05,BRITISH GAS,BRI040,
EFDC,YB110,SUPERVISION/MANAGEMENT SPECIAL,ELECTRICITY,1120,24-May-17,107675,10.88,BRITISH GAS,BRI040,
EFDC,YB110,SUPERVISION/MANAGEMENT SPECIAL,ELECTRICITY,1120,24-May-17,107675,6.57,BRITISH GAS,BRI040,
EFDC,YB110,SUPERVISION/MANAGEMENT SPECIAL,ELECTRICITY,1120,24-May-17,107675,13.00,BRITISH GAS,BRI040,
EFDC,YB110,SUPERVISION/MANAGEMENT SPECIAL,ELECTRICITY,1120,24-May-17,107675,14.84,BRITISH GAS,BRI040,
EFDC,YB110,SUPERVISION/MANAGEMENT SPECIAL,ELECTRICITY,1120,24-May-17,107675,11.59,BRITISH GAS,BRI040,
EFDC,YB110,SUPERVISION/MANAGEMENT SPECIAL,ELECTRICITY,1120,24-May-17,107675,13.04,BRITISH GAS,BRI040,
EFDC,YB110,SUPERVISION/MANAGEMENT SPECIAL,ELECTRICITY,1120,24-May-17,107675,14.12,BRITISH GAS,BRI040,
EFDC,YB110,SUPERVISION/MANAGEMENT SPECIAL,ELECTRICITY,1120,24-May-17,107675,11.87,BRITISH GAS,BRI040,
EFDC,YB110,SUPERVISION/MANAGEMENT SPECIAL,ELECTRICITY,1120,24-May-17,107675,13.03,BRITISH GAS,BRI040,
EFDC,YB110,SUPERVISION/MANAGEMENT SPECIAL,ELECTRICITY,1120,24-May-17,107675,12.99,BRITISH GAS,BRI040,
EFDC,YB110,SUPERVISION/MANAGEMENT SPECIAL,ELECTRICITY,1120,24-May-17,107675,7.28,BRITISH GAS,BRI040,
EFDC,YB110,SUPERVISION/MANAGEMENT SPECIAL,ELECTRICITY,1120,24-May-17,107675,12.94,BRITISH GAS,BRI040,
EFDC,YB110,SUPERVISION/MANAGEMENT SPECIAL,ELECTRICITY,1120,24-May-17,107675,14.29,BRITISH GAS,BRI040,
EFDC,YB110,SUPERVISION/MANAGEMENT SPECIAL,ELECTRICITY,1120,24-May-17,107675,10.70,BRITISH GAS,BRI040,
EFDC,YB110,SUPERVISION/MANAGEMENT SPECIAL,ELECTRICITY,1120,24-May-17,107675,10.44,BRITISH GAS,BRI040,
EFDC,YB110,SUPERVISION/MANAGEMENT SPECIAL,ELECTRICITY,1120,24-May-17,107675,12.44,BRITISH GAS,BRI040,
EFDC,YB110,SUPERVISION/MANAGEMENT SPECIAL,ELECTRICITY,1120,24-May-17,107675,10.53,BRITISH GAS,BRI040,
EFDC,YB110,SUPERVISION/MANAGEMENT SPECIAL,ELECTRICITY,1120,24-May-17,107675,11.94,BRITISH GAS,BRI040,
EFDC,YB110,SUPERVISION/MANAGEMENT SPECIAL,ELECTRICITY,1120,24-May-17,107675,10.88,BRITISH GAS,BRI040,
EFDC,YB110,SUPERVISION/MANAGEMENT SPECIAL,ELECTRICITY,1120,24-May-17,107675,11.96,BRITISH GAS,BRI040,
EFDC,YB110,SUPERVISION/MANAGEMENT SPECIAL,ELECTRICITY,1120,24-May-17,107675,11.87,BRITISH GAS,BRI040,
EFDC,YB110,SUPERVISION/MANAGEMENT SPECIAL,ELECTRICITY,1120,24-May-17,107675,10.35,BRITISH GAS,BRI040,
EFDC,YB110,SUPERVISION/MANAGEMENT SPECIAL,ELECTRICITY,1120,24-May-17,107675,11.50,BRITISH GAS,BRI040,
EFDC,YB110,SUPERVISION/MANAGEMENT SPECIAL,ELECTRICITY,1120,24-May-17,107675,20.14,BRITISH GAS,BRI040,
EFDC,YB110,SUPERVISION/MANAGEMENT SPECIAL,ELECTRICITY,1120,24-May-17,107675,15.82,BRITISH GAS,BRI040,
EFDC,YB110,SUPERVISION/MANAGEMENT SPECIAL,ELECTRICITY,1120,24-May-17,107675,11.78,BRITISH GAS,BRI040,
EFDC,YB110,SUPERVISION/MANAGEMENT SPECIAL,ELECTRICITY,1120,24-May-17,107675,17.62,BRITISH GAS,BRI040,
EFDC,YB110,SUPERVISION/MANAGEMENT SPECIAL,ELECTRICITY,1120,24-May-17,107675,14.70,BRITISH GAS,BRI040,
EFDC,YB110,SUPERVISION/MANAGEMENT SPECIAL,ELECTRICITY,1120,24-May-17,107675,7.28,BRITISH GAS,BRI040,
EFDC,YB110,SUPERVISION/MANAGEMENT SPECIAL,ELECTRICITY,1120,24-May-17,107675,11.98,BRITISH GAS,BRI040,
EFDC,YB110,SUPERVISION/MANAGEMENT SPECIAL,ELECTRICITY,1120,24-May-17,107675,8.48,BRITISH GAS,BRI040,
EFDC,YB110,SUPERVISION/MANAGEMENT SPECIAL,ELECTRICITY,1120,24-May-17,107675,12.31,BRITISH GAS,BRI040,
EFDC,YB110,SUPERVISION/MANAGEMENT SPECIAL,ELECTRICITY,1120,24-May-17,107675,12.50,BRITISH GAS,BRI040,
EFDC,YB110,SUPERVISION/MANAGEMENT SPECIAL,ELECTRICITY,1120,24-May-17,107675,13.75,BRITISH GAS,BRI040,
EFDC,YB110,SUPERVISION/MANAGEMENT SPECIAL,ELECTRICITY,1120,24-May-17,107675,-16.75,BRITISH GAS,BRI040,
EFDC,YB110,SUPERVISION/MANAGEMENT SPECIAL,ELECTRICITY,1120,24-May-17,107675,13.97,BRITISH GAS,BRI040,
EFDC,YB110,SUPERVISION/MANAGEMENT SPECIAL,ELECTRICITY,1120,24-May-17,107675,7.09,BRITISH GAS,BRI040,
EFDC,YB110,SUPERVISION/MANAGEMENT SPECIAL,ELECTRICITY,1120,24-May-17,107675,11.06,BRITISH GAS,BRI040,
EFDC,YB110,SUPERVISION/MANAGEMENT SPECIAL,ELECTRICITY,1120,24-May-17,107675,15.73,BRITISH GAS,BRI040,
EFDC,YB110,SUPERVISION/MANAGEMENT SPECIAL,ELECTRICITY,1120,24-May-17,107675,12.78,BRITISH GAS,BRI040,
EFDC,YB110,SUPERVISION/MANAGEMENT SPECIAL,ELECTRICITY,1120,24-May-17,107675,15.52,BRITISH GAS,BRI040,
EFDC,YB110,SUPERVISION/MANAGEMENT SPECIAL,ELECTRICITY,1120,24-May-17,107675,14.05,BRITISH GAS,BRI040,
EFDC,YB110,SUPERVISION/MANAGEMENT SPECIAL,ELECTRICITY,1120,24-May-17,107675,12.27,BRITISH GAS,BRI040,
EFDC,YB110,SUPERVISION/MANAGEMENT SPECIAL,ELECTRICITY,1120,24-May-17,107675,18.42,BRITISH GAS,BRI040,
EFDC,YB110,SUPERVISION/MANAGEMENT SPECIAL,ELECTRICITY,1120,24-May-17,107675,13.84,BRITISH GAS,BRI040,
EFDC,YB110,SUPERVISION/MANAGEMENT SPECIAL,ELECTRICITY,1120,24-May-17,107675,13.68,BRITISH GAS,BRI040,
EFDC,YB110,SUPERVISION/MANAGEMENT SPECIAL,ELECTRICITY,1120,24-May-17,107675,15.96,BRITISH GAS,BRI040,
EFDC,YB500,SUPERVISION/MANAGEMENT SPECIAL,ELECTRICITY,1120,24-May-17,107676,185.23,BRITISH GAS,BRI040,
EFDC,YB110,SUPERVISION/MANAGEMENT SPECIAL,ELECTRICITY,1120,24-May-17,107675,12.54,BRITISH GAS,BRI040,
EFDC,YB110,SUPERVISION/MANAGEMENT SPECIAL,ELECTRICITY,1120,24-May-17,107675,11.76,BRITISH GAS,BRI040,
EFDC,YB110,SUPERVISION/MANAGEMENT SPECIAL,ELECTRICITY,1120,24-May-17,107675,22.64,BRITISH GAS,BRI040,
EFDC,YB110,SUPERVISION/MANAGEMENT SPECIAL,ELECTRICITY,1120,24-May-17,107675,33.51,BRITISH GAS,BRI040,
EFDC,YB110,SUPERVISION/MANAGEMENT SPECIAL,ELECTRICITY,1120,24-May-17,107675,19.17,BRITISH GAS,BRI040,
EFDC,YB520,SUPERVISION/MANAGEMENT SPECIAL,ELECTRICITY,1120,24-May-17,107676,111.09,BRITISH GAS,BRI040,
EFDC,YB520,SUPERVISION/MANAGEMENT SPECIAL,ELECTRICITY,1120,24-May-17,107676,58.79,BRITISH GAS,BRI040,
EFDC,YB520,SUPERVISION/MANAGEMENT SPECIAL,ELECTRICITY,1120,24-May-17,107676,173.14,BRITISH GAS,BRI040,
EFDC,YB520,SUPERVISION/MANAGEMENT SPECIAL,ELECTRICITY,1120,24-May-17,107675,108.50,BRITISH GAS,BRI040,
EFDC,YB520,SUPERVISION/MANAGEMENT SPECIAL,ELECTRICITY,1120,24-May-17,107675,56.91,BRITISH GAS,BRI040,
EFDC,YB110,SUPERVISION/MANAGEMENT SPECIAL,ELECTRICITY,1120,24-May-17,107675,13.52,BRITISH GAS,BRI040,
EFDC,YB500,SUPERVISION/MANAGEMENT SPECIAL,ELECTRICITY,1120,24-May-17,107676,231.92,BRITISH GAS,BRI040,
EFDC,YB110,SUPERVISION/MANAGEMENT SPECIAL,ELECTRICITY,1120,24-May-17,107675,11.95,BRITISH GAS,BRI040,
EFDC,YB500,SUPERVISION/MANAGEMENT SPECIAL,ELECTRICITY,1120,24-May-17,107676,102.80,BRITISH GAS,BRI040,
EFDC,YB500,SUPERVISION/MANAGEMENT SPECIAL,ELECTRICITY,1120,24-May-17,107676,332.82,BRITISH GAS,BRI040,
EFDC,YB500,SUPERVISION/MANAGEMENT SPECIAL,ELECTRICITY,1120,24-May-17,107676,407.43,BRITISH GAS,BRI040,
EFDC,YB500,SUPERVISION/MANAGEMENT SPECIAL,ELECTRICITY,1120,24-May-17,107676,637.27,BRITISH GAS,BRI040,
EFDC,YB500,SUPERVISION/MANAGEMENT SPECIAL,ELECTRICITY,1120,24-May-17,107676,7.98,BRITISH GAS,BRI040,
EFDC,YB500,SUPERVISION/MANAGEMENT SPECIAL,ELECTRICITY,1120,24-May-17,107676,287.45,BRITISH GAS,BRI040,
EFDC,YB500,SUPERVISION/MANAGEMENT SPECIAL,ELECTRICITY,1120,24-May-17,107676,7.47,BRITISH GAS,BRI040,
EFDC,YB500,SUPERVISION/MANAGEMENT SPECIAL,ELECTRICITY,1120,24-May-17,107676,41.83,BRITISH GAS,BRI040,
EFDC,YB500,SUPERVISION/MANAGEMENT SPECIAL,ELECTRICITY,1120,24-May-17,107676,205.17,BRITISH GAS,BRI040,
EFDC,YB500,SUPERVISION/MANAGEMENT SPECIAL,ELECTRICITY,1120,24-May-17,107676,41.10,BRITISH GAS,BRI040,
EFDC,YB500,SUPERVISION/MANAGEMENT SPECIAL,ELECTRICITY,1120,24-May-17,107676,23.06,BRITISH GAS,BRI040,
EFDC,YB520,SUPERVISION/MANAGEMENT SPECIAL,ELECTRICITY,1120,24-May-17,107675,190.82,BRITISH GAS,BRI040,
EFDC,YB110,SUPERVISION/MANAGEMENT SPECIAL,ELECTRICITY,1120,24-May-17,107675,8.11,BRITISH GAS,BRI040,
EFDC,YB110,SUPERVISION/MANAGEMENT SPECIAL,ELECTRICITY,1120,24-May-17,107675,31.80,BRITISH GAS,BRI040,
EFDC,YB110,SUPERVISION/MANAGEMENT SPECIAL,ELECTRICITY,1120,24-May-17,107675,8.34,BRITISH GAS,BRI040,
EFDC,YB110,SUPERVISION/MANAGEMENT SPECIAL,ELECTRICITY,1120,24-May-17,107675,10.25,BRITISH GAS,BRI040,
EFDC,YB110,SUPERVISION/MANAGEMENT SPECIAL,ELECTRICITY,1120,24-May-17,107675,11.39,BRITISH GAS,BRI040,
EFDC,YB110,SUPERVISION/MANAGEMENT SPECIAL,ELECTRICITY,1120,24-May-17,107675,10.03,BRITISH GAS,BRI040,
EFDC,YB110,SUPERVISION/MANAGEMENT SPECIAL,ELECTRICITY,1120,24-May-17,107675,12.71,BRITISH GAS,BRI040,
EFDC,YB110,SUPERVISION/MANAGEMENT SPECIAL,ELECTRICITY,1120,24-May-17,107675,14.04,BRITISH GAS,BRI040,
EFDC,YB110,SUPERVISION/MANAGEMENT SPECIAL,ELECTRICITY,1120,24-May-17,107675,11.39,BRITISH GAS,BRI040,
EFDC,YB110,SUPERVISION/MANAGEMENT SPECIAL,ELECTRICITY,1120,24-May-17,107675,10.37,BRITISH GAS,BRI040,
EFDC,YB110,SUPERVISION/MANAGEMENT SPECIAL,ELECTRICITY,1120,24-May-17,107675,9.70,BRITISH GAS,BRI040,
EFDC,YB110,SUPERVISION/MANAGEMENT SPECIAL,ELECTRICITY,1120,24-May-17,107675,11.42,BRITISH GAS,BRI040,
EFDC,YB110,SUPERVISION/MANAGEMENT SPECIAL,ELECTRICITY,1120,24-May-17,107675,13.21,BRITISH GAS,BRI040,
EFDC,YB110,SUPERVISION/MANAGEMENT SPECIAL,ELECTRICITY,1120,24-May-17,107675,13.84,BRITISH GAS,BRI040,
EFDC,YB110,SUPERVISION/MANAGEMENT SPECIAL,ELECTRICITY,1120,24-May-17,107675,10.83,BRITISH GAS,BRI040,
EFDC,YB110,SUPERVISION/MANAGEMENT SPECIAL,ELECTRICITY,1120,24-May-17,107675,9.70,BRITISH GAS,BRI040,
EFDC,YB110,SUPERVISION/MANAGEMENT SPECIAL,ELECTRICITY,1120,24-May-17,107675,10.84,BRITISH GAS,BRI040,
EFDC,YB110,SUPERVISION/MANAGEMENT SPECIAL,ELECTRICITY,1120,24-May-17,107675,12.04,BRITISH GAS,BRI040,
EFDC,YB110,SUPERVISION/MANAGEMENT SPECIAL,ELECTRICITY,1120,24-May-17,107675,16.56,BRITISH GAS,BRI040,
EFDC,YB110,SUPERVISION/MANAGEMENT SPECIAL,ELECTRICITY,1120,24-May-17,107675,15.56,BRITISH GAS,BRI040,
EFDC,YB110,SUPERVISION/MANAGEMENT SPECIAL,ELECTRICITY,1120,24-May-17,107675,11.60,BRITISH GAS,BRI040,
EFDC,YB110,SUPERVISION/MANAGEMENT SPECIAL,ELECTRICITY,1120,24-May-17,107675,12.04,BRITISH GAS,BRI040,
EFDC,YB110,SUPERVISION/MANAGEMENT SPECIAL,ELECTRICITY,1120,24-May-17,107675,26.62,BRITISH GAS,BRI040,
EFDC,YB110,SUPERVISION/MANAGEMENT SPECIAL,ELECTRICITY,1120,24-May-17,107675,12.94,BRITISH GAS,BRI040,
EFDC,YB110,SUPERVISION/MANAGEMENT SPECIAL,ELECTRICITY,1120,24-May-17,107675,12.39,BRITISH GAS,BRI040,
EFDC,YB500,SUPERVISION/MANAGEMENT SPECIAL,ELECTRICITY,1120,24-May-17,107676,14.72,BRITISH GAS,BRI040,
EFDC,YB110,SUPERVISION/MANAGEMENT SPECIAL,ELECTRICITY,1120,24-May-17,107675,12.88,BRITISH GAS,BRI040,
EFDC,YB620,SUPERVISION/MANAGEMENT SPECIAL,ELECTRICITY,1120,24-May-17,107675,"1,772.69",BRITISH GAS,BRI040,
EFDC,YB500,SUPERVISION/MANAGEMENT SPECIAL,ELECTRICITY,1120,24-May-17,107676,29.04,BRITISH GAS,BRI040,
EFDC,YB500,SUPERVISION/MANAGEMENT SPECIAL,ELECTRICITY,1120,24-May-17,107675,113.95,BRITISH GAS,BRI040,
EFDC,YB500,SUPERVISION/MANAGEMENT SPECIAL,ELECTRICITY,1120,24-May-17,107675,464.26,BRITISH GAS,BRI040,
EFDC,YB500,SUPERVISION/MANAGEMENT SPECIAL,ELECTRICITY,1120,24-May-17,107675,501.64,BRITISH GAS,BRI040,
EFDC,YB500,SUPERVISION/MANAGEMENT SPECIAL,ELECTRICITY,1120,24-May-17,107675,6.10,BRITISH GAS,BRI040,
EFDC,YB500,SUPERVISION/MANAGEMENT SPECIAL,ELECTRICITY,1120,24-May-17,107675,376.05,BRITISH GAS,BRI040,
EFDC,YB500,SUPERVISION/MANAGEMENT SPECIAL,ELECTRICITY,1120,24-May-17,107675,228.74,BRITISH GAS,BRI040,
EFDC,YB500,SUPERVISION/MANAGEMENT SPECIAL,ELECTRICITY,1120,24-May-17,107675,12.68,BRITISH GAS,BRI040,
EFDC,YB500,SUPERVISION/MANAGEMENT SPECIAL,ELECTRICITY,1120,24-May-17,107675,6.74,BRITISH GAS,BRI040,
EFDC,YB500,SUPERVISION/MANAGEMENT SPECIAL,ELECTRICITY,1120,24-May-17,107675,33.09,BRITISH GAS,BRI040,
EFDC,YB500,SUPERVISION/MANAGEMENT SPECIAL,ELECTRICITY,1120,24-May-17,107675,184.28,BRITISH GAS,BRI040,
EFDC,YB500,SUPERVISION/MANAGEMENT SPECIAL,ELECTRICITY,1120,24-May-17,107675,7.64,BRITISH GAS,BRI040,
EFDC,YB620,SUPERVISION/MANAGEMENT SPECIAL,ELECTRICITY,1120,24-May-17,107676,"2,222.93",BRITISH GAS,BRI040,
EFDC,YB500,SUPERVISION/MANAGEMENT SPECIAL,ELECTRICITY,1120,24-May-17,107675,205.46,BRITISH GAS,BRI040,
EFDC,YB350,SUPERVISION/MANAGEMENT SPECIAL,ELECTRICITY,1120,24-May-17,107676,268.41,BRITISH GAS,BRI040,
EFDC,YB350,SUPERVISION/MANAGEMENT SPECIAL,ELECTRICITY,1120,24-May-17,107675,262.37,BRITISH GAS,BRI040,
EFDC,27150,"COMMUNITY, HEALTH & WELLBEING",ELECTRICITY,1120,24-May-17,107676,654.57,BRITISH GAS,BRI040,
EFDC,27150,"COMMUNITY, HEALTH & WELLBEING",ELECTRICITY,1120,24-May-17,107675,505.41,BRITISH GAS,BRI040,
EFDC,27110,ACCOMMODATION,ELECTRICITY,1120,24-May-17,107676,76.21,BRITISH GAS,BRI040,
EFDC,27110,ACCOMMODATION,ELECTRICITY,1120,24-May-17,107676,36.81,BRITISH GAS,BRI040,
EFDC,27110,ACCOMMODATION,ELECTRICITY,1120,24-May-17,107676,63.89,BRITISH GAS,BRI040,
EFDC,27110,ACCOMMODATION,ELECTRICITY,1120,24-May-17,107675,108.79,BRITISH GAS,BRI040,
EFDC,27110,ACCOMMODATION,ELECTRICITY,1120,24-May-17,107675,40.98,BRITISH GAS,BRI040,
EFDC,27110,ACCOMMODATION,ELECTRICITY,1120,24-May-17,107675,62.55,BRITISH GAS,BRI040,
EFDC,23140,ACCOMMODATION,ELECTRICITY,1120,24-May-17,107676,455.61,BRITISH GAS,BRI040,
EFDC,YB500,SUPERVISION/MANAGEMENT SPECIAL,ELECTRICITY,1120,24-May-17,107675,94.67,BRITISH GAS,BRI040,
EFDC,YB500,SUPERVISION/MANAGEMENT SPECIAL,ELECTRICITY,1120,24-May-17,107675,7.51,BRITISH GAS,BRI040,
EFDC,YB110,SUPERVISION/MANAGEMENT SPECIAL,ELECTRICITY,1120,24-May-17,107675,51.25,BRITISH GAS,BRI040,
EFDC,YB500,SUPERVISION/MANAGEMENT SPECIAL,ELECTRICITY,1120,24-May-17,107676,14.34,BRITISH GAS,BRI040,
EFDC,YB500,SUPERVISION/MANAGEMENT SPECIAL,ELECTRICITY,1120,24-May-17,107676,15.38,BRITISH GAS,BRI040,
EFDC,YB500,SUPERVISION/MANAGEMENT SPECIAL,ELECTRICITY,1120,24-May-17,107676,14.66,BRITISH GAS,BRI040,
EFDC,YB500,SUPERVISION/MANAGEMENT SPECIAL,ELECTRICITY,1120,24-May-17,107676,86.75,BRITISH GAS,BRI040,
EFDC,YB500,SUPERVISION/MANAGEMENT SPECIAL,ELECTRICITY,1120,24-May-17,107676,10.70,BRITISH GAS,BRI040,
EFDC,YB500,SUPERVISION/MANAGEMENT SPECIAL,ELECTRICITY,1120,24-May-17,107676,12.30,BRITISH GAS,BRI040,
EFDC,YB500,SUPERVISION/MANAGEMENT SPECIAL,ELECTRICITY,1120,24-May-17,107676,12.83,BRITISH GAS,BRI040,
EFDC,YB500,SUPERVISION/MANAGEMENT SPECIAL,ELECTRICITY,1120,24-May-17,107676,10.60,BRITISH GAS,BRI040,
EFDC,YB500,SUPERVISION/MANAGEMENT SPECIAL,ELECTRICITY,1120,24-May-17,107676,7.43,BRITISH GAS,BRI040,
EFDC,YB500,SUPERVISION/MANAGEMENT SPECIAL,ELECTRICITY,1120,24-May-17,107675,51.70,BRITISH GAS,BRI040,
EFDC,YB500,SUPERVISION/MANAGEMENT SPECIAL,ELECTRICITY,1120,24-May-17,107675,229.56,BRITISH GAS,BRI040,
EFDC,YB500,SUPERVISION/MANAGEMENT SPECIAL,ELECTRICITY,1120,24-May-17,107675,30.39,BRITISH GAS,BRI040,
EFDC,YB500,SUPERVISION/MANAGEMENT SPECIAL,ELECTRICITY,1120,24-May-17,107676,7.98,BRITISH GAS,BRI040,
EFDC,YB500,SUPERVISION/MANAGEMENT SPECIAL,ELECTRICITY,1120,24-May-17,107675,14.62,BRITISH GAS,BRI040,
EFDC,YB500,SUPERVISION/MANAGEMENT SPECIAL,ELECTRICITY,1120,24-May-17,107675,15.85,BRITISH GAS,BRI040,
EFDC,YB500,SUPERVISION/MANAGEMENT SPECIAL,ELECTRICITY,1120,24-May-17,107675,16.99,BRITISH GAS,BRI040,
EFDC,YB500,SUPERVISION/MANAGEMENT SPECIAL,ELECTRICITY,1120,24-May-17,107675,16.00,BRITISH GAS,BRI040,
EFDC,YB500,SUPERVISION/MANAGEMENT SPECIAL,ELECTRICITY,1120,24-May-17,107675,52.19,BRITISH GAS,BRI040,
EFDC,YB500,SUPERVISION/MANAGEMENT SPECIAL,ELECTRICITY,1120,24-May-17,107675,21.04,BRITISH GAS,BRI040,
EFDC,YB500,SUPERVISION/MANAGEMENT SPECIAL,ELECTRICITY,1120,24-May-17,107675,89.05,BRITISH GAS,BRI040,
EFDC,YB500,SUPERVISION/MANAGEMENT SPECIAL,ELECTRICITY,1120,24-May-17,107675,10.53,BRITISH GAS,BRI040,
EFDC,YB500,SUPERVISION/MANAGEMENT SPECIAL,ELECTRICITY,1120,24-May-17,107675,11.98,BRITISH GAS,BRI040,
EFDC,YB500,SUPERVISION/MANAGEMENT SPECIAL,ELECTRICITY,1120,24-May-17,107675,6.74,BRITISH GAS,BRI040,
EFDC,YB500,SUPERVISION/MANAGEMENT SPECIAL,ELECTRICITY,1120,24-May-17,107675,12.62,BRITISH GAS,BRI040,
EFDC,YB500,SUPERVISION/MANAGEMENT SPECIAL,ELECTRICITY,1120,24-May-17,107675,29.27,BRITISH GAS,BRI040,
EFDC,YB110,SUPERVISION/MANAGEMENT SPECIAL,ELECTRICITY,1120,24-May-17,107675,38.81,BRITISH GAS,BRI040,
EFDC,YB110,SUPERVISION/MANAGEMENT SPECIAL,ELECTRICITY,1120,24-May-17,107675,12.54,BRITISH GAS,BRI040,
EFDC,YB110,SUPERVISION/MANAGEMENT SPECIAL,ELECTRICITY,1120,24-May-17,107675,10.06,BRITISH GAS,BRI040,
EFDC,YB110,SUPERVISION/MANAGEMENT SPECIAL,ELECTRICITY,1120,24-May-17,107675,11.13,BRITISH GAS,BRI040,
EFDC,YB110,SUPERVISION/MANAGEMENT SPECIAL,ELECTRICITY,1120,24-May-17,107675,17.51,BRITISH GAS,BRI040,
EFDC,YB110,SUPERVISION/MANAGEMENT SPECIAL,ELECTRICITY,1120,24-May-17,107675,13.29,BRITISH GAS,BRI040,
EFDC,YB110,SUPERVISION/MANAGEMENT SPECIAL,ELECTRICITY,1120,24-May-17,107675,27.55,BRITISH GAS,BRI040,
EFDC,YB110,SUPERVISION/MANAGEMENT SPECIAL,ELECTRICITY,1120,24-May-17,107675,14.44,BRITISH GAS,BRI040,
EFDC,YB110,SUPERVISION/MANAGEMENT SPECIAL,ELECTRICITY,1120,24-May-17,107675,11.97,BRITISH GAS,BRI040,
EFDC,YB110,SUPERVISION/MANAGEMENT SPECIAL,ELECTRICITY,1120,24-May-17,107675,11.20,BRITISH GAS,BRI040,
EFDC,YB110,SUPERVISION/MANAGEMENT SPECIAL,ELECTRICITY,1120,24-May-17,107675,18.20,BRITISH GAS,BRI040,
EFDC,YB110,SUPERVISION/MANAGEMENT SPECIAL,ELECTRICITY,1120,24-May-17,107675,13.51,BRITISH GAS,BRI040,
EFDC,YB110,SUPERVISION/MANAGEMENT SPECIAL,ELECTRICITY,1120,24-May-17,107675,63.77,BRITISH GAS,BRI040,
EFDC,YB110,SUPERVISION/MANAGEMENT SPECIAL,ELECTRICITY,1120,24-May-17,107675,17.90,BRITISH GAS,BRI040,
EFDC,YB110,SUPERVISION/MANAGEMENT SPECIAL,ELECTRICITY,1120,24-May-17,107675,107.39,BRITISH GAS,BRI040,
EFDC,YB110,SUPERVISION/MANAGEMENT SPECIAL,ELECTRICITY,1120,24-May-17,107675,12.44,BRITISH GAS,BRI040,
EFDC,YB110,SUPERVISION/MANAGEMENT SPECIAL,ELECTRICITY,1120,24-May-17,107675,28.82,BRITISH GAS,BRI040,
EFDC,YB110,SUPERVISION/MANAGEMENT SPECIAL,ELECTRICITY,1120,24-May-17,107675,19.61,BRITISH GAS,BRI040,
EFDC,YB110,SUPERVISION/MANAGEMENT SPECIAL,ELECTRICITY,1120,24-May-17,107675,14.73,BRITISH GAS,BRI040,
EFDC,YB110,SUPERVISION/MANAGEMENT SPECIAL,ELECTRICITY,1120,24-May-17,107675,16.12,BRITISH GAS,BRI040,
EFDC,YB110,SUPERVISION/MANAGEMENT SPECIAL,ELECTRICITY,1120,24-May-17,107675,16.62,BRITISH GAS,BRI040,
EFDC,YB110,SUPERVISION/MANAGEMENT SPECIAL,ELECTRICITY,1120,24-May-17,107675,12.15,BRITISH GAS,BRI040,
EFDC,YB110,SUPERVISION/MANAGEMENT SPECIAL,ELECTRICITY,1120,24-May-17,107675,12.04,BRITISH GAS,BRI040,
EFDC,YB110,SUPERVISION/MANAGEMENT SPECIAL,ELECTRICITY,1120,24-May-17,107675,14.33,BRITISH GAS,BRI040,
EFDC,YB110,SUPERVISION/MANAGEMENT SPECIAL,ELECTRICITY,1120,24-May-17,107675,11.79,BRITISH GAS,BRI040,
EFDC,YB110,SUPERVISION/MANAGEMENT SPECIAL,ELECTRICITY,1120,24-May-17,107675,26.39,BRITISH GAS,BRI040,
EFDC,YB110,SUPERVISION/MANAGEMENT SPECIAL,ELECTRICITY,1120,24-May-17,107675,21.38,BRITISH GAS,BRI040,
EFDC,YB110,SUPERVISION/MANAGEMENT SPECIAL,ELECTRICITY,1120,24-May-17,107675,13.12,BRITISH GAS,BRI040,
EFDC,YB110,SUPERVISION/MANAGEMENT SPECIAL,ELECTRICITY,1120,24-May-17,107675,7.28,BRITISH GAS,BRI040,
EFDC,YB110,SUPERVISION/MANAGEMENT SPECIAL,ELECTRICITY,1120,24-May-17,107675,-32.07,BRITISH GAS,BRI040,
EFDC,YB110,SUPERVISION/MANAGEMENT SPECIAL,ELECTRICITY,1120,24-May-17,107675,-42.30,BRITISH GAS,BRI040,
EFDC,YB110,SUPERVISION/MANAGEMENT SPECIAL,ELECTRICITY,1120,24-May-17,107675,-37.75,BRITISH GAS,BRI040,
EFDC,YB110,SUPERVISION/MANAGEMENT SPECIAL,ELECTRICITY,1120,24-May-17,107675,"6,094.92",BRITISH GAS,BRI040,
EFDC,YB110,SUPERVISION/MANAGEMENT SPECIAL,ELECTRICITY,1120,24-May-17,107675,18.65,BRITISH GAS,BRI040,
EFDC,YB110,SUPERVISION/MANAGEMENT SPECIAL,ELECTRICITY,1120,24-May-17,107675,42.30,BRITISH GAS,BRI040,
EFDC,YB110,SUPERVISION/MANAGEMENT SPECIAL,ELECTRICITY,1120,24-May-17,107675,11.59,BRITISH GAS,BRI040,
EFDC,YB110,SUPERVISION/MANAGEMENT SPECIAL,ELECTRICITY,1120,24-May-17,107675,26.51,BRITISH GAS,BRI040,
EFDC,YB110,SUPERVISION/MANAGEMENT SPECIAL,ELECTRICITY,1120,24-May-17,107675,150.04,BRITISH GAS,BRI040,
EFDC,YB110,SUPERVISION/MANAGEMENT SPECIAL,ELECTRICITY,1120,24-May-17,107675,15.57,BRITISH GAS,BRI040,
EFDC,YB110,SUPERVISION/MANAGEMENT SPECIAL,ELECTRICITY,1120,24-May-17,107675,52.89,BRITISH GAS,BRI040,
EFDC,YB110,SUPERVISION/MANAGEMENT SPECIAL,ELECTRICITY,1120,24-May-17,107675,11.65,BRITISH GAS,BRI040,
EFDC,YB110,SUPERVISION/MANAGEMENT SPECIAL,ELECTRICITY,1120,24-May-17,107675,11.03,BRITISH GAS,BRI040,
EFDC,YB110,SUPERVISION/MANAGEMENT SPECIAL,ELECTRICITY,1120,24-May-17,107675,6.58,BRITISH GAS,BRI040,
EFDC,YB110,SUPERVISION/MANAGEMENT SPECIAL,ELECTRICITY,1120,24-May-17,107675,20.77,BRITISH GAS,BRI040,
EFDC,YB110,SUPERVISION/MANAGEMENT SPECIAL,ELECTRICITY,1120,24-May-17,107675,12.34,BRITISH GAS,BRI040,
EFDC,YB110,SUPERVISION/MANAGEMENT SPECIAL,ELECTRICITY,1120,24-May-17,107675,18.15,BRITISH GAS,BRI040,
EFDC,YB110,SUPERVISION/MANAGEMENT SPECIAL,ELECTRICITY,1120,24-May-17,107675,22.60,BRITISH GAS,BRI040,
EFDC,YB110,SUPERVISION/MANAGEMENT SPECIAL,ELECTRICITY,1120,24-May-17,107675,10.92,BRITISH GAS,BRI040,
EFDC,YB110,SUPERVISION/MANAGEMENT SPECIAL,ELECTRICITY,1120,24-May-17,107675,66.15,BRITISH GAS,BRI040,
EFDC,YB110,SUPERVISION/MANAGEMENT SPECIAL,ELECTRICITY,1120,24-May-17,107675,14.03,BRITISH GAS,BRI040,
EFDC,YB110,SUPERVISION/MANAGEMENT SPECIAL,ELECTRICITY,1120,24-May-17,107675,14.78,BRITISH GAS,BRI040,
EFDC,YB110,SUPERVISION/MANAGEMENT SPECIAL,ELECTRICITY,1120,24-May-17,107675,254.86,BRITISH GAS,BRI040,
EFDC,YB110,SUPERVISION/MANAGEMENT SPECIAL,ELECTRICITY,1120,24-May-17,107675,-115.52,BRITISH GAS,BRI040,
EFDC,YB110,SUPERVISION/MANAGEMENT SPECIAL,ELECTRICITY,1120,24-May-17,107675,12.14,BRITISH GAS,BRI040,
EFDC,YB110,SUPERVISION/MANAGEMENT SPECIAL,ELECTRICITY,1120,24-May-17,107675,13.52,BRITISH GAS,BRI040,
EFDC,YB110,SUPERVISION/MANAGEMENT SPECIAL,ELECTRICITY,1120,24-May-17,107675,13.28,BRITISH GAS,BRI040,
EFDC,YB110,SUPERVISION/MANAGEMENT SPECIAL,ELECTRICITY,1120,24-May-17,107675,-12.49,BRITISH GAS,BRI040,
EFDC,YB110,SUPERVISION/MANAGEMENT SPECIAL,ELECTRICITY,1120,24-May-17,107675,-13.51,BRITISH GAS,BRI040,
EFDC,YB110,SUPERVISION/MANAGEMENT SPECIAL,ELECTRICITY,1120,24-May-17,107675,119.80,BRITISH GAS,BRI040,
EFDC,YB110,SUPERVISION/MANAGEMENT SPECIAL,ELECTRICITY,1120,24-May-17,107675,22.12,BRITISH GAS,BRI040,
EFDC,YB110,SUPERVISION/MANAGEMENT SPECIAL,ELECTRICITY,1120,24-May-17,107675,6.20,BRITISH GAS,BRI040,
EFDC,YB110,SUPERVISION/MANAGEMENT SPECIAL,ELECTRICITY,1120,24-May-17,107675,23.71,BRITISH GAS,BRI040,
EFDC,YB110,SUPERVISION/MANAGEMENT SPECIAL,ELECTRICITY,1120,24-May-17,107675,22.07,BRITISH GAS,BRI040,
EFDC,YB110,SUPERVISION/MANAGEMENT SPECIAL,ELECTRICITY,1120,24-May-17,107675,14.64,BRITISH GAS,BRI040,
EFDC,YB110,SUPERVISION/MANAGEMENT SPECIAL,ELECTRICITY,1120,24-May-17,107675,12.60,BRITISH GAS,BRI040,
EFDC,YB110,SUPERVISION/MANAGEMENT SPECIAL,ELECTRICITY,1120,24-May-17,107675,20.97,BRITISH GAS,BRI040,
EFDC,YB110,SUPERVISION/MANAGEMENT SPECIAL,ELECTRICITY,1120,24-May-17,107675,-11.74,BRITISH GAS,BRI040,
EFDC,YB110,SUPERVISION/MANAGEMENT SPECIAL,ELECTRICITY,1120,24-May-17,107675,14.02,BRITISH GAS,BRI040,
EFDC,YB110,SUPERVISION/MANAGEMENT SPECIAL,ELECTRICITY,1120,24-May-17,107675,-11.70,BRITISH GAS,BRI040,
EFDC,YB110,SUPERVISION/MANAGEMENT SPECIAL,ELECTRICITY,1120,24-May-17,107675,17.83,BRITISH GAS,BRI040,
EFDC,YB110,SUPERVISION/MANAGEMENT SPECIAL,ELECTRICITY,1120,24-May-17,107675,19.47,BRITISH GAS,BRI040,
EFDC,YB110,SUPERVISION/MANAGEMENT SPECIAL,ELECTRICITY,1120,24-May-17,107675,18.58,BRITISH GAS,BRI040,
EFDC,YB110,SUPERVISION/MANAGEMENT SPECIAL,ELECTRICITY,1120,24-May-17,107675,11.81,BRITISH GAS,BRI040,
EFDC,YB110,SUPERVISION/MANAGEMENT SPECIAL,ELECTRICITY,1120,24-May-17,107675,11.31,BRITISH GAS,BRI040,
EFDC,YB110,SUPERVISION/MANAGEMENT SPECIAL,ELECTRICITY,1120,24-May-17,107675,14.05,BRITISH GAS,BRI040,
EFDC,YB110,SUPERVISION/MANAGEMENT SPECIAL,ELECTRICITY,1120,24-May-17,107675,6.11,BRITISH GAS,BRI040,
EFDC,YB110,SUPERVISION/MANAGEMENT SPECIAL,ELECTRICITY,1120,24-May-17,107675,24.83,BRITISH GAS,BRI040,
EFDC,YB110,SUPERVISION/MANAGEMENT SPECIAL,ELECTRICITY,1120,24-May-17,107675,33.30,BRITISH GAS,BRI040,
EFDC,YB110,SUPERVISION/MANAGEMENT SPECIAL,ELECTRICITY,1120,24-May-17,107675,30.71,BRITISH GAS,BRI040,
EFDC,YB110,SUPERVISION/MANAGEMENT SPECIAL,ELECTRICITY,1120,24-May-17,107675,8.98,BRITISH GAS,BRI040,
EFDC,YB110,SUPERVISION/MANAGEMENT SPECIAL,ELECTRICITY,1120,24-May-17,107675,13.44,BRITISH GAS,BRI040,
EFDC,YB110,SUPERVISION/MANAGEMENT SPECIAL,ELECTRICITY,1120,24-May-17,107675,10.89,BRITISH GAS,BRI040,
EFDC,YB110,SUPERVISION/MANAGEMENT SPECIAL,ELECTRICITY,1120,24-May-17,107675,16.63,BRITISH GAS,BRI040,
EFDC,YB110,SUPERVISION/MANAGEMENT SPECIAL,ELECTRICITY,1120,24-May-17,107675,41.60,BRITISH GAS,BRI040,
EFDC,YB110,SUPERVISION/MANAGEMENT SPECIAL,ELECTRICITY,1120,24-May-17,107675,53.61,BRITISH GAS,BRI040,
EFDC,YB110,SUPERVISION/MANAGEMENT SPECIAL,ELECTRICITY,1120,24-May-17,107675,9.43,BRITISH GAS,BRI040,
EFDC,YB110,SUPERVISION/MANAGEMENT SPECIAL,ELECTRICITY,1120,24-May-17,107675,13.79,BRITISH GAS,BRI040,
EFDC,YB110,SUPERVISION/MANAGEMENT SPECIAL,ELECTRICITY,1120,24-May-17,107675,11.35,BRITISH GAS,BRI040,
EFDC,YB110,SUPERVISION/MANAGEMENT SPECIAL,ELECTRICITY,1120,24-May-17,107675,9.60,BRITISH GAS,BRI040,
EFDC,YB110,SUPERVISION/MANAGEMENT SPECIAL,ELECTRICITY,1120,24-May-17,107675,25.37,BRITISH GAS,BRI040,
EFDC,YB110,SUPERVISION/MANAGEMENT SPECIAL,ELECTRICITY,1120,24-May-17,107675,8.30,BRITISH GAS,BRI040,
EFDC,YB110,SUPERVISION/MANAGEMENT SPECIAL,ELECTRICITY,1120,24-May-17,107675,15.44,BRITISH GAS,BRI040,
EFDC,YB110,SUPERVISION/MANAGEMENT SPECIAL,ELECTRICITY,1120,24-May-17,107675,11.71,BRITISH GAS,BRI040,
EFDC,YB110,SUPERVISION/MANAGEMENT SPECIAL,ELECTRICITY,1120,24-May-17,107675,-13.68,BRITISH GAS,BRI040,
EFDC,YB110,SUPERVISION/MANAGEMENT SPECIAL,ELECTRICITY,1120,24-May-17,107675,11.88,BRITISH GAS,BRI040,
EFDC,YB110,SUPERVISION/MANAGEMENT SPECIAL,ELECTRICITY,1120,24-May-17,107675,27.35,BRITISH GAS,BRI040,
EFDC,YB110,SUPERVISION/MANAGEMENT SPECIAL,ELECTRICITY,1120,24-May-17,107675,12.21,BRITISH GAS,BRI040,
EFDC,YB110,SUPERVISION/MANAGEMENT SPECIAL,ELECTRICITY,1120,24-May-17,107675,12.06,BRITISH GAS,BRI040,
EFDC,YB110,SUPERVISION/MANAGEMENT SPECIAL,ELECTRICITY,1120,24-May-17,107675,10.76,BRITISH GAS,BRI040,
EFDC,YB110,SUPERVISION/MANAGEMENT SPECIAL,ELECTRICITY,1120,24-May-17,107675,12.94,BRITISH GAS,BRI040,
EFDC,YB110,SUPERVISION/MANAGEMENT SPECIAL,ELECTRICITY,1120,24-May-17,107675,22.45,BRITISH GAS,BRI040,
EFDC,YB110,SUPERVISION/MANAGEMENT SPECIAL,ELECTRICITY,1120,24-May-17,107675,11.97,BRITISH GAS,BRI040,
EFDC,YB110,SUPERVISION/MANAGEMENT SPECIAL,ELECTRICITY,1120,24-May-17,107675,34.17,BRITISH GAS,BRI040,
EFDC,YB110,SUPERVISION/MANAGEMENT SPECIAL,ELECTRICITY,1120,24-May-17,107675,9.83,BRITISH GAS,BRI040,
EFDC,YB110,SUPERVISION/MANAGEMENT SPECIAL,ELECTRICITY,1120,24-May-17,107675,-24.82,BRITISH GAS,BRI040,
EFDC,YB110,SUPERVISION/MANAGEMENT SPECIAL,ELECTRICITY,1120,24-May-17,107675,-9.64,BRITISH GAS,BRI040,
EFDC,YB110,SUPERVISION/MANAGEMENT SPECIAL,ELECTRICITY,1120,24-May-17,107675,-11.67,BRITISH GAS,BRI040,
EFDC,YB110,SUPERVISION/MANAGEMENT SPECIAL,ELECTRICITY,1120,24-May-17,107675,12.16,BRITISH GAS,BRI040,
EFDC,YB110,SUPERVISION/MANAGEMENT SPECIAL,ELECTRICITY,1120,24-May-17,107676,19.49,BRITISH GAS,BRI040,
EFDC,YB110,SUPERVISION/MANAGEMENT SPECIAL,ELECTRICITY,1120,24-May-17,107676,15.52,BRITISH GAS,BRI040,
EFDC,YB110,SUPERVISION/MANAGEMENT SPECIAL,ELECTRICITY,1120,24-May-17,107676,12.16,BRITISH GAS,BRI040,
EFDC,YB110,SUPERVISION/MANAGEMENT SPECIAL,ELECTRICITY,1120,24-May-17,107676,12.06,BRITISH GAS,BRI040,
EFDC,YB110,SUPERVISION/MANAGEMENT SPECIAL,ELECTRICITY,1120,24-May-17,107676,14.22,BRITISH GAS,BRI040,
EFDC,YB110,SUPERVISION/MANAGEMENT SPECIAL,ELECTRICITY,1120,24-May-17,107676,10.65,BRITISH GAS,BRI040,
EFDC,YB110,SUPERVISION/MANAGEMENT SPECIAL,ELECTRICITY,1120,24-May-17,107676,9.41,BRITISH GAS,BRI040,
EFDC,YB110,SUPERVISION/MANAGEMENT SPECIAL,ELECTRICITY,1120,24-May-17,107676,13.85,BRITISH GAS,BRI040,
EFDC,YB110,SUPERVISION/MANAGEMENT SPECIAL,ELECTRICITY,1120,24-May-17,107676,46.06,BRITISH GAS,BRI040,
EFDC,YB110,SUPERVISION/MANAGEMENT SPECIAL,ELECTRICITY,1120,24-May-17,107676,42.02,BRITISH GAS,BRI040,
EFDC,YB110,SUPERVISION/MANAGEMENT SPECIAL,ELECTRICITY,1120,24-May-17,107676,12.59,BRITISH GAS,BRI040,
EFDC,YB110,SUPERVISION/MANAGEMENT SPECIAL,ELECTRICITY,1120,24-May-17,107676,115.03,BRITISH GAS,BRI040,
EFDC,YB110,SUPERVISION/MANAGEMENT SPECIAL,ELECTRICITY,1120,24-May-17,107676,17.89,BRITISH GAS,BRI040,
EFDC,YB110,SUPERVISION/MANAGEMENT SPECIAL,ELECTRICITY,1120,24-May-17,107676,10.54,BRITISH GAS,BRI040,
EFDC,YB110,SUPERVISION/MANAGEMENT SPECIAL,ELECTRICITY,1120,24-May-17,107676,13.32,BRITISH GAS,BRI040,
EFDC,YB110,SUPERVISION/MANAGEMENT SPECIAL,ELECTRICITY,1120,24-May-17,107676,10.14,BRITISH GAS,BRI040,
EFDC,YB110,SUPERVISION/MANAGEMENT SPECIAL,ELECTRICITY,1120,24-May-17,107676,13.47,BRITISH GAS,BRI040,
EFDC,YB110,SUPERVISION/MANAGEMENT SPECIAL,ELECTRICITY,1120,24-May-17,107676,11.15,BRITISH GAS,BRI040,
EFDC,YB110,SUPERVISION/MANAGEMENT SPECIAL,ELECTRICITY,1120,24-May-17,107676,15.06,BRITISH GAS,BRI040,
EFDC,YB110,SUPERVISION/MANAGEMENT SPECIAL,ELECTRICITY,1120,24-May-17,107676,19.63,BRITISH GAS,BRI040,
EFDC,YB110,SUPERVISION/MANAGEMENT SPECIAL,ELECTRICITY,1120,24-May-17,107676,21.20,BRITISH GAS,BRI040,
EFDC,YB110,SUPERVISION/MANAGEMENT SPECIAL,ELECTRICITY,1120,24-May-17,107676,13.58,BRITISH GAS,BRI040,
EFDC,YB110,SUPERVISION/MANAGEMENT SPECIAL,ELECTRICITY,1120,24-May-17,107676,21.66,BRITISH GAS,BRI040,
EFDC,YB110,SUPERVISION/MANAGEMENT SPECIAL,ELECTRICITY,1120,24-May-17,107676,13.05,BRITISH GAS,BRI040,
EFDC,YB110,SUPERVISION/MANAGEMENT SPECIAL,ELECTRICITY,1120,24-May-17,107676,10.76,BRITISH GAS,BRI040,
EFDC,YB110,SUPERVISION/MANAGEMENT SPECIAL,ELECTRICITY,1120,24-May-17,107676,7.53,BRITISH GAS,BRI040,
EFDC,YB110,SUPERVISION/MANAGEMENT SPECIAL,ELECTRICITY,1120,24-May-17,107676,10.70,BRITISH GAS,BRI040,
EFDC,YB110,SUPERVISION/MANAGEMENT SPECIAL,ELECTRICITY,1120,24-May-17,107676,13.56,BRITISH GAS,BRI040,
EFDC,YB110,SUPERVISION/MANAGEMENT SPECIAL,ELECTRICITY,1120,24-May-17,107676,35.71,BRITISH GAS,BRI040,
EFDC,YB110,SUPERVISION/MANAGEMENT SPECIAL,ELECTRICITY,1120,24-May-17,107676,15.05,BRITISH GAS,BRI040,
EFDC,YB110,SUPERVISION/MANAGEMENT SPECIAL,ELECTRICITY,1120,24-May-17,107676,14.07,BRITISH GAS,BRI040,
EFDC,YB110,SUPERVISION/MANAGEMENT SPECIAL,ELECTRICITY,1120,24-May-17,107676,13.73,BRITISH GAS,BRI040,
EFDC,YB110,SUPERVISION/MANAGEMENT SPECIAL,ELECTRICITY,1120,24-May-17,107676,15.70,BRITISH GAS,BRI040,
EFDC,YB110,SUPERVISION/MANAGEMENT SPECIAL,ELECTRICITY,1120,24-May-17,107676,22.22,BRITISH GAS,BRI040,
EFDC,YB110,SUPERVISION/MANAGEMENT SPECIAL,ELECTRICITY,1120,24-May-17,107676,14.35,BRITISH GAS,BRI040,
EFDC,YB110,SUPERVISION/MANAGEMENT SPECIAL,ELECTRICITY,1120,24-May-17,107676,15.53,BRITISH GAS,BRI040,
EFDC,YB110,SUPERVISION/MANAGEMENT SPECIAL,ELECTRICITY,1120,24-May-17,107676,26.84,BRITISH GAS,BRI040,
EFDC,YB110,SUPERVISION/MANAGEMENT SPECIAL,ELECTRICITY,1120,24-May-17,107676,42.27,BRITISH GAS,BRI040,
EFDC,YB110,SUPERVISION/MANAGEMENT SPECIAL,ELECTRICITY,1120,24-May-17,107676,15.18,BRITISH GAS,BRI040,
EFDC,YB110,SUPERVISION/MANAGEMENT SPECIAL,ELECTRICITY,1120,24-May-17,107676,14.98,BRITISH GAS,BRI040,
EFDC,YB110,SUPERVISION/MANAGEMENT SPECIAL,ELECTRICITY,1120,24-May-17,107676,546.10,BRITISH GAS,BRI040,
EFDC,YB110,SUPERVISION/MANAGEMENT SPECIAL,ELECTRICITY,1120,24-May-17,107676,184.16,BRITISH GAS,BRI040,
EFDC,YB110,SUPERVISION/MANAGEMENT SPECIAL,ELECTRICITY,1120,24-May-17,107676,14.45,BRITISH GAS,BRI040,
EFDC,YB110,SUPERVISION/MANAGEMENT SPECIAL,ELECTRICITY,1120,24-May-17,107676,10.81,BRITISH GAS,BRI040,
EFDC,YB110,SUPERVISION/MANAGEMENT SPECIAL,ELECTRICITY,1120,24-May-17,107676,13.54,BRITISH GAS,BRI040,
EFDC,YB110,SUPERVISION/MANAGEMENT SPECIAL,ELECTRICITY,1120,24-May-17,107676,12.05,BRITISH GAS,BRI040,
EFDC,YB110,SUPERVISION/MANAGEMENT SPECIAL,ELECTRICITY,1120,24-May-17,107676,-6.03,BRITISH GAS,BRI040,
EFDC,YB110,SUPERVISION/MANAGEMENT SPECIAL,ELECTRICITY,1120,24-May-17,107676,-2.80,BRITISH GAS,BRI040,
EFDC,YB110,SUPERVISION/MANAGEMENT SPECIAL,ELECTRICITY,1120,24-May-17,107676,-21.78,BRITISH GAS,BRI040,
EFDC,YB110,SUPERVISION/MANAGEMENT SPECIAL,ELECTRICITY,1120,24-May-17,107676,-14.67,BRITISH GAS,BRI040,
EFDC,YB110,SUPERVISION/MANAGEMENT SPECIAL,ELECTRICITY,1120,24-May-17,107676,-15.07,BRITISH GAS,BRI040,
EFDC,YB110,SUPERVISION/MANAGEMENT SPECIAL,ELECTRICITY,1120,24-May-17,107676,-17.83,BRITISH GAS,BRI040,
EFDC,YB110,SUPERVISION/MANAGEMENT SPECIAL,ELECTRICITY,1120,24-May-17,107676,4.80,BRITISH GAS,BRI040,
EFDC,YB110,SUPERVISION/MANAGEMENT SPECIAL,ELECTRICITY,1120,24-May-17,107676,0.96,BRITISH GAS,BRI040,
EFDC,YB110,SUPERVISION/MANAGEMENT SPECIAL,ELECTRICITY,1120,24-May-17,107676,15.44,BRITISH GAS,BRI040,
EFDC,YB110,SUPERVISION/MANAGEMENT SPECIAL,ELECTRICITY,1120,24-May-17,107676,14.67,BRITISH GAS,BRI040,
EFDC,YB110,SUPERVISION/MANAGEMENT SPECIAL,ELECTRICITY,1120,24-May-17,107676,15.07,BRITISH GAS,BRI040,
EFDC,YB110,SUPERVISION/MANAGEMENT SPECIAL,ELECTRICITY,1120,24-May-17,107676,17.83,BRITISH GAS,BRI040,
EFDC,YB110,SUPERVISION/MANAGEMENT SPECIAL,ELECTRICITY,1120,24-May-17,107676,16.76,BRITISH GAS,BRI040,
EFDC,YB110,SUPERVISION/MANAGEMENT SPECIAL,ELECTRICITY,1120,24-May-17,107676,11.56,BRITISH GAS,BRI040,
EFDC,YB110,SUPERVISION/MANAGEMENT SPECIAL,ELECTRICITY,1120,24-May-17,107676,25.96,BRITISH GAS,BRI040,
EFDC,YB110,SUPERVISION/MANAGEMENT SPECIAL,ELECTRICITY,1120,24-May-17,107676,13.70,BRITISH GAS,BRI040,
EFDC,YB110,SUPERVISION/MANAGEMENT SPECIAL,ELECTRICITY,1120,24-May-17,107676,20.14,BRITISH GAS,BRI040,
EFDC,YB110,SUPERVISION/MANAGEMENT SPECIAL,ELECTRICITY,1120,24-May-17,107676,11.50,BRITISH GAS,BRI040,
EFDC,YB110,SUPERVISION/MANAGEMENT SPECIAL,ELECTRICITY,1120,24-May-17,107676,29.19,BRITISH GAS,BRI040,
EFDC,YB110,SUPERVISION/MANAGEMENT SPECIAL,ELECTRICITY,1120,24-May-17,107676,7.98,BRITISH GAS,BRI040,
EFDC,YB110,SUPERVISION/MANAGEMENT SPECIAL,ELECTRICITY,1120,24-May-17,107676,7.98,BRITISH GAS,BRI040,
EFDC,YB110,SUPERVISION/MANAGEMENT SPECIAL,ELECTRICITY,1120,24-May-17,107676,14.80,BRITISH GAS,BRI040,
EFDC,YB110,SUPERVISION/MANAGEMENT SPECIAL,ELECTRICITY,1120,24-May-17,107676,7.75,BRITISH GAS,BRI040,
EFDC,YB110,SUPERVISION/MANAGEMENT SPECIAL,ELECTRICITY,1120,24-May-17,107676,15.57,BRITISH GAS,BRI040,
EFDC,YB110,SUPERVISION/MANAGEMENT SPECIAL,ELECTRICITY,1120,24-May-17,107676,7.75,BRITISH GAS,BRI040,
EFDC,YB110,SUPERVISION/MANAGEMENT SPECIAL,ELECTRICITY,1120,24-May-17,107676,27.76,BRITISH GAS,BRI040,
EFDC,YB110,SUPERVISION/MANAGEMENT SPECIAL,ELECTRICITY,1120,24-May-17,107676,23.65,BRITISH GAS,BRI040,
EFDC,YB110,SUPERVISION/MANAGEMENT SPECIAL,ELECTRICITY,1120,24-May-17,107676,16.95,BRITISH GAS,BRI040,
EFDC,YB110,SUPERVISION/MANAGEMENT SPECIAL,ELECTRICITY,1120,24-May-17,107676,7.75,BRITISH GAS,BRI040,
EFDC,YB110,SUPERVISION/MANAGEMENT SPECIAL,ELECTRICITY,1120,24-May-17,107676,11.06,BRITISH GAS,BRI040,
EFDC,YB110,SUPERVISION/MANAGEMENT SPECIAL,ELECTRICITY,1120,24-May-17,107676,19.66,BRITISH GAS,BRI040,
EFDC,YB110,SUPERVISION/MANAGEMENT SPECIAL,ELECTRICITY,1120,24-May-17,107676,10.16,BRITISH GAS,BRI040,
EFDC,YB110,SUPERVISION/MANAGEMENT SPECIAL,ELECTRICITY,1120,24-May-17,107676,15.74,BRITISH GAS,BRI040,
EFDC,YB110,SUPERVISION/MANAGEMENT SPECIAL,ELECTRICITY,1120,24-May-17,107676,13.40,BRITISH GAS,BRI040,
EFDC,YB110,SUPERVISION/MANAGEMENT SPECIAL,ELECTRICITY,1120,24-May-17,107676,9.81,BRITISH GAS,BRI040,
EFDC,YB110,SUPERVISION/MANAGEMENT SPECIAL,ELECTRICITY,1120,24-May-17,107676,12.86,BRITISH GAS,BRI040,
EFDC,YB110,SUPERVISION/MANAGEMENT SPECIAL,ELECTRICITY,1120,24-May-17,107676,10.35,BRITISH GAS,BRI040,
EFDC,YB110,SUPERVISION/MANAGEMENT SPECIAL,ELECTRICITY,1120,24-May-17,107676,11.87,BRITISH GAS,BRI040,
EFDC,YB110,SUPERVISION/MANAGEMENT SPECIAL,ELECTRICITY,1120,24-May-17,107676,11.78,BRITISH GAS,BRI040,
EFDC,YB110,SUPERVISION/MANAGEMENT SPECIAL,ELECTRICITY,1120,24-May-17,107676,15.42,BRITISH GAS,BRI040,
EFDC,YB110,SUPERVISION/MANAGEMENT SPECIAL,ELECTRICITY,1120,24-May-17,107676,12.97,BRITISH GAS,BRI040,
EFDC,YB110,SUPERVISION/MANAGEMENT SPECIAL,ELECTRICITY,1120,24-May-17,107676,11.48,BRITISH GAS,BRI040,
EFDC,YB110,SUPERVISION/MANAGEMENT SPECIAL,ELECTRICITY,1120,24-May-17,107675,13.90,BRITISH GAS,BRI040,
EFDC,YB110,SUPERVISION/MANAGEMENT SPECIAL,ELECTRICITY,1120,24-May-17,107676,19.79,BRITISH GAS,BRI040,
EFDC,YB110,SUPERVISION/MANAGEMENT SPECIAL,ELECTRICITY,1120,24-May-17,107676,12.73,BRITISH GAS,BRI040,
EFDC,YB110,SUPERVISION/MANAGEMENT SPECIAL,ELECTRICITY,1120,24-May-17,107676,10.20,BRITISH GAS,BRI040,
EFDC,YB110,SUPERVISION/MANAGEMENT SPECIAL,ELECTRICITY,1120,24-May-17,107676,9.31,BRITISH GAS,BRI040,
EFDC,YB110,SUPERVISION/MANAGEMENT SPECIAL,ELECTRICITY,1120,24-May-17,107676,21.78,BRITISH GAS,BRI040,
EFDC,YB110,SUPERVISION/MANAGEMENT SPECIAL,ELECTRICITY,1120,24-May-17,107676,18.42,BRITISH GAS,BRI040,
EFDC,YB110,SUPERVISION/MANAGEMENT SPECIAL,ELECTRICITY,1120,24-May-17,107676,14.62,BRITISH GAS,BRI040,
EFDC,YB110,SUPERVISION/MANAGEMENT SPECIAL,ELECTRICITY,1120,24-May-17,107676,14.06,BRITISH GAS,BRI040,
EFDC,YB110,SUPERVISION/MANAGEMENT SPECIAL,ELECTRICITY,1120,24-May-17,107676,20.04,BRITISH GAS,BRI040,
EFDC,YB110,SUPERVISION/MANAGEMENT SPECIAL,ELECTRICITY,1120,24-May-17,107676,40.09,BRITISH GAS,BRI040,
EFDC,YB110,SUPERVISION/MANAGEMENT SPECIAL,ELECTRICITY,1120,24-May-17,107676,9.92,BRITISH GAS,BRI040,
EFDC,YB110,SUPERVISION/MANAGEMENT SPECIAL,ELECTRICITY,1120,24-May-17,107676,32.42,BRITISH GAS,BRI040,
EFDC,YB110,SUPERVISION/MANAGEMENT SPECIAL,ELECTRICITY,1120,24-May-17,107676,20.54,BRITISH GAS,BRI040,
EFDC,YB110,SUPERVISION/MANAGEMENT SPECIAL,ELECTRICITY,1120,24-May-17,107676,11.09,BRITISH GAS,BRI040,
EFDC,YB110,SUPERVISION/MANAGEMENT SPECIAL,ELECTRICITY,1120,24-May-17,107676,30.13,BRITISH GAS,BRI040,
EFDC,YB110,SUPERVISION/MANAGEMENT SPECIAL,ELECTRICITY,1120,24-May-17,107676,16.60,BRITISH GAS,BRI040,
EFDC,YB110,SUPERVISION/MANAGEMENT SPECIAL,ELECTRICITY,1120,24-May-17,107676,20.43,BRITISH GAS,BRI040,
EFDC,YB110,SUPERVISION/MANAGEMENT SPECIAL,ELECTRICITY,1120,24-May-17,107676,10.70,BRITISH GAS,BRI040,
EFDC,YB110,SUPERVISION/MANAGEMENT SPECIAL,ELECTRICITY,1120,24-May-17,107676,42.77,BRITISH GAS,BRI040,
EFDC,YB110,SUPERVISION/MANAGEMENT SPECIAL,ELECTRICITY,1120,24-May-17,107676,11.51,BRITISH GAS,BRI040,
EFDC,YB110,SUPERVISION/MANAGEMENT SPECIAL,ELECTRICITY,1120,24-May-17,107676,12.22,BRITISH GAS,BRI040,
EFDC,YB110,SUPERVISION/MANAGEMENT SPECIAL,ELECTRICITY,1120,24-May-17,107676,11.96,BRITISH GAS,BRI040,
EFDC,YB110,SUPERVISION/MANAGEMENT SPECIAL,ELECTRICITY,1120,24-May-17,107676,12.23,BRITISH GAS,BRI040,
EFDC,YB110,SUPERVISION/MANAGEMENT SPECIAL,ELECTRICITY,1120,24-May-17,107676,9.00,BRITISH GAS,BRI040,
EFDC,YB110,SUPERVISION/MANAGEMENT SPECIAL,ELECTRICITY,1120,24-May-17,107676,35.41,BRITISH GAS,BRI040,
EFDC,YB110,SUPERVISION/MANAGEMENT SPECIAL,ELECTRICITY,1120,24-May-17,107676,45.90,BRITISH GAS,BRI040,
EFDC,YB110,SUPERVISION/MANAGEMENT SPECIAL,ELECTRICITY,1120,24-May-17,107676,12.08,BRITISH GAS,BRI040,
EFDC,YB110,SUPERVISION/MANAGEMENT SPECIAL,ELECTRICITY,1120,24-May-17,107676,6.34,BRITISH GAS,BRI040,
EFDC,YB110,SUPERVISION/MANAGEMENT SPECIAL,ELECTRICITY,1120,24-May-17,107676,10.30,BRITISH GAS,BRI040,
EFDC,YB110,SUPERVISION/MANAGEMENT SPECIAL,ELECTRICITY,1120,24-May-17,107676,10.16,BRITISH GAS,BRI040,
EFDC,YB110,SUPERVISION/MANAGEMENT SPECIAL,ELECTRICITY,1120,24-May-17,107676,16.06,BRITISH GAS,BRI040,
EFDC,YB110,SUPERVISION/MANAGEMENT SPECIAL,ELECTRICITY,1120,24-May-17,107676,66.51,BRITISH GAS,BRI040,
EFDC,YB110,SUPERVISION/MANAGEMENT SPECIAL,ELECTRICITY,1120,24-May-17,107676,13.44,BRITISH GAS,BRI040,
EFDC,YB140,SUPERVISION/MANAGEMENT SPECIAL,ELECTRICITY,1120,24-May-17,107675,26.99,BRITISH GAS,BRI040,
EFDC,YB140,SUPERVISION/MANAGEMENT SPECIAL,ELECTRICITY,1120,24-May-17,107675,21.41,BRITISH GAS,BRI040,
EFDC,YB140,SUPERVISION/MANAGEMENT SPECIAL,ELECTRICITY,1120,24-May-17,107675,11.57,BRITISH GAS,BRI040,
EFDC,YB140,SUPERVISION/MANAGEMENT SPECIAL,ELECTRICITY,1120,24-May-17,107675,24.60,BRITISH GAS,BRI040,
EFDC,YB110,SUPERVISION/MANAGEMENT SPECIAL,ELECTRICITY,1120,24-May-17,107676,25.92,BRITISH GAS,BRI040,
EFDC,YB110,SUPERVISION/MANAGEMENT SPECIAL,ELECTRICITY,1120,24-May-17,107676,9.69,BRITISH GAS,BRI040,
